{"text_format":"1","workbook":"xlsx","n_sheets":13,"sheets":["Dpto","Municp","PartCuerp","TipLesion","AgentAccd","MecanAcc","CAUSAS","factores personales","factores del trabajo","cond ambient subest","actos subest","FORMATO","NTC3701"],"not_rendered":{"charts":0,"images":1,"macros":1,"external_links":0,"defined_names":1,"comments":0,"pivot_tables":0},"unopened":[],"bounds":{"document_bytes":16777216,"sheet_cells":100000,"rows_first":2000,"rows_last":500,"rows_between":2000,"halvings":0,"cell_chars":16384,"cell_head_chars":4096},"cells_cut":0,"cells_raw":0,"read":"whole","date_system":"1900"}

{"sheet":"Dpto","index":0,"n_rows":38,"n_cols":5,"rows_kept":38,"cut":false,"hidden":true,"merged":[]}
[]
[]
[null,"Codigo","   Nombre",null,{"$f":"CONCATENATE(B3,C3)","v":"Codigo   Nombre"}]
[]
[null,"00","   VACIO",null,{"$f":"CONCATENATE(B5,C5)","v":"00   VACIO"}]
[null,"05","   ANTIOQUIA",null,"05   ANTIOQUIA"]
[null,"08","   ATLANTICO                     ",null,"08   ATLANTICO                     "]
[null,"11","   SANTAFE DE BOGOTA             ",null,"11   SANTAFE DE BOGOTA             "]
[null,"13","   BOLIVAR                       ",null,"13   BOLIVAR                       "]
[null,"15","   BOYACA                        ",null,"15   BOYACA                        "]
[null,"17","   CALDAS                        ",null,"17   CALDAS                        "]
[null,"18","   CAQUETA                       ",null,"18   CAQUETA                       "]
[null,"19","   CAUCA                         ",null,"19   CAUCA                         "]
[null,"20","   CESAR                         ",null,"20   CESAR                         "]
[null,"23","   CORDOBA                       ",null,"23   CORDOBA                       "]
[null,"25","   CUNDINAMARCA                  ",null,"25   CUNDINAMARCA                  "]
[null,"27","   CHOCO                         ",null,"27   CHOCO                         "]
[null,"41","   HUILA                         ",null,"41   HUILA                         "]
[null,"44","   GUAJIRA                       ",null,"44   GUAJIRA                       "]
[null,"47","   MAGDALENA                     ",null,"47   MAGDALENA                     "]
[null,"50","   META                          ",null,"50   META                          "]
[null,"52","   NARIÑO                        ",null,"52   NARIÑO                        "]
[null,"54","   NORTE DE SANTANDER            ",null,"54   NORTE DE SANTANDER            "]
[null,"63","   QUINDIO                       ",null,"63   QUINDIO                       "]
[null,"66","   RISARALDA                     ",null,"66   RISARALDA                     "]
[null,"68","   SANTANDER                     ",null,"68   SANTANDER                     "]
[null,"70","   SUCRE                         ",null,"70   SUCRE                         "]
[null,"73","   TOLIMA                        ",null,"73   TOLIMA                        "]
[null,"76","   VALLE                         ",null,"76   VALLE                         "]
[null,"81","   ARAUCA                        ",null,"81   ARAUCA                        "]
[null,"85","   CASANARE                      ",null,"85   CASANARE                      "]
[null,"86","   PUTUMAYO                      ",null,"86   PUTUMAYO                      "]
[null,"88","   SAN ANDRES                    ",null,"88   SAN ANDRES                    "]
[null,"91","   AMAZONAS                      ",null,"91   AMAZONAS                      "]
[null,"94","   GUANIA                        ",null,"94   GUANIA                        "]
[null,"95","   GUAVIARE                      ",null,"95   GUAVIARE                      "]
[null,"97","   VAUPES                        ",null,"97   VAUPES                        "]
[null,"99","   VICHADA                       ",null,"99   VICHADA                       "]

{"sheet":"Municp","index":1,"n_rows":1915,"n_cols":7,"rows_kept":1915,"cut":false,"hidden":true,"merged":[]}
[]
[]
[]
[null,"Cod Ciudad   ","Agencia","   Nombre -   ","- Cod Depto",null,{"$f":"CONCATENATE(D4,B4,E4)","v":"   Nombre -   Cod Ciudad   - Cod Depto"}]
[]
[null,"00000","300053","SIN CIUDAD           ","- 00",null,{"$f":"CONCATENATE(D6,B6,E6)","v":"SIN CIUDAD           00000- 00"}]
[null,"05002","300005","ABEJORRAL                     ","- 05",null,"ABEJORRAL                     05002- 05"]
[null,"54003","300004","ÁBREGO                        ","- 54",null,"ÁBREGO                        54003- 54"]
[null,"05004","300005","ABRIAQUI                      ","- 05",null,"ABRIAQUI                      05004- 05"]
[null,"50006","300010","ACACÍAS                       ","- 50",null,"ACACÍAS                       50006- 50"]
[null,"27006","300053","ACANDÍ                        ","- 27",null,"ACANDÍ                        27006- 27"]
[null,"41006","300012","ACEVEDO                       ","- 41",null,"ACEVEDO                       41006- 41"]
[null,"13006","300014","ACHÍ            ","- 13",null,"ACHÍ            13006- 13"]
[null,"41013","300012","AGRADO                        ","- 41",null,"AGRADO                        41013- 41"]
[null,"25001","300001","AGUA DE DIOS                  ","- 25",null,"AGUA DE DIOS                  25001- 25"]
[null,"20011","300017","AGUACHICA                     ","- 20",null,"AGUACHICA                     20011- 20"]
[null,"68013","300002","AGUADA                        ","- 68",null,"AGUADA                        68013- 68"]
[null,"17013","300007","AGUADAS                       ","- 17",null,"AGUADAS                       17013- 17"]
[null,"85010","300051","AGUAZUL                       ","- 85",null,"AGUAZUL                       85010- 85"]
[null,"20013","300017","AGUSTÍN CODAZZI               ","- 20",null,"AGUSTÍN CODAZZI               20013- 20"]
[null,"41016","300012","AIPE                          ","- 41",null,"AIPE                          41016- 41"]
[null,"25019","300001","ALBÁN                         ","- 25",null,"ALBÁN                         25019- 25"]
[null,"52019","300050","ALBÁN                         ","- 52",null,"ALBÁN                         52019- 52"]
[null,"18029","300018","ALBANIA                       ","- 18",null,"ALBANIA                       18029- 18"]
[null,"44035","300021","ALBANIA                       ","- 44",null,"ALBANIA                       44035- 44"]
[null,"68020","300002","ALBANIA                       ","- 68",null,"ALBANIA                       68020- 68"]
[null,"76020","300003","ALCALÁ                        ","- 76",null,"ALCALÁ                        76020- 76"]
[null,"52022","300050","ALDANA                        ","- 52",null,"ALDANA                        52022- 52"]
[null,"05021","300005","ALEJANDRIA                    ","- 05",null,"ALEJANDRIA                    05021- 05"]
[null,"47030","300014","ALGARROBO                     ","- 47",null,"ALGARROBO                     47030- 47"]
[null,"41020","300012","ALGECIRAS                     ","- 41",null,"ALGECIRAS                     41020- 41"]
[null,"19022","300013","ALMAGUER                      ","- 19",null,"ALMAGUER                      19022- 19"]
[null,"15022","300011","ALMEIDA             ","- 15",null,"ALMEIDA             15022- 15"]
[null,"73024","300006","ALPUJARRA                     ","- 73",null,"ALPUJARRA                     73024- 73"]
[null,"41026","300012","ALTAMIRA                      ","- 41",null,"ALTAMIRA                      41026- 41"]
[null,"27025","300053","ALTO BAUDÓ                    ","- 27",null,"ALTO BAUDÓ                    27025- 27"]
[null,"13030","300014","ALTOS DEL ROSARIO         ","- 13",null,"ALTOS DEL ROSARIO         13030- 13"]
[null,"73026","300006","ALVARADO                      ","- 73",null,"ALVARADO                      73026- 73"]
[null,"05030","300005","AMAGA                         ","- 05",null,"AMAGA                         05030- 05"]
[null,"05031","300005","AMALFI                        ","- 05",null,"AMALFI                        05031- 05"]
[null,"73030","300006","AMBALEMA                      ","- 73",null,"AMBALEMA                      73030- 73"]
[null,"25035","300001","ANAPOIMA                      ","- 25",null,"ANAPOIMA                      25035- 25"]
[null,"52036","300050","ANCUYÁ                        ","- 52",null,"ANCUYÁ                        52036- 52"]
[null,"76036","300003","ANDALUCÍA                     ","- 76",null,"ANDALUCÍA                     76036- 76"]
[null,"05034","300005","ANDES                         ","- 05",null,"ANDES                         05034- 05"]
[null,"05036","300005","ANGELOPOLIS                   ","- 05",null,"ANGELOPOLIS                   05036- 05"]
[null,"05038","300005","ANGOSTURA                     ","- 05",null,"ANGOSTURA                     05038- 05"]
[null,"25040","300001","ANOLAIMA                      ","- 25",null,"ANOLAIMA                      25040- 25"]
[null,"05040","300005","ANORI                         ","- 05",null,"ANORI                         05040- 05"]
[null,"17042","300007","ANSERMA                       ","- 17",null,"ANSERMA                       17042- 17"]
[null,"76041","300003","ANSERMANUEVO                  ","- 76",null,"ANSERMANUEVO                  76041- 76"]
[null,"05044","300005","ANZA                          ","- 05",null,"ANZA                          05044- 05"]
[null,"73043","300006","ANZOÁTEGUI                    ","- 73",null,"ANZOÁTEGUI                    73043- 73"]
[null,"05045","300005","APARTADO                      ","- 05",null,"APARTADO                      05045- 05"]
[null,"66045","300009","APÍA                          ","- 66",null,"APÍA                          66045- 66"]
[null,"25599","300001","APULO                         ","- 25",null,"APULO                         25599- 25"]
[null,"15047","300011","AQUITANIA           ","- 15",null,"AQUITANIA           15047- 15"]
[null,"47053","300014","ARACATACA                     ","- 47",null,"ARACATACA                     47053- 47"]
[null,"17050","300007","ARANZAZU                      ","- 17",null,"ARANZAZU                      17050- 17"]
[null,"68051","300002","ARATOCA                       ","- 68",null,"ARATOCA                       68051- 68"]
[null,"81001","300010","ARAUCA                        ","- 81",null,"ARAUCA                        81001- 81"]
[null,"81065","300010","ARAUQUITA                     ","- 81",null,"ARAUQUITA                     81065- 81"]
[null,"25053","300001","ARBELÁEZ                      ","- 25",null,"ARBELÁEZ                      25053- 25"]
[null,"52051","300050","ARBOLEDA                      ","- 52",null,"ARBOLEDA                      52051- 52"]
[null,"54051","300004","ARBOLEDAS                     ","- 54",null,"ARBOLEDAS                     54051- 54"]
[null,"05051","300005","ARBOLETES                     ","- 05",null,"ARBOLETES                     05051- 05"]
[null,"15051","300011","ARCABUCO            ","- 15",null,"ARCABUCO            15051- 15"]
[null,"13042","300014","ARENAL             ","- 13",null,"ARENAL             13042- 13"]
[null,"05055","300005","ARGELIA                       ","- 05",null,"ARGELIA                       05055- 05"]
[null,"19050","300013","ARGELIA                       ","- 19",null,{"$f":"CONCATENATE(D70,B70,E70)","v":"ARGELIA                       19050- 19"}]
[null,"76054","300003","ARGELIA                       ","- 76",null,"ARGELIA                       76054- 76"]
[null,"47058","300014","ARIGUANÍ                      ","- 47",null,"ARIGUANÍ                      47058- 47"]
[null,"13052","300014","ARJONA             ","- 13",null,"ARJONA             13052- 13"]
[null,"05059","300005","ARMENIA                       ","- 05",null,"ARMENIA                       05059- 05"]
[null,"63001","300015","ARMENIA                       ","- 63",null,"ARMENIA                       63001- 63"]
[null,"73055","300006","ARMERO                        ","- 73",null,"ARMERO                        73055- 73"]
[null,"13062","300014","ARROYOHONDO             ","- 13",null,"ARROYOHONDO             13062- 13"]
[null,"20032","300017","ASTREA                        ","- 20",null,"ASTREA                        20032- 20"]
[null,"73067","300006","ATACO                         ","- 73",null,"ATACO                         73067- 73"]
[null,"27050","300053","ATRATO                        ","- 27",null,"ATRATO                        27050- 27"]
[null,"23068","300021","AYAPEL                        ","- 23",null,"AYAPEL                        23068- 23"]
[null,"27073","300053","BAGADÓ                        ","- 27",null,"BAGADÓ                        27073- 27"]
[null,"27075","300053","BAHÍA SOLANO                  ","- 27",null,"BAHÍA SOLANO                  27075- 27"]
[null,"27077","300053","BAJO BAUDÓ                    ","- 27",null,"BAJO BAUDÓ                    27077- 27"]
[null,"19075","300013","BALBOA                        ","- 19",null,"BALBOA                        19075- 19"]
[null,"66075","300009","BALBOA                        ","- 66",null,"BALBOA                        66075- 66"]
[null,"08078","300008","BARANOA           ","- 08",null,"BARANOA           08078- 08"]
[null,"41078","300012","BARAYA                        ","- 41",null,"BARAYA                        41078- 41"]
[null,"52079","300050","BARBACOAS                     ","- 52",null,"BARBACOAS                     52079- 52"]
[null,"05079","300005","BARBOSA                       ","- 05",null,"BARBOSA                       05079- 05"]
[null,"68077","300002","BARBOSA                       ","- 68",null,"BARBOSA                       68077- 68"]
[null,"68079","300002","BARICHARA                     ","- 68",null,"BARICHARA                     68079- 68"]
[null,"50110","300010","BARRANCA DE UPÍA              ","- 50",null,"BARRANCA DE UPÍA              50110- 50"]
[null,"68081","300016","BARRANCABERMEJA               ","- 68",null,"BARRANCABERMEJA               68081- 68"]
[null,"44078","300021","BARRANCAS                     ","- 44",null,"BARRANCAS                     44078- 44"]
[null,"13074","300014","BARRANCO DE LOBA             ","- 13",null,"BARRANCO DE LOBA             13074- 13"]
[null,"94343","300051","BARRANCO MINAS                ","- 94",null,"BARRANCO MINAS                94343- 94"]
[null,"08001","300008","BARRANQUILLA           ","- 08",null,"BARRANQUILLA           08001- 08"]
[null,"20045","300017","BECERRIL                      ","- 20",null,"BECERRIL                      20045- 20"]
[null,"17088","300007","BELALCÁZAR                    ","- 17",null,"BELALCÁZAR                    17088- 17"]
[null,"15087","300011","BELÉN            ","- 15",null,"BELÉN            15087- 15"]
[null,"52083","300050","BELÉN                         ","- 52",null,"BELÉN                         52083- 52"]
[null,"27086","300053","BELEN DE BAJIRA               ","- 27",null,"BELEN DE BAJIRA               27086- 27"]
[null,"18094","300018","BELÉN DE LOS ANDAQUÍES        ","- 18",null,"BELÉN DE LOS ANDAQUÍES        18094- 18"]
[null,"66088","300009","BELÉN DE UMBRÍA               ","- 66",null,"BELÉN DE UMBRÍA               66088- 66"]
[null,"05088","300005","BELLO                         ","- 05",null,"BELLO                         05088- 05"]
[null,"05086","300005","BELMIRA                       ","- 05",null,"BELMIRA                       05086- 05"]
[null,"25086","300001","BELTRÁN                       ","- 25",null,"BELTRÁN                       25086- 25"]
[null,"15090","300011","BERBEO           ","- 15",null,"BERBEO           15090- 15"]
[null,"05091","300005","BETANIA                       ","- 05",null,"BETANIA                       05091- 05"]
[null,"15092","300011","BETÉITIVA           ","- 15",null,"BETÉITIVA           15092- 15"]
[null,"05093","300005","BETULIA                       ","- 05",null,"BETULIA                       05093- 05"]
[null,"68092","300002","BETULIA                       ","- 68",null,"BETULIA                       68092- 68"]
[null,"25095","300001","BITUIMA                       ","- 25",null,"BITUIMA                       25095- 25"]
[null,"15097","300011","BOAVITA             ","- 15",null,"BOAVITA             15097- 15"]
[null,"54099","300004","BOCHALEMA                     ","- 54",null,"BOCHALEMA                     54099- 54"]
[null,"11001","300001","BOGOTA D.C.          ","- 11",null,"BOGOTA D.C.          11001- 11"]
[null,"25099","300001","BOJACÁ                        ","- 25",null,"BOJACÁ                        25099- 25"]
[null,"27099","300053","BOJAYÁ                        ","- 27",null,"BOJAYÁ                        27099- 27"]
[null,"19100","300013","BOLÍVAR                       ","- 19",null,"BOLÍVAR                       19100- 19"]
[null,"68101","300002","BOLÍVAR                       ","- 68",null,"BOLÍVAR                       68101- 68"]
[null,"76100","300003","BOLÍVAR                       ","- 76",null,"BOLÍVAR                       76100- 76"]
[null,"20060","300017","BOSCONIA                      ","- 20",null,"BOSCONIA                      20060- 20"]
[null,"15104","300011","BOYACÁ           ","- 15",null,"BOYACÁ           15104- 15"]
[null,"15106","300011","BRICEÑO             ","- 15",null,"BRICEÑO             15106- 15"]
[null,"05107","300005","BRICEÑO                       ","- 05",null,"BRICEÑO                       05107- 05"]
[null,"68001","300002","BUCARAMANGA                   ","- 68",null,"BUCARAMANGA                   68001- 68"]
[null,"54109","300004","BUCARASICA                    ","- 54",null,"BUCARASICA                    54109- 54"]
[null,"76109","300003","BUENAVENTURA                  ","- 76",null,"BUENAVENTURA                  76109- 76"]
[null,"15109","300011","BUENAVISTA             ","- 15",null,"BUENAVISTA             15109- 15"]
[null,"23079","300021","BUENAVISTA                    ","- 23",null,"BUENAVISTA                    23079- 23"]
[null,"63111","300015","BUENAVISTA                    ","- 63",null,"BUENAVISTA                    63111- 63"]
[null,"70110","300017","BUENAVISTA                    ","- 70",null,"BUENAVISTA                    70110- 70"]
[null,"19110","300013","BUENOS AIRES                  ","- 19",null,{"$f":"CONCATENATE(D134,B134,E134)","v":"BUENOS AIRES                  19110- 19"}]
[null,"52110","300050","BUESACO                       ","- 52",null,"BUESACO                       52110- 52"]
[null,"76111","300003","BUGA                          ","- 76",null,"BUGA                          76111- 76"]
[null,"76113","300003","BUGALAGRANDE                  ","- 76",null,"BUGALAGRANDE                  76113- 76"]
[null,"05113","300005","BURITICA                      ","- 05",null,"BURITICA                      05113- 05"]
[null,"15114","300011","BUSBANZÁ            ","- 15",null,"BUSBANZÁ            15114- 15"]
[null,"25120","300001","CABRERA                       ","- 25",null,"CABRERA                       25120- 25"]
[null,"68121","300002","CABRERA                       ","- 68",null,"CABRERA                       68121- 68"]
[null,"50124","300010","CABUYARO                      ","- 50",null,"CABUYARO                      50124- 50"]
[null,"94886","300051","CACAHUAL                      ","- 94",null,"CACAHUAL                      94886- 94"]
[null,"05120","300005","CACERES                       ","- 05",null,"CACERES                       05120- 05"]
[null,"25123","300001","CACHIPAY                      ","- 25",null,"CACHIPAY                      25123- 25"]
[null,"54128","300004","CÁCHIRA                       ","- 54",null,"CÁCHIRA                       54128- 54"]
[null,"54125","300004","CÁCOTA                        ","- 54",null,"CÁCOTA                        54125- 54"]
[null,"05125","300005","CAICEDO                       ","- 05",null,"CAICEDO                       05125- 05"]
[null,"76122","300003","CAICEDONIA                    ","- 76",null,"CAICEDONIA                    76122- 76"]
[null,"70124","300017","CAIMITO                       ","- 70",null,"CAIMITO                       70124- 70"]
[null,"73124","300006","CAJAMARCA                     ","- 73",null,"CAJAMARCA                     73124- 73"]
[null,"19130","300013","CAJIBÍO                       ","- 19",null,"CAJIBÍO                       19130- 19"]
[null,"25126","300001","CAJICÁ                        ","- 25",null,"CAJICÁ                        25126- 25"]
[null,"13140","300014","CALAMAR               ","- 13",null,"CALAMAR               13140- 13"]
[null,"95015","300051","CALAMAR                       ","- 95",null,"CALAMAR                       95015- 95"]
[null,"63130","300015","CALARCÁ                       ","- 63",null,"CALARCÁ                       63130- 63"]
[null,"15131","300011","CALDAS           ","- 15",null,"CALDAS           15131- 15"]
[null,"05129","300005","CALDAS                        ","- 05",null,"CALDAS                        05129- 05"]
[null,"19137","300013","CALDONO                       ","- 19",null,"CALDONO                       19137- 19"]
[null,"76001","300003","CALI                          ","- 76",null,"CALI                          76001- 76"]
[null,"68132","300002","CALIFORNIA                    ","- 68",null,"CALIFORNIA                    68132- 68"]
[null,"76126","300003","CALIMA                        ","- 76",null,"CALIMA                        76126- 76"]
[null,"19142","300013","CALOTO                        ","- 19",null,"CALOTO                        19142- 19"]
[null,"05134","300005","CAMPAMENTO                    ","- 05",null,"CAMPAMENTO                    05134- 05"]
[null,"08137","300008","CAMPO DE LA CRUZ          ","- 08",null,"CAMPO DE LA CRUZ          08137- 08"]
[null,"41132","300012","CAMPOALEGRE                   ","- 41",null,"CAMPOALEGRE                   41132- 41"]
[null,"15135","300011","CAMPOHERMOSO           ","- 15",null,"CAMPOHERMOSO           15135- 15"]
[null,"23090","300021","CANALETE                      ","- 23",null,"CANALETE                      23090- 23"]
[null,"08141","300008","CANDELARIA            ","- 08",null,"CANDELARIA            08141- 08"]
[null,"76130","300003","CANDELARIA                    ","- 76",null,"CANDELARIA                    76130- 76"]
[null,"13160","300014","CANTAGALLO              ","- 13",null,"CANTAGALLO              13160- 13"]
[null,"27135","300053","CANTÓN DEL SAN PABLO          ","- 27",null,"CANTÓN DEL SAN PABLO          27135- 27"]
[null,"05138","300005","CAÑASGORDAS                   ","- 05",null,"CAÑASGORDAS                   05138- 05"]
[null,"25148","300001","CAPARRAPÍ                     ","- 25",null,"CAPARRAPÍ                     25148- 25"]
[null,"68147","300002","CAPITANEJO                    ","- 68",null,"CAPITANEJO                    68147- 68"]
[null,"25151","300001","CAQUEZA                       ","- 25",null,"CAQUEZA                       25151- 25"]
[null,"05142","300005","CARACOLI                      ","- 05",null,"CARACOLI                      05142- 05"]
[null,"05145","300005","CARAMANTA                     ","- 05",null,"CARAMANTA                     05145- 05"]
[null,"68152","300002","CARCASÍ                       ","- 68",null,"CARCASÍ                       68152- 68"]
[null,"05147","300005","CAREPA                        ","- 05",null,"CAREPA                        05147- 05"]
[null,"73148","300006","CARMEN APICALÁ                ","- 73",null,"CARMEN APICALÁ                73148- 73"]
[null,"25154","300001","CARMEN DE CARUPA              ","- 25",null,"CARMEN DE CARUPA              25154- 25"]
[null,"27150","300053","CARMEN DEL DARIEN             ","- 27",null,"CARMEN DEL DARIEN             27150- 27"]
[null,"05150","300005","CAROLINA                      ","- 05",null,"CAROLINA                      05150- 05"]
[null,"13001","300014","CARTAGENA              ","- 13",null,"CARTAGENA              13001- 13"]
[null,"18150","300018","CARTAGENA DEL CHAIRÁ          ","- 18",null,"CARTAGENA DEL CHAIRÁ          18150- 18"]
[null,"76147","300003","CARTAGO                       ","- 76",null,"CARTAGO                       76147- 76"]
[null,"97161","300051","CARURU                        ","- 97",null,"CARURU                        97161- 97"]
[null,"73152","300006","CASABIANCA                    ","- 73",null,"CASABIANCA                    73152- 73"]
[null,"50150","300010","CASTILLA LA NUEVA             ","- 50",null,"CASTILLA LA NUEVA             50150- 50"]
[null,"05154","300005","CAUCASIA                      ","- 05",null,"CAUCASIA                      05154- 05"]
[null,"68160","300002","CEPITÁ                        ","- 68",null,"CEPITÁ                        68160- 68"]
[null,"23162","300021","CERETE                        ","- 23",null,"CERETE                        23162- 23"]
[null,"15162","300011","CERINZA             ","- 15",null,"CERINZA             15162- 15"]
[null,"68162","300002","CERRITO                       ","- 68",null,"CERRITO                       68162- 68"]
[null,"47161","300014","CERRO SAN ANTONIO             ","- 47",null,"CERRO SAN ANTONIO             47161- 47"]
[null,"27160","300053","CERTEGUI                      ","- 27",null,"CERTEGUI                      27160- 27"]
[null,"52240","300050","CHACHAGUÍ                     ","- 52",null,{"$f":"CONCATENATE(D198,B198,E198)","v":"CHACHAGUÍ                     52240- 52"}]
[null,"25168","300001","CHAGUANÍ                      ","- 25",null,"CHAGUANÍ                      25168- 25"]
[null,"70230","300017","CHALÁN                        ","- 70",null,"CHALÁN                        70230- 70"]
[null,"85015","300051","CHÁMEZA                       ","- 85",null,"CHÁMEZA                       85015- 85"]
[null,"73168","300006","CHAPARRAL                     ","- 73",null,"CHAPARRAL                     73168- 73"]
[null,"68167","300002","CHARALÁ                       ","- 68",null,"CHARALÁ                       68167- 68"]
[null,"68169","300002","CHARTA                        ","- 68",null,"CHARTA                        68169- 68"]
[null,"25175","300001","CHÍA                          ","- 25",null,"CHÍA                          25175- 25"]
[null,"05172","300005","CHIGORODO                     ","- 05",null,"CHIGORODO                     05172- 05"]
[null,"23168","300021","CHIMA                         ","- 23",null,"CHIMA                         23168- 23"]
[null,"68176","300002","CHIMA                         ","- 68",null,"CHIMA                         68176- 68"]
[null,"20175","300017","CHIMICHAGUA                   ","- 20",null,"CHIMICHAGUA                   20175- 20"]
[null,"54172","300004","CHINÁCOTA                     ","- 54",null,"CHINÁCOTA                     54172- 54"]
[null,"15172","300011","CHINAVITA           ","- 15",null,"CHINAVITA           15172- 15"]
[null,"17174","300007","CHINCHINA                     ","- 17",null,"CHINCHINA                     17174- 17"]
[null,"23182","300021","CHINÚ                         ","- 23",null,"CHINÚ                         23182- 23"]
[null,"25178","300001","CHIPAQUE                      ","- 25",null,"CHIPAQUE                      25178- 25"]
[null,"68179","300002","CHIPATÁ                       ","- 68",null,"CHIPATÁ                       68179- 68"]
[null,"15176","300011","CHIQUINQUIRÁ           ","- 15",null,"CHIQUINQUIRÁ           15176- 15"]
[null,"15232","300011","CHIQUIZA                      ","- 15",null,"CHIQUIZA                      15232- 15"]
[null,"20178","300017","CHIRIGUANÁ                    ","- 20",null,"CHIRIGUANÁ                    20178- 20"]
[null,"15180","300011","CHISCAS             ","- 15",null,"CHISCAS             15180- 15"]
[null,"15183","300011","CHITA                         ","- 15",null,"CHITA                         15183- 15"]
[null,"54174","300004","CHITAGÁ                       ","- 54",null,"CHITAGÁ                       54174- 54"]
[null,"15185","300011","CHITARAQUE                    ","- 15",null,"CHITARAQUE                    15185- 15"]
[null,"15187","300011","CHIVATÁ                       ","- 15",null,"CHIVATÁ                       15187- 15"]
[null,"47170","300014","CHIVOLÓ                       ","- 47",null,"CHIVOLÓ                       47170- 47"]
[null,"15236","300011","CHIVOR                        ","- 15",null,"CHIVOR                        15236- 15"]
[null,"25181","300001","CHOACHÍ                       ","- 25",null,"CHOACHÍ                       25181- 25"]
[null,"25183","300001","CHOCONTÁ                      ","- 25",null,"CHOCONTÁ                      25183- 25"]
[null,"13188","300014","CICUCO           ","- 13",null,"CICUCO           13188- 13"]
[null,"47189","300014","CIÉNAGA                       ","- 47",null,"CIÉNAGA                       47189- 47"]
[null,"23189","300021","CIÉNAGA DE ORO                ","- 23",null,"CIÉNAGA DE ORO                23189- 23"]
[null,"15189","300011","CIENEGA                       ","- 15",null,"CIENEGA                       15189- 15"]
[null,"68190","300002","CIMITARRA                     ","- 68",null,"CIMITARRA                     68190- 68"]
[null,"63190","300015","CIRCASIA                      ","- 63",null,"CIRCASIA                      63190- 63"]
[null,"05190","300005","CISNEROS                      ","- 05",null,"CISNEROS                      05190- 05"]
[null,"05101","300005","CIUDAD BOLIVAR                ","- 05",null,"CIUDAD BOLIVAR                05101- 05"]
[null,"13222","300014","CLEMENCIA           ","- 13",null,"CLEMENCIA           13222- 13"]
[null,"05197","300005","COCORNA                       ","- 05",null,"COCORNA                       05197- 05"]
[null,"73200","300006","COELLO                        ","- 73",null,"COELLO                        73200- 73"]
[null,"25200","300001","COGUA                         ","- 25",null,"COGUA                         25200- 25"]
[null,"41206","300012","COLOMBIA                      ","- 41",null,"COLOMBIA                      41206- 41"]
[null,"52203","300050","COLÓN                         ","- 52",null,"COLÓN                         52203- 52"]
[null,"86219","300051","COLÓN                         ","- 86",null,"COLÓN                         86219- 86"]
[null,"70204","300017","COLOSÓ                        ","- 70",null,"COLOSÓ                        70204- 70"]
[null,"15204","300011","COMBITA                       ","- 15",null,"COMBITA                       15204- 15"]
[null,"05206","300005","CONCEPCION                    ","- 05",null,"CONCEPCION                    05206- 05"]
[null,"68207","300002","CONCEPCIÓN                    ","- 68",null,"CONCEPCIÓN                    68207- 68"]
[null,"05209","300005","CONCORDIA                     ","- 05",null,"CONCORDIA                     05209- 05"]
[null,"47205","300014","CONCORDIA                     ","- 47",null,"CONCORDIA                     47205- 47"]
[null,"27205","300053","CONDOTO                       ","- 27",null,"CONDOTO                       27205- 27"]
[null,"68209","300002","CONFINES                      ","- 68",null,"CONFINES                      68209- 68"]
[null,"52207","300050","CONSACÁ                       ","- 52",null,"CONSACÁ                       52207- 52"]
[null,"52210","300050","CONTADERO                     ","- 52",null,"CONTADERO                     52210- 52"]
[null,"68211","300002","CONTRATACIÓN                  ","- 68",null,"CONTRATACIÓN                  68211- 68"]
[null,"54206","300004","CONVENCIÓN                    ","- 54",null,"CONVENCIÓN                    54206- 54"]
[null,"05212","300005","COPACABANA                    ","- 05",null,"COPACABANA                    05212- 05"]
[null,"15212","300011","COPER                         ","- 15",null,"COPER                         15212- 15"]
[null,"13212","300014","CÓRDOBA             ","- 13",null,"CÓRDOBA             13212- 13"]
[null,"52215","300050","CÓRDOBA                       ","- 52",null,"CÓRDOBA                       52215- 52"]
[null,"63212","300015","CÓRDOBA                       ","- 63",null,"CÓRDOBA                       63212- 63"]
[null,"19212","300013","CORINTO                       ","- 19",null,"CORINTO                       19212- 19"]
[null,"68217","300002","COROMORO                      ","- 68",null,"COROMORO                      68217- 68"]
[null,"70215","300017","COROZAL                       ","- 70",null,{"$f":"CONCATENATE(D262,B262,E262)","v":"COROZAL                       70215- 70"}]
[null,"15215","300011","CORRALES                      ","- 15",null,"CORRALES                      15215- 15"]
[null,"25214","300001","COTA                          ","- 25",null,"COTA                          25214- 25"]
[null,"23300","300021","COTORRA                       ","- 23",null,"COTORRA                       23300- 23"]
[null,"15218","300011","COVARACHÍA                    ","- 15",null,"COVARACHÍA                    15218- 15"]
[null,"70221","300017","COVEÑAS                       ","- 70",null,"COVEÑAS                       70221- 70"]
[null,"73217","300006","COYAIMA                       ","- 73",null,"COYAIMA                       73217- 73"]
[null,"81220","300010","CRAVO NORTE                   ","- 81",null,"CRAVO NORTE                   81220- 81"]
[null,"52224","300050","CUASPUD                       ","- 52",null,"CUASPUD                       52224- 52"]
[null,"15223","300011","CUBARÁ                        ","- 15",null,"CUBARÁ                        15223- 15"]
[null,"50223","300010","CUBARRAL                      ","- 50",null,"CUBARRAL                      50223- 50"]
[null,"15224","300011","CUCAITA                       ","- 15",null,"CUCAITA                       15224- 15"]
[null,"25224","300001","CUCUNUBÁ                      ","- 25",null,"CUCUNUBÁ                      25224- 25"]
[null,"54001","300004","CUCUTA                        ","- 54",null,"CUCUTA                        54001- 54"]
[null,"54223","300004","CUCUTILLA                     ","- 54",null,"CUCUTILLA                     54223- 54"]
[null,"15226","300011","CUITIIVA                      ","- 15",null,"CUITIIVA                      15226- 15"]
[null,"50226","300010","CUMARAL                       ","- 50",null,"CUMARAL                       50226- 50"]
[null,"99773","300051","CUMARIBO                      ","- 99",null,"CUMARIBO                      99773- 99"]
[null,"52227","300050","CUMBAL                        ","- 52",null,"CUMBAL                        52227- 52"]
[null,"52233","300050","CUMBITARA                     ","- 52",null,"CUMBITARA                     52233- 52"]
[null,"73226","300006","CUNDAY                        ","- 73",null,"CUNDAY                        73226- 73"]
[null,"68229","300002","CURITÍ                        ","- 68",null,"CURITÍ                        68229- 68"]
[null,"18205","300018","CURRILLO                      ","- 18",null,"CURRILLO                      18205- 18"]
[null,"20228","300017","CURUMANÍ                      ","- 20",null,"CURUMANÍ                      20228- 20"]
[null,"05234","300005","DABEIBA                       ","- 05",null,"DABEIBA                       05234- 05"]
[null,"76233","300003","DAGUA                         ","- 76",null,"DAGUA                         76233- 76"]
[null,"44090","300021","DIBULLA                       ","- 44",null,"DIBULLA                       44090- 44"]
[null,"44098","300021","DISTRACCION                   ","- 44",null,"DISTRACCION                   44098- 44"]
[null,"73236","300006","DOLORES                       ","- 73",null,"DOLORES                       73236- 73"]
[null,"05237","300005","DON MATIAS                    ","- 05",null,"DON MATIAS                    05237- 05"]
[null,"66170","300009","DOS QUEBRADAS                 ","- 66",null,"DOS QUEBRADAS                 66170- 66"]
[null,"15238","300011","DUITAMA                       ","- 15",null,"DUITAMA                       15238- 15"]
[null,"54239","300004","DURANIA                       ","- 54",null,"DURANIA                       54239- 54"]
[null,"05240","300005","EBEJICO                       ","- 05",null,"EBEJICO                       05240- 05"]
[null,"76243","300003","EL ÁGUILA                     ","- 76",null,"EL ÁGUILA                     76243- 76"]
[null,"05250","300005","EL BAGRE          ","- 05",null,"EL BAGRE          05250- 05"]
[null,"47245","300014","EL BANCO                      ","- 47",null,"EL BANCO                      47245- 47"]
[null,"76246","300003","EL CAIRO                      ","- 76",null,"EL CAIRO                      76246- 76"]
[null,"50245","300010","EL CALVARIO                   ","- 50",null,"EL CALVARIO                   50245- 50"]
[null,"54245","300004","EL CARMEN                     ","- 54",null,"EL CARMEN                     54245- 54"]
[null,"27245","300053","EL CARMEN DE ATRATO           ","- 27",null,"EL CARMEN DE ATRATO           27245- 27"]
[null,"13244","300014","EL CARMEN DE BOLÍVAR            ","- 13",null,"EL CARMEN DE BOLÍVAR            13244- 13"]
[null,"68235","300002","EL CARMEN DE CHUCURÍ          ","- 68",null,"EL CARMEN DE CHUCURÍ          68235- 68"]
[null,"05148","300005","EL CARMEN DE VIBORAL          ","- 05",null,"EL CARMEN DE VIBORAL          05148- 05"]
[null,"50251","300010","EL CASTILLO                   ","- 50",null,"EL CASTILLO                   50251- 50"]
[null,"76248","300003","EL CERRITO                    ","- 76",null,"EL CERRITO                    76248- 76"]
[null,"52250","300050","EL CHARCO                     ","- 52",null,"EL CHARCO                     52250- 52"]
[null,"15244","300011","EL COCUY                      ","- 15",null,"EL COCUY                      15244- 15"]
[null,"25245","300001","EL COLEGIO                    ","- 25",null,"EL COLEGIO                    25245- 25"]
[null,"20238","300017","EL COPEY                      ","- 20",null,"EL COPEY                      20238- 20"]
[null,"18247","300018","EL DONCELLO                   ","- 18",null,"EL DONCELLO                   18247- 18"]
[null,"50270","300010","EL DORADO                     ","- 50",null,"EL DORADO                     50270- 50"]
[null,"76250","300003","EL DOVIO                      ","- 76",null,"EL DOVIO                      76250- 76"]
[null,"91263","300018","EL ENCANTO                    ","- 91",null,"EL ENCANTO                    91263- 91"]
[null,"15248","300011","EL ESPINO                     ","- 15",null,"EL ESPINO                     15248- 15"]
[null,"68271","300002","EL FLORIÁN                    ","- 68",null,"EL FLORIÁN                    68271- 68"]
[null,"68245","300002","EL GUACAMAYO                  ","- 68",null,"EL GUACAMAYO                  68245- 68"]
[null,"13248","300014","EL GUAMO            ","- 13",null,"EL GUAMO            13248- 13"]
[null,"44110","300021","EL MOLINO                     ","- 44",null,"EL MOLINO                     44110- 44"]
[null,"20250","300017","EL PASO                       ","- 20",null,"EL PASO                       20250- 20"]
[null,"18256","300018","EL PAUJIL                     ","- 18",null,"EL PAUJIL                     18256- 18"]
[null,"52254","300050","EL PEÑOL                      ","- 52",null,"EL PEÑOL                      52254- 52"]
[null,"13268","300014","EL PEÑÓN            ","- 13",null,"EL PEÑÓN            13268- 13"]
[null,"25258","300001","EL PEÑÓN                      ","- 25",null,"EL PEÑÓN                      25258- 25"]
[null,"68250","300002","EL PEÑÓN                      ","- 68",null,{"$f":"CONCATENATE(D326,B326,E326)","v":"EL PEÑÓN                      68250- 68"}]
[null,"47258","300014","EL PIÑÓN                      ","- 47",null,"EL PIÑÓN                      47258- 47"]
[null,"68255","300002","EL PLAYÓN                     ","- 68",null,"EL PLAYÓN                     68255- 68"]
[null,"47268","300014","EL RETÉN                      ","- 47",null,"EL RETÉN                      47268- 47"]
[null,"95025","300051","EL RETORNO                    ","- 95",null,"EL RETORNO                    95025- 95"]
[null,"70233","300017","EL ROBLE                      ","- 70",null,"EL ROBLE                      70233- 70"]
[null,"25260","300001","EL ROSAL                      ","- 25",null,"EL ROSAL                      25260- 25"]
[null,"52256","300050","EL ROSARIO                    ","- 52",null,"EL ROSARIO                    52256- 52"]
[null,"05697","300005","EL SANTUARIO           ","- 05",null,"EL SANTUARIO           05697- 05"]
[null,"52258","300050","EL TABLÓN                     ","- 52",null,"EL TABLÓN                     52258- 52"]
[null,"19256","300013","EL TAMBO                      ","- 19",null,"EL TAMBO                      19256- 19"]
[null,"52260","300050","EL TAMBO                      ","- 52",null,"EL TAMBO                      52260- 52"]
[null,"54250","300004","EL TARRA                      ","- 54",null,"EL TARRA                      54250- 54"]
[null,"54261","300004","EL ZULIA                      ","- 54",null,"EL ZULIA                      54261- 54"]
[null,"41244","300012","ELÍAS                         ","- 41",null,"ELÍAS                         41244- 41"]
[null,"68264","300002","ENCINO                        ","- 68",null,"ENCINO                        68264- 68"]
[null,"68266","300002","ENCISO                        ","- 68",null,"ENCISO                        68266- 68"]
[null,"05264","300005","ENTRERRIOS        ","- 05",null,"ENTRERRIOS        05264- 05"]
[null,"05266","300005","ENVIGADO            ","- 05",null,"ENVIGADO            05266- 05"]
[null,"73268","300006","ESPINAL                       ","- 73",null,"ESPINAL                       73268- 73"]
[null,"25269","300001","FACATATIVA                    ","- 25",null,"FACATATIVA                    25269- 25"]
[null,"73270","300006","FALÁN                         ","- 73",null,"FALÁN                         73270- 73"]
[null,"17272","300007","FILADELFIA                    ","- 17",null,"FILADELFIA                    17272- 17"]
[null,"63272","300015","FILANDIA                      ","- 63",null,"FILANDIA                      63272- 63"]
[null,"15272","300011","FIRAVITOBA                    ","- 15",null,"FIRAVITOBA                    15272- 15"]
[null,"73275","300006","FLANDES                       ","- 73",null,"FLANDES                       73275- 73"]
[null,"18001","300018","FLORENCIA                     ","- 18",null,"FLORENCIA                     18001- 18"]
[null,"19290","300013","FLORENCIA                     ","- 19",null,"FLORENCIA                     19290- 19"]
[null,"15276","300011","FLORESTA                      ","- 15",null,"FLORESTA                      15276- 15"]
[null,"76275","300003","FLORIDA                       ","- 76",null,"FLORIDA                       76275- 76"]
[null,"68276","300002","FLORIDABLANCA                 ","- 68",null,"FLORIDABLANCA                 68276- 68"]
[null,"25279","300001","FÓMEQUE                       ","- 25",null,"FÓMEQUE                       25279- 25"]
[null,"44279","300021","FONSECA                       ","- 44",null,"FONSECA                       44279- 44"]
[null,"81300","300010","FORTUL                        ","- 81",null,"FORTUL                        81300- 81"]
[null,"25281","300001","FOSCA                         ","- 25",null,"FOSCA                         25281- 25"]
[null,"52520","300050","FRANCISCO PIZARRO             ","- 52",null,"FRANCISCO PIZARRO             52520- 52"]
[null,"05282","300005","FREDONIA           ","- 05",null,"FREDONIA           05282- 05"]
[null,"73283","300006","FRESNO                        ","- 73",null,"FRESNO                        73283- 73"]
[null,"05284","300005","FRONTINO          ","- 05",null,"FRONTINO          05284- 05"]
[null,"50287","300010","FUENTE DE ORO                 ","- 50",null,"FUENTE DE ORO                 50287- 50"]
[null,"47288","300014","FUNDACIÓN                     ","- 47",null,"FUNDACIÓN                     47288- 47"]
[null,"52287","300050","FUNES                         ","- 52",null,"FUNES                         52287- 52"]
[null,"25286","300001","FUNZA                         ","- 25",null,"FUNZA                         25286- 25"]
[null,"25288","300001","FÚQUENE                       ","- 25",null,"FÚQUENE                       25288- 25"]
[null,"25290","300001","FUSAGASUGÁ                    ","- 25",null,"FUSAGASUGÁ                    25290- 25"]
[null,"25293","300001","GACHALÁ                       ","- 25",null,"GACHALÁ                       25293- 25"]
[null,"25295","300001","GACHANCIPA                    ","- 25",null,"GACHANCIPA                    25295- 25"]
[null,"15293","300011","GACHANTIVÁ                    ","- 15",null,"GACHANTIVÁ                    15293- 15"]
[null,"25297","300001","GACHETA                       ","- 25",null,"GACHETA                       25297- 25"]
[null,"68296","300002","GALÁN                         ","- 68",null,"GALÁN                         68296- 68"]
[null,"08296","300008","GALAPA            ","- 08",null,"GALAPA            08296- 08"]
[null,"70235","300017","GALERAS                       ","- 70",null,"GALERAS                       70235- 70"]
[null,"25299","300001","GAMA                          ","- 25",null,"GAMA                          25299- 25"]
[null,"20295","300017","GAMARRA                       ","- 20",null,"GAMARRA                       20295- 20"]
[null,"68298","300002","GÁMBITA                       ","- 68",null,"GÁMBITA                       68298- 68"]
[null,"15296","300011","GAMEZA                        ","- 15",null,"GAMEZA                        15296- 15"]
[null,"15299","300011","GARAGOA                       ","- 15",null,"GARAGOA                       15299- 15"]
[null,"41298","300012","GARZÓN                        ","- 41",null,"GARZÓN                        41298- 41"]
[null,"63302","300015","GÉNOVA                        ","- 63",null,"GÉNOVA                        63302- 63"]
[null,"41306","300012","GIGANTE                       ","- 41",null,"GIGANTE                       41306- 41"]
[null,"76306","300003","GINEBRA                       ","- 76",null,"GINEBRA                       76306- 76"]
[null,"05306","300005","GIRALDO            ","- 05",null,"GIRALDO            05306- 05"]
[null,"25307","300001","GIRARDOT                      ","- 25",null,"GIRARDOT                      25307- 25"]
[null,"05308","300005","GIRARDOTA          ","- 05",null,"GIRARDOTA          05308- 05"]
[null,"68307","300002","GIRÓN                         ","- 68",null,{"$f":"CONCATENATE(D390,B390,E390)","v":"GIRÓN                         68307- 68"}]
[null,"05310","300005","GOMEZ PLATA            ","- 05",null,"GOMEZ PLATA            05310- 05"]
[null,"20310","300017","GONZÁLEZ                      ","- 20",null,"GONZÁLEZ                      20310- 20"]
[null,"54313","300004","GRAMALOTE                     ","- 54",null,"GRAMALOTE                     54313- 54"]
[null,"05313","300005","GRANADA           ","- 05",null,"GRANADA           05313- 05"]
[null,"25312","300001","GRANADA                       ","- 25",null,"GRANADA                       25312- 25"]
[null,"50313","300010","GRANADA                       ","- 50",null,"GRANADA                       50313- 50"]
[null,"68318","300002","GUACA                         ","- 68",null,"GUACA                         68318- 68"]
[null,"15317","300011","GUACAMAYAS                    ","- 15",null,"GUACAMAYAS                    15317- 15"]
[null,"76318","300003","GUACARÍ                       ","- 76",null,"GUACARÍ                       76318- 76"]
[null,"25317","300001","GUACHETÁ                      ","- 25",null,"GUACHETÁ                      25317- 25"]
[null,"52317","300050","GUACHUCAL                     ","- 52",null,"GUACHUCAL                     52317- 52"]
[null,"05315","300005","GUADALUPE          ","- 05",null,"GUADALUPE          05315- 05"]
[null,"41319","300012","GUADALUPE                     ","- 41",null,"GUADALUPE                     41319- 41"]
[null,"68320","300002","GUADALUPE                     ","- 68",null,"GUADALUPE                     68320- 68"]
[null,"25320","300001","GUADUAS                       ","- 25",null,"GUADUAS                       25320- 25"]
[null,"52320","300050","GUAITARILLA                   ","- 52",null,"GUAITARILLA                   52320- 52"]
[null,"52323","300050","GUALMATÁN                     ","- 52",null,"GUALMATÁN                     52323- 52"]
[null,"47318","300014","GUAMAL                        ","- 47",null,"GUAMAL                        47318- 47"]
[null,"50318","300010","GUAMAL                        ","- 50",null,"GUAMAL                        50318- 50"]
[null,"73319","300006","GUAMO                         ","- 73",null,"GUAMO                         73319- 73"]
[null,"19318","300013","GUAPI                         ","- 19",null,"GUAPI                         19318- 19"]
[null,"68322","300002","GUAPOTÁ                       ","- 68",null,"GUAPOTÁ                       68322- 68"]
[null,"70265","300017","GUARANDA                      ","- 70",null,"GUARANDA                      70265- 70"]
[null,"05318","300005","GUARNE          ","- 05",null,"GUARNE          05318- 05"]
[null,"25322","300001","GUASCA                        ","- 25",null,"GUASCA                        25322- 25"]
[null,"05321","300005","GUATAPE            ","- 05",null,"GUATAPE            05321- 05"]
[null,"25324","300001","GUATAQUÍ                      ","- 25",null,"GUATAQUÍ                      25324- 25"]
[null,"25326","300001","GUATAVITA                     ","- 25",null,"GUATAVITA                     25326- 25"]
[null,"15322","300011","GUATEQUE                      ","- 15",null,"GUATEQUE                      15322- 15"]
[null,"66318","300009","GUÁTICA                       ","- 66",null,"GUÁTICA                       66318- 66"]
[null,"68324","300002","GUAVATÁ                       ","- 68",null,"GUAVATÁ                       68324- 68"]
[null,"25328","300001","GUAYABAL DE SÍQUIMA           ","- 25",null,"GUAYABAL DE SÍQUIMA           25328- 25"]
[null,"25335","300001","GUAYABETAL                    ","- 25",null,"GUAYABETAL                    25335- 25"]
[null,"15325","300011","GUAYATÁ                       ","- 15",null,"GUAYATÁ                       15325- 15"]
[null,"68327","300002","GUEPSA                        ","- 68",null,"GUEPSA                        68327- 68"]
[null,"15332","300011","GÜICÁN                        ","- 15",null,"GÜICÁN                        15332- 15"]
[null,"25339","300001","GUTIÉRREZ                     ","- 25",null,"GUTIÉRREZ                     25339- 25"]
[null,"54344","300004","HACARÍ                        ","- 54",null,"HACARÍ                        54344- 54"]
[null,"13300","300014","HATILLO DE LOBA           ","- 13",null,"HATILLO DE LOBA           13300- 13"]
[null,"68344","300002","HATO                          ","- 68",null,"HATO                          68344- 68"]
[null,"85125","300051","HATO COROZAL                  ","- 85",null,"HATO COROZAL                  85125- 85"]
[null,"44378","300021","HATONUEVO                     ","- 44",null,"HATONUEVO                     44378- 44"]
[null,"05347","300005","HELICONIA          ","- 05",null,"HELICONIA          05347- 05"]
[null,"54347","300004","HERRÁN                        ","- 54",null,"HERRÁN                        54347- 54"]
[null,"73347","300006","HERVEO                        ","- 73",null,"HERVEO                        73347- 73"]
[null,"05353","300005","HISPANIA            ","- 05",null,"HISPANIA            05353- 05"]
[null,"41349","300012","HOBO                          ","- 41",null,"HOBO                          41349- 41"]
[null,"73349","300006","HONDA                         ","- 73",null,"HONDA                         73349- 73"]
[null,"73001","300006","IBAGUE                        ","- 73",null,"IBAGUE                        73001- 73"]
[null,"73352","300006","ICONONZO                      ","- 73",null,"ICONONZO                      73352- 73"]
[null,"52352","300050","ILES                          ","- 52",null,"ILES                          52352- 52"]
[null,"52354","300050","IMUÉS                         ","- 52",null,"IMUÉS                         52354- 52"]
[null,"94001","300051","INÍRIDA                       ","- 94",null,"INÍRIDA                       94001- 94"]
[null,"19355","300013","INZÁ                          ","- 19",null,"INZÁ                          19355- 19"]
[null,"52356","300050","IPIALES                       ","- 52",null,"IPIALES                       52356- 52"]
[null,"41357","300012","IQUIRA                        ","- 41",null,"IQUIRA                        41357- 41"]
[null,"41359","300012","ISNOS                         ","- 41",null,"ISNOS                         41359- 41"]
[null,"27361","300053","ISTMINA                       ","- 27",null,"ISTMINA                       27361- 27"]
[null,"05360","300005","ITAGÜI           ","- 05",null,"ITAGÜI           05360- 05"]
[null,"05361","300005","ITUANGO          ","- 05",null,"ITUANGO          05361- 05"]
[null,"15362","300011","IZA                           ","- 15",null,"IZA                           15362- 15"]
[null,"19364","300013","JAMBALÓ                       ","- 19",null,"JAMBALÓ                       19364- 19"]
[null,"76364","300003","JAMUNDI                       ","- 76",null,"JAMUNDI                       76364- 76"]
[null,"05364","300005","JARDIN          ","- 05",null,{"$f":"CONCATENATE(D454,B454,E454)","v":"JARDIN          05364- 05"}]
[null,"15367","300011","JENESANO                      ","- 15",null,"JENESANO                      15367- 15"]
[null,"05368","300005","JERICO          ","- 05",null,"JERICO          05368- 05"]
[null,"15368","300011","JERICÓ                        ","- 15",null,"JERICÓ                        15368- 15"]
[null,"25368","300001","JERUSALÉN                     ","- 25",null,"JERUSALÉN                     25368- 25"]
[null,"68368","300002","JESÚS MARÍA                   ","- 68",null,"JESÚS MARÍA                   68368- 68"]
[null,"68370","300002","JORDÁN                        ","- 68",null,"JORDÁN                        68370- 68"]
[null,"08372","300008","JUAN DE ACOSTA          ","- 08",null,"JUAN DE ACOSTA          08372- 08"]
[null,"25372","300001","JUNÍN                         ","- 25",null,"JUNÍN                         25372- 25"]
[null,"27372","300053","JURADÓ                        ","- 27",null,"JURADÓ                        27372- 27"]
[null,"23350","300021","LA APARTADA                   ","- 23",null,"LA APARTADA                   23350- 23"]
[null,"41378","300012","LA ARGENTINA                  ","- 41",null,"LA ARGENTINA                  41378- 41"]
[null,"68377","300002","LA BELLEZA                    ","- 68",null,"LA BELLEZA                    68377- 68"]
[null,"25377","300001","LA CALERA                     ","- 25",null,"LA CALERA                     25377- 25"]
[null,"15380","300011","LA CAPILLA                    ","- 15",null,"LA CAPILLA                    15380- 15"]
[null,"05376","300005","LA CEJA          ","- 05",null,"LA CEJA          05376- 05"]
[null,"66383","300009","LA CELIA                      ","- 66",null,"LA CELIA                      66383- 66"]
[null,"91405","300018","LA CHORRERA                   ","- 91",null,"LA CHORRERA                   91405- 91"]
[null,"52378","300050","LA CRUZ                       ","- 52",null,"LA CRUZ                       52378- 52"]
[null,"76377","300003","LA CUMBRE                     ","- 76",null,"LA CUMBRE                     76377- 76"]
[null,"17380","300007","LA DORADA                     ","- 17",null,"LA DORADA                     17380- 17"]
[null,"54385","300004","LA ESPERANZA                  ","- 54",null,"LA ESPERANZA                  54385- 54"]
[null,"05380","300005","LA ESTRELLA          ","- 05",null,"LA ESTRELLA          05380- 05"]
[null,"52381","300050","LA FLORIDA                    ","- 52",null,"LA FLORIDA                    52381- 52"]
[null,"20383","300017","LA GLORIA                     ","- 20",null,"LA GLORIA                     20383- 20"]
[null,"94885","300051","LA GUADALUPE                  ","- 94",null,"LA GUADALUPE                  94885- 94"]
[null,"20400","300017","LA JAGUA DE IBIRICO           ","- 20",null,"LA JAGUA DE IBIRICO           20400- 20"]
[null,"44420","300021","LA JAGUA DEL PILAR            ","- 44",null,"LA JAGUA DEL PILAR            44420- 44"]
[null,"52385","300050","LA LLANADA                    ","- 52",null,"LA LLANADA                    52385- 52"]
[null,"50350","300010","LA MACARENA                   ","- 50",null,"LA MACARENA                   50350- 50"]
[null,"17388","300007","LA MERCED                     ","- 17",null,"LA MERCED                     17388- 17"]
[null,"25386","300001","LA MESA                       ","- 25",null,"LA MESA                       25386- 25"]
[null,"18410","300018","LA MONTAÑITA                  ","- 18",null,"LA MONTAÑITA                  18410- 18"]
[null,"25394","300001","LA PALMA                      ","- 25",null,"LA PALMA                      25394- 25"]
[null,"20621","300017","LA PAZ                        ","- 20",null,"LA PAZ                        20621- 20"]
[null,"68397","300002","LA PAZ                        ","- 68",null,"LA PAZ                        68397- 68"]
[null,"91407","300018","LA PEDRERA                    ","- 91",null,"LA PEDRERA                    91407- 91"]
[null,"25398","300001","LA PEÑA                       ","- 25",null,"LA PEÑA                       25398- 25"]
[null,"05390","300005","LA PINTADA           ","- 05",null,"LA PINTADA           05390- 05"]
[null,"41396","300012","LA PLATA                      ","- 41",null,"LA PLATA                      41396- 41"]
[null,"54398","300004","LA PLAYA                      ","- 54",null,"LA PLAYA                      54398- 54"]
[null,"99524","300051","LA PRIMAVERA                  ","- 99",null,"LA PRIMAVERA                  99524- 99"]
[null,"85136","300051","LA SALINA                     ","- 85",null,"LA SALINA                     85136- 85"]
[null,"19392","300013","LA SIERRA                     ","- 19",null,"LA SIERRA                     19392- 19"]
[null,"63401","300015","LA TEBAIDA                    ","- 63",null,"LA TEBAIDA                    63401- 63"]
[null,"52390","300050","LA TOLA                       ","- 52",null,"LA TOLA                       52390- 52"]
[null,"05400","300005","LA UNION          ","- 05",null,"LA UNION          05400- 05"]
[null,"52399","300050","LA UNIÓN                      ","- 52",null,"LA UNIÓN                      52399- 52"]
[null,"70400","300017","LA UNIÓN                      ","- 70",null,"LA UNIÓN                      70400- 70"]
[null,"76400","300003","LA UNIÓN                      ","- 76",null,"LA UNIÓN                      76400- 76"]
[null,"15403","300011","LA UVITA                      ","- 15",null,"LA UVITA                      15403- 15"]
[null,"19397","300013","LA VEGA                       ","- 19",null,"LA VEGA                       19397- 19"]
[null,"25402","300001","LA VEGA                       ","- 25",null,"LA VEGA                       25402- 25"]
[null,"15401","300011","LA VICTORIA                   ","- 15",null,"LA VICTORIA                   15401- 15"]
[null,"76403","300003","LA VICTORIA                   ","- 76",null,"LA VICTORIA                   76403- 76"]
[null,"91430","300018","LA VICTORIA                   ","- 91",null,"LA VICTORIA                   91430- 91"]
[null,"66400","300009","LA VIRGINIA                   ","- 66",null,"LA VIRGINIA                   66400- 66"]
[null,"54377","300004","LABATECA                      ","- 54",null,"LABATECA                      54377- 54"]
[null,"15377","300011","LABRANZAGRANDE                ","- 15",null,"LABRANZAGRANDE                15377- 15"]
[null,"68385","300002","LANDÁZURI                     ","- 68",null,"LANDÁZURI                     68385- 68"]
[null,"68406","300002","LEBRIJA                       ","- 68",null,"LEBRIJA                       68406- 68"]
[null,"52405","300050","LEIVA                         ","- 52",null,"LEIVA                         52405- 52"]
[null,"50400","300010","LEJANÍAS                      ","- 50",null,"LEJANÍAS                      50400- 50"]
[null,"25407","300001","LENGUAZAQUE                   ","- 25",null,"LENGUAZAQUE                   25407- 25"]
[null,"73408","300006","LÉRIDA                        ","- 73",null,{"$f":"CONCATENATE(D518,B518,E518)","v":"LÉRIDA                        73408- 73"}]
[null,"91001","300018","LETICIA                       ","- 91",null,"LETICIA                       91001- 91"]
[null,"73411","300006","LIBANO                        ","- 73",null,"LIBANO                        73411- 73"]
[null,"05411","300005","LIBORINA          ","- 05",null,"LIBORINA          05411- 05"]
[null,"52411","300050","LINARES                       ","- 52",null,"LINARES                       52411- 52"]
[null,"27250","300053","LITORAL DEL BAJO SAN JUAN     ","- 27",null,"LITORAL DEL BAJO SAN JUAN     27250- 27"]
[null,"27413","300053","LLORÓ                         ","- 27",null,"LLORÓ                         27413- 27"]
[null,"19418","300013","LÓPEZ                         ","- 19",null,"LÓPEZ                         19418- 19"]
[null,"23417","300021","LORICA                        ","- 23",null,"LORICA                        23417- 23"]
[null,"52418","300050","LOS ANDES                     ","- 52",null,"LOS ANDES                     52418- 52"]
[null,"23419","300021","LOS CÓRDOBAS                  ","- 23",null,"LOS CÓRDOBAS                  23419- 23"]
[null,"70418","300017","LOS PALMITOS                  ","- 70",null,"LOS PALMITOS                  70418- 70"]
[null,"54405","300004","LOS PATIOS                    ","- 54",null,"LOS PATIOS                    54405- 54"]
[null,"68418","300002","LOS SANTOS                    ","- 68",null,"LOS SANTOS                    68418- 68"]
[null,"54418","300004","LOURDES                       ","- 54",null,"LOURDES                       54418- 54"]
[null,"08421","300008","LURUACO            ","- 08",null,"LURUACO            08421- 08"]
[null,"15425","300011","MACANAL                       ","- 15",null,"MACANAL                       15425- 15"]
[null,"68425","300002","MACARAVITA                    ","- 68",null,"MACARAVITA                    68425- 68"]
[null,"05425","300005","MACEO          ","- 05",null,"MACEO          05425- 05"]
[null,"25426","300001","MACHETÁ                       ","- 25",null,"MACHETÁ                       25426- 25"]
[null,"25430","300001","MADRID                        ","- 25",null,"MADRID                        25430- 25"]
[null,"13430","300014","MAGANGUÉ            ","- 13",null,"MAGANGUÉ            13430- 13"]
[null,"52427","300050","MAGUÍ                         ","- 52",null,"MAGUÍ                         52427- 52"]
[null,"13433","300014","MAHATES             ","- 13",null,"MAHATES             13433- 13"]
[null,"44430","300021","MAICAO                        ","- 44",null,"MAICAO                        44430- 44"]
[null,"70429","300017","MAJAGUAL                      ","- 70",null,"MAJAGUAL                      70429- 70"]
[null,"68432","300002","MÁLAGA                        ","- 68",null,"MÁLAGA                        68432- 68"]
[null,"08433","300008","MALAMBO            ","- 08",null,"MALAMBO            08433- 08"]
[null,"52435","300050","MALLAMA                       ","- 52",null,"MALLAMA                       52435- 52"]
[null,"08436","300008","MANATÍ            ","- 08",null,"MANATÍ            08436- 08"]
[null,"20443","300017","MANAURE                       ","- 20",null,"MANAURE                       20443- 20"]
[null,"44560","300021","MANAURE                       ","- 44",null,"MANAURE                       44560- 44"]
[null,"85139","300051","MANÍ                          ","- 85",null,"MANÍ                          85139- 85"]
[null,"17001","300007","MANIZALES                     ","- 17",null,"MANIZALES                     17001- 17"]
[null,"25436","300001","MANTA                         ","- 25",null,"MANTA                         25436- 25"]
[null,"17433","300007","MANZANARES                    ","- 17",null,"MANZANARES                    17433- 17"]
[null,"50325","300010","MAPIRIPÁN                     ","- 50",null,"MAPIRIPÁN                     50325- 50"]
[null,"94663","300051","MAPIRIPANA                    ","- 94",null,"MAPIRIPANA                    94663- 94"]
[null,"13440","300014","MARGARITA           ","- 13",null,"MARGARITA           13440- 13"]
[null,"13442","300014","MARÍA LA BAJA             ","- 13",null,"MARÍA LA BAJA             13442- 13"]
[null,"05440","300005","MARINILLA          ","- 05",null,"MARINILLA          05440- 05"]
[null,"15442","300011","MARIPÍ                        ","- 15",null,"MARIPÍ                        15442- 15"]
[null,"73443","300006","MARIQUITA                     ","- 73",null,"MARIQUITA                     73443- 73"]
[null,"17442","300007","MARMATO                       ","- 17",null,"MARMATO                       17442- 17"]
[null,"17444","300007","MARQUETALIA                   ","- 17",null,"MARQUETALIA                   17444- 17"]
[null,"66440","300009","MARSELLA                      ","- 66",null,"MARSELLA                      66440- 66"]
[null,"17446","300007","MARULANDA                     ","- 17",null,"MARULANDA                     17446- 17"]
[null,"68444","300002","MATANZA                       ","- 68",null,"MATANZA                       68444- 68"]
[null,"05001","300005","MEDELLIN                      ","- 05",null,"MEDELLIN                      05001- 05"]
[null,"25438","300001","MEDINA                        ","- 25",null,"MEDINA                        25438- 25"]
[null,"27425","300053","MEDIO ATRATO                  ","- 27",null,"MEDIO ATRATO                  27425- 27"]
[null,"27430","300053","MEDIO BAUDO                   ","- 27",null,"MEDIO BAUDO                   27430- 27"]
[null,"27450","300053","MEDIO SAN JUAN                ","- 27",null,"MEDIO SAN JUAN                27450- 27"]
[null,"73449","300006","MELGAR                        ","- 73",null,"MELGAR                        73449- 73"]
[null,"19450","300013","MERCADERES                    ","- 19",null,"MERCADERES                    19450- 19"]
[null,"50330","300010","MESETAS                       ","- 50",null,"MESETAS                       50330- 50"]
[null,"18460","300018","MILÁN                         ","- 18",null,"MILÁN                         18460- 18"]
[null,"15455","300011","MIRAFLORES                    ","- 15",null,"MIRAFLORES                    15455- 15"]
[null,"95200","300051","MIRAFLORES                    ","- 95",null,"MIRAFLORES                    95200- 95"]
[null,"19455","300013","MIRANDA                       ","- 19",null,"MIRANDA                       19455- 19"]
[null,"91460","300018","MIRITÍ-PARANÁ                 ","- 91",null,"MIRITÍ-PARANÁ                 91460- 91"]
[null,"66456","300009","MISTRATÓ                      ","- 66",null,"MISTRATÓ                      66456- 66"]
[null,"97001","300051","MITÚ                          ","- 97",null,"MITÚ                          97001- 97"]
[null,"86001","300051","MOCOA                         ","- 86",null,"MOCOA                         86001- 86"]
[null,"68464","300002","MOGOTES                       ","- 68",null,{"$f":"CONCATENATE(D582,B582,E582)","v":"MOGOTES                       68464- 68"}]
[null,"68468","300002","MOLAGAVITA                    ","- 68",null,"MOLAGAVITA                    68468- 68"]
[null,"23464","300021","MOMIL                         ","- 23",null,"MOMIL                         23464- 23"]
[null,"13468","300014","MOMPÓS           ","- 13",null,"MOMPÓS           13468- 13"]
[null,"15464","300011","MONGUA                        ","- 15",null,"MONGUA                        15464- 15"]
[null,"15466","300011","MONGUÍ                        ","- 15",null,"MONGUÍ                        15466- 15"]
[null,"15469","300011","MONIQUIRÁ                     ","- 15",null,"MONIQUIRÁ                     15469- 15"]
[null,"05467","300005","MONTEBELLO           ","- 05",null,"MONTEBELLO           05467- 05"]
[null,"13458","300014","MONTECRISTO            ","- 13",null,"MONTECRISTO            13458- 13"]
[null,"23466","300021","MONTELÍBANO                   ","- 23",null,"MONTELÍBANO                   23466- 23"]
[null,"63470","300015","MONTENEGRO                    ","- 63",null,"MONTENEGRO                    63470- 63"]
[null,"23001","300021","MONTERIA                      ","- 23",null,"MONTERIA                      23001- 23"]
[null,"85162","300051","MONTERREY                     ","- 85",null,"MONTERREY                     85162- 85"]
[null,"23500","300021","MOÑITOS                       ","- 23",null,"MOÑITOS                       23500- 23"]
[null,"13473","300014","MORALES             ","- 13",null,"MORALES             13473- 13"]
[null,"19473","300013","MORALES                       ","- 19",null,"MORALES                       19473- 19"]
[null,"18479","300018","MORELIA                       ","- 18",null,"MORELIA                       18479- 18"]
[null,"94888","300051","MORICHAL NUEVO                ","- 94",null,"MORICHAL NUEVO                94888- 94"]
[null,"70473","300017","MORROA                        ","- 70",null,"MORROA                        70473- 70"]
[null,"25473","300001","MOSQUERA                      ","- 25",null,"MOSQUERA                      25473- 25"]
[null,"52473","300050","MOSQUERA                      ","- 52",null,"MOSQUERA                      52473- 52"]
[null,"15476","300011","MOTAVITA                      ","- 15",null,"MOTAVITA                      15476- 15"]
[null,"73461","300006","MURILLO                       ","- 73",null,"MURILLO                       73461- 73"]
[null,"05475","300005","MURINDO          ","- 05",null,"MURINDO          05475- 05"]
[null,"05480","300005","MUTATA          ","- 05",null,"MUTATA          05480- 05"]
[null,"54480","300004","MUTISCUA                      ","- 54",null,"MUTISCUA                      54480- 54"]
[null,"15480","300011","MUZO                          ","- 15",null,"MUZO                          15480- 15"]
[null,"05483","300005","NARIÑO                        ","- 05",null,"NARIÑO                        05483- 05"]
[null,"25483","300001","NARIÑO                        ","- 25",null,"NARIÑO                        25483- 25"]
[null,"52480","300050","NARIÑO                        ","- 52",null,"NARIÑO                        52480- 52"]
[null,"41483","300012","NÁTAGA                        ","- 41",null,"NÁTAGA                        41483- 41"]
[null,"73483","300006","NATAGAIMA                     ","- 73",null,"NATAGAIMA                     73483- 73"]
[null,"05495","300005","NECHI            ","- 05",null,"NECHI            05495- 05"]
[null,"05490","300005","NECOCLI           ","- 05",null,"NECOCLI           05490- 05"]
[null,"17486","300007","NEIRA                         ","- 17",null,"NEIRA                         17486- 17"]
[null,"41001","300012","NEIVA                         ","- 41",null,"NEIVA                         41001- 41"]
[null,"25486","300001","NEMOCÓN                       ","- 25",null,"NEMOCÓN                       25486- 25"]
[null,"25488","300001","NILO                          ","- 25",null,"NILO                          25488- 25"]
[null,"25489","300001","NIMAIMA                       ","- 25",null,"NIMAIMA                       25489- 25"]
[null,"15491","300011","NOBSA                         ","- 15",null,"NOBSA                         15491- 15"]
[null,"25491","300001","NOCAIMA                       ","- 25",null,"NOCAIMA                       25491- 25"]
[null,"17495","300007","NORCASIA                      ","- 17",null,"NORCASIA                      17495- 17"]
[null,"27491","300053","NÓVITA                        ","- 27",null,"NÓVITA                        27491- 27"]
[null,"47460","300014","NUEVA GRANADA                 ","- 47",null,"NUEVA GRANADA                 47460- 47"]
[null,"15494","300011","NUEVO COLÓN                   ","- 15",null,"NUEVO COLÓN                   15494- 15"]
[null,"85225","300051","NUNCHÍA                       ","- 85",null,"NUNCHÍA                       85225- 85"]
[null,"27495","300053","NUQUÍ                         ","- 27",null,"NUQUÍ                         27495- 27"]
[null,"76497","300003","OBANDO                        ","- 76",null,"OBANDO                        76497- 76"]
[null,"68498","300002","OCAMONTE                      ","- 68",null,"OCAMONTE                      68498- 68"]
[null,"54498","300004","OCAÑA                         ","- 54",null,"OCAÑA                         54498- 54"]
[null,"68500","300002","OIBA                          ","- 68",null,"OIBA                          68500- 68"]
[null,"15500","300011","OICATA                        ","- 15",null,"OICATA                        15500- 15"]
[null,"05501","300005","OLAYA           ","- 05",null,"OLAYA           05501- 05"]
[null,"52490","300050","OLAYA HERRERA                 ","- 52",null,"OLAYA HERRERA                 52490- 52"]
[null,"68502","300002","ONZAGA                        ","- 68",null,"ONZAGA                        68502- 68"]
[null,"41503","300012","OPORAPA                       ","- 41",null,"OPORAPA                       41503- 41"]
[null,"86320","300051","ORITO                         ","- 86",null,"ORITO                         86320- 86"]
[null,"85230","300051","OROCUÉ                        ","- 85",null,"OROCUÉ                        85230- 85"]
[null,"73504","300006","ORTEGA                        ","- 73",null,"ORTEGA                        73504- 73"]
[null,"52506","300050","OSPINA                        ","- 52",null,"OSPINA                        52506- 52"]
[null,"15507","300011","OTANCHE                       ","- 15",null,"OTANCHE                       15507- 15"]
[null,"70508","300017","OVEJAS                        ","- 70",null,"OVEJAS                        70508- 70"]
[null,"15511","300011","PACHAVITA                     ","- 15",null,"PACHAVITA                     15511- 15"]
[null,"25513","300001","PACHO                         ","- 25",null,"PACHO                         25513- 25"]
[null,"97511","300051","PACOA                         ","- 97",null,{"$f":"CONCATENATE(D646,B646,E646)","v":"PACOA                         97511- 97"}]
[null,"17513","300007","PÁCORA                        ","- 17",null,"PÁCORA                        17513- 17"]
[null,"19513","300013","PADILLA                       ","- 19",null,"PADILLA                       19513- 19"]
[null,"15514","300011","PAEZ                          ","- 15",null,"PAEZ                          15514- 15"]
[null,"19517","300013","PÁEZ                          ","- 19",null,"PÁEZ                          19517- 19"]
[null,"41518","300012","PAICOL                        ","- 41",null,"PAICOL                        41518- 41"]
[null,"20517","300017","PAILITAS                      ","- 20",null,"PAILITAS                      20517- 20"]
[null,"25518","300001","PAIME                         ","- 25",null,"PAIME                         25518- 25"]
[null,"15516","300011","PAIPA                         ","- 15",null,"PAIPA                         15516- 15"]
[null,"15518","300011","PAJARITO                      ","- 15",null,"PAJARITO                      15518- 15"]
[null,"41524","300012","PALERMO                       ","- 41",null,"PALERMO                       41524- 41"]
[null,"17524","300007","PALESTINA                     ","- 17",null,"PALESTINA                     17524- 17"]
[null,"41530","300012","PALESTINA                     ","- 41",null,"PALESTINA                     41530- 41"]
[null,"68522","300002","PALMAR                        ","- 68",null,"PALMAR                        68522- 68"]
[null,"08520","300008","PALMAR DE VARELA            ","- 08",null,"PALMAR DE VARELA            08520- 08"]
[null,"68524","300002","PALMAS DEL SOCORRO            ","- 68",null,"PALMAS DEL SOCORRO            68524- 68"]
[null,"76520","300003","PALMIRA                       ","- 76",null,"PALMIRA                       76520- 76"]
[null,"70523","300017","PALMITO                       ","- 70",null,"PALMITO                       70523- 70"]
[null,"73520","300006","PALO CABILDO                  ","- 73",null,"PALO CABILDO                  73520- 73"]
[null,"54518","300004","PAMPLONA                      ","- 54",null,"PAMPLONA                      54518- 54"]
[null,"54520","300004","PAMPLONITA                    ","- 54",null,"PAMPLONITA                    54520- 54"]
[null,"94887","300051","PANA PANA                     ","- 94",null,"PANA PANA                     94887- 94"]
[null,"25524","300001","PANDI                         ","- 25",null,"PANDI                         25524- 25"]
[null,"15522","300011","PANQUEBA                      ","- 15",null,"PANQUEBA                      15522- 15"]
[null,"97777","300051","PAPUNAHUA                     ","- 97",null,"PAPUNAHUA                     97777- 97"]
[null,"68533","300002","PÁRAMO                        ","- 68",null,"PÁRAMO                        68533- 68"]
[null,"25530","300001","PARATEBUENO                   ","- 25",null,"PARATEBUENO                   25530- 25"]
[null,"25890","300001","PARATEBUENO                   ","- 25",null,"PARATEBUENO                   25890- 25"]
[null,"25535","300001","PASCA                         ","- 25",null,"PASCA                         25535- 25"]
[null,"52001","300050","PASTO                         ","- 52",null,"PASTO                         52001- 52"]
[null,"19532","300013","PATÍA                         ","- 19",null,"PATÍA                         19532- 19"]
[null,"15531","300011","PAUNA                         ","- 15",null,"PAUNA                         15531- 15"]
[null,"15533","300011","PAYA                          ","- 15",null,"PAYA                          15533- 15"]
[null,"85250","300051","PAZ DE ARIPORO                ","- 85",null,"PAZ DE ARIPORO                85250- 85"]
[null,"15537","300011","PAZ DE RÍO                    ","- 15",null,"PAZ DE RÍO                    15537- 15"]
[null,"47541","300014","PEDRAZA                       ","- 47",null,"PEDRAZA                       47541- 47"]
[null,"20550","300017","PELAYA                        ","- 20",null,"PELAYA                        20550- 20"]
[null,"17541","300007","PENSILVANIA                   ","- 17",null,"PENSILVANIA                   17541- 17"]
[null,"05541","300005","PEÑOL           ","- 05",null,"PEÑOL           05541- 05"]
[null,"05543","300005","PEQUE            ","- 05",null,"PEQUE            05543- 05"]
[null,"66001","300009","PEREIRA                       ","- 66",null,"PEREIRA                       66001- 66"]
[null,"15542","300011","PESCA                         ","- 15",null,"PESCA                         15542- 15"]
[null,"19533","300013","PIAMONTE                      ","- 19",null,"PIAMONTE                      19533- 19"]
[null,"68547","300002","PIEDECUESTA                   ","- 68",null,"PIEDECUESTA                   68547- 68"]
[null,"73547","300006","PIEDRAS                       ","- 73",null,"PIEDRAS                       73547- 73"]
[null,"19548","300013","PIENDAMÓ                      ","- 19",null,"PIENDAMÓ                      19548- 19"]
[null,"63548","300015","PIJAO                         ","- 63",null,"PIJAO                         63548- 63"]
[null,"47545","300014","PIJINO DEL CARMEN             ","- 47",null,"PIJINO DEL CARMEN             47545- 47"]
[null,"68549","300002","PINCHOTE                      ","- 68",null,"PINCHOTE                      68549- 68"]
[null,"13549","300014","PINILLOS            ","- 13",null,"PINILLOS            13549- 13"]
[null,"08549","300008","PIOJÓ          ","- 08",null,"PIOJÓ          08549- 08"]
[null,"15550","300011","PISBA                         ","- 15",null,"PISBA                         15550- 15"]
[null,"41548","300012","PITAL                         ","- 41",null,"PITAL                         41548- 41"]
[null,"41551","300012","PITALITO                      ","- 41",null,"PITALITO                      41551- 41"]
[null,"47551","300014","PIVIJAY                       ","- 47",null,"PIVIJAY                       47551- 47"]
[null,"73555","300006","PLANADAS                      ","- 73",null,"PLANADAS                      73555- 73"]
[null,"23555","300021","PLANETA RICA                  ","- 23",null,"PLANETA RICA                  23555- 23"]
[null,"47555","300014","PLATO                         ","- 47",null,"PLATO                         47555- 47"]
[null,"52540","300050","POLICARPA                     ","- 52",null,"POLICARPA                     52540- 52"]
[null,"08558","300008","POLONUEVO         ","- 08",null,"POLONUEVO         08558- 08"]
[null,"08560","300008","PONEDERA            ","- 08",null,"PONEDERA            08560- 08"]
[null,"19001","300013","POPAYAN                       ","- 19",null,"POPAYAN                       19001- 19"]
[null,"85263","300051","PORE                          ","- 85",null,"PORE                          85263- 85"]
[null,"52560","300050","POTOSÍ                        ","- 52",null,"POTOSÍ                        52560- 52"]
[null,"76563","300003","PRADERA                       ","- 76",null,{"$f":"CONCATENATE(D710,B710,E710)","v":"PRADERA                       76563- 76"}]
[null,"73563","300006","PRADO                         ","- 73",null,"PRADO                         73563- 73"]
[null,"52565","300050","PROVIDENCIA                   ","- 52",null,"PROVIDENCIA                   52565- 52"]
[null,"88564","300053","PROVIDENCIA                   ","- 88",null,"PROVIDENCIA                   88564- 88"]
[null,"20570","300017","PUEBLO BELLO                  ","- 20",null,"PUEBLO BELLO                  20570- 20"]
[null,"23570","300021","PUEBLO NUEVO                  ","- 23",null,"PUEBLO NUEVO                  23570- 23"]
[null,"66572","300009","PUEBLO RICO                   ","- 66",null,"PUEBLO RICO                   66572- 66"]
[null,"05576","300005","PUEBLORRICO            ","- 05",null,"PUEBLORRICO            05576- 05"]
[null,"47570","300014","PUEBLOVIEJO                   ","- 47",null,"PUEBLOVIEJO                   47570- 47"]
[null,"68572","300002","PUENTE NACIONAL               ","- 68",null,"PUENTE NACIONAL               68572- 68"]
[null,"52573","300050","PUERRES                       ","- 52",null,"PUERRES                       52573- 52"]
[null,"91530","300018","PUERTO ALEGRÍA                ","- 91",null,"PUERTO ALEGRÍA                91530- 91"]
[null,"91536","300018","PUERTO ARICA                  ","- 91",null,"PUERTO ARICA                  91536- 91"]
[null,"86568","300051","PUERTO ASÍS                   ","- 86",null,"PUERTO ASÍS                   86568- 86"]
[null,"05579","300005","PUERTO BERRIO           ","- 05",null,"PUERTO BERRIO           05579- 05"]
[null,"15572","300011","PUERTO BOYACÁ                 ","- 15",null,"PUERTO BOYACÁ                 15572- 15"]
[null,"86569","300051","PUERTO CAICEDO                ","- 86",null,"PUERTO CAICEDO                86569- 86"]
[null,"99001","300051","PUERTO CARREÑO                ","- 99",null,"PUERTO CARREÑO                99001- 99"]
[null,"08573","300008","PUERTO COLOMBIA           ","- 08",null,"PUERTO COLOMBIA           08573- 08"]
[null,"94884","300051","PUERTO COLOMBIA               ","- 94",null,"PUERTO COLOMBIA               94884- 94"]
[null,"50450","300010","PUERTO CONCORDIA              ","- 50",null,"PUERTO CONCORDIA              50450- 50"]
[null,"23574","300021","PUERTO ESCONDIDO              ","- 23",null,"PUERTO ESCONDIDO              23574- 23"]
[null,"50568","300010","PUERTO GAITÁN                 ","- 50",null,"PUERTO GAITÁN                 50568- 50"]
[null,"86571","300051","PUERTO GUZMÁN                 ","- 86",null,"PUERTO GUZMÁN                 86571- 86"]
[null,"86573","300051","PUERTO LEGUÍZAMO              ","- 86",null,"PUERTO LEGUÍZAMO              86573- 86"]
[null,"23580","300021","PUERTO LIBERTADOR             ","- 23",null,"PUERTO LIBERTADOR             23580- 23"]
[null,"50577","300010","PUERTO LLERAS                 ","- 50",null,"PUERTO LLERAS                 50577- 50"]
[null,"50573","300010","PUERTO LÓPEZ                  ","- 50",null,"PUERTO LÓPEZ                  50573- 50"]
[null,"05585","300005","PUERTO NARE         ","- 05",null,"PUERTO NARE         05585- 05"]
[null,"91540","300018","PUERTO NARIÑO                 ","- 91",null,"PUERTO NARIÑO                 91540- 91"]
[null,"68573","300002","PUERTO PARRA                  ","- 68",null,"PUERTO PARRA                  68573- 68"]
[null,"18592","300018","PUERTO RICO                   ","- 18",null,"PUERTO RICO                   18592- 18"]
[null,"50590","300010","PUERTO RICO                   ","- 50",null,"PUERTO RICO                   50590- 50"]
[null,"81591","300010","PUERTO RONDON                 ","- 81",null,"PUERTO RONDON                 81591- 81"]
[null,"25572","300001","PUERTO SALGAR                 ","- 25",null,"PUERTO SALGAR                 25572- 25"]
[null,"54553","300004","PUERTO SANTANDER              ","- 54",null,"PUERTO SANTANDER              54553- 54"]
[null,"91669","300018","PUERTO SANTANDER              ","- 91",null,"PUERTO SANTANDER              91669- 91"]
[null,"19573","300013","PUERTO TEJADA                 ","- 19",null,"PUERTO TEJADA                 19573- 19"]
[null,"05591","300005","PUERTO TRIUNFO         ","- 05",null,"PUERTO TRIUNFO         05591- 05"]
[null,"68575","300002","PUERTO WILCHES                ","- 68",null,"PUERTO WILCHES                68575- 68"]
[null,"25580","300001","PULÍ                          ","- 25",null,"PULÍ                          25580- 25"]
[null,"52585","300050","PUPIALES                      ","- 52",null,"PUPIALES                      52585- 52"]
[null,"19585","300013","PURACÉ                        ","- 19",null,"PURACÉ                        19585- 19"]
[null,"73585","300006","PURIFICACIÓN                  ","- 73",null,"PURIFICACIÓN                  73585- 73"]
[null,"23586","300021","PURÍSIMA                      ","- 23",null,"PURÍSIMA                      23586- 23"]
[null,"25592","300001","QUEBRADANEGRA                 ","- 25",null,"QUEBRADANEGRA                 25592- 25"]
[null,"25594","300001","QUETAME                       ","- 25",null,"QUETAME                       25594- 25"]
[null,"27001","300053","QUIBDO                        ","- 27",null,"QUIBDO                        27001- 27"]
[null,"63594","300015","QUIMBAYA                      ","- 63",null,"QUIMBAYA                      63594- 63"]
[null,"66594","300009","QUINCHÍA                      ","- 66",null,"QUINCHÍA                      66594- 66"]
[null,"15580","300011","QUIPAMA                       ","- 15",null,"QUIPAMA                       15580- 15"]
[null,"25596","300001","QUÍPILE                       ","- 25",null,"QUÍPILE                       25596- 25"]
[null,"54599","300004","RAGONVALIA                    ","- 54",null,"RAGONVALIA                    54599- 54"]
[null,"15599","300011","RAMIRIQUÍ                     ","- 15",null,"RAMIRIQUÍ                     15599- 15"]
[null,"15600","300011","RAQUIRA                       ","- 15",null,"RAQUIRA                       15600- 15"]
[null,"85279","300051","RECETOR                       ","- 85",null,"RECETOR                       85279- 85"]
[null,"13580","300014","REGIDOR             ","- 13",null,"REGIDOR             13580- 13"]
[null,"05604","300005","REMEDIOS           ","- 05",null,"REMEDIOS           05604- 05"]
[null,"47605","300014","REMOLINO                      ","- 47",null,"REMOLINO                      47605- 47"]
[null,"08606","300008","REPELÓN           ","- 08",null,"REPELÓN           08606- 08"]
[null,"50606","300010","RESTREPO                      ","- 50",null,"RESTREPO                      50606- 50"]
[null,"76606","300003","RESTREPO                      ","- 76",null,"RESTREPO                      76606- 76"]
[null,"05607","300005","RETIRO           ","- 05",null,"RETIRO           05607- 05"]
[null,"25612","300001","RICAURTE                      ","- 25",null,"RICAURTE                      25612- 25"]
[null,"52612","300050","RICAURTE                      ","- 52",null,{"$f":"CONCATENATE(D774,B774,E774)","v":"RICAURTE                      52612- 52"}]
[null,"20614","300017","RÍO DE ORO                    ","- 20",null,"RÍO DE ORO                    20614- 20"]
[null,"27580","300053","RÍO IRO                       ","- 27",null,"RÍO IRO                       27580- 27"]
[null,"27600","300053","RIO QUITO                     ","- 27",null,"RIO QUITO                     27600- 27"]
[null,"13600","300014","RÍO VIEJO           ","- 13",null,"RÍO VIEJO           13600- 13"]
[null,"73616","300006","RIOBLANCO                     ","- 73",null,"RIOBLANCO                     73616- 73"]
[null,"76616","300003","RIOFRÍO                       ","- 76",null,"RIOFRÍO                       76616- 76"]
[null,"44001","300021","RIOHACHA                      ","- 44",null,"RIOHACHA                      44001- 44"]
[null,"05615","300005","RIONEGRO           ","- 05",null,"RIONEGRO           05615- 05"]
[null,"68615","300002","RIONEGRO                      ","- 68",null,"RIONEGRO                      68615- 68"]
[null,"17614","300007","RIOSUCIO                      ","- 17",null,"RIOSUCIO                      17614- 17"]
[null,"27615","300053","RIOSUCIO                      ","- 27",null,"RIOSUCIO                      27615- 27"]
[null,"17616","300007","RISARALDA                     ","- 17",null,"RISARALDA                     17616- 17"]
[null,"41615","300012","RIVERA                        ","- 41",null,"RIVERA                        41615- 41"]
[null,"52621","300050","ROBERTO PAYÁN                 ","- 52",null,"ROBERTO PAYÁN                 52621- 52"]
[null,"76622","300003","ROLDANILLO                    ","- 76",null,"ROLDANILLO                    76622- 76"]
[null,"73622","300006","RONCESVALLES                  ","- 73",null,"RONCESVALLES                  73622- 73"]
[null,"15621","300011","RONDÓN                        ","- 15",null,"RONDÓN                        15621- 15"]
[null,"19622","300013","ROSAS                         ","- 19",null,"ROSAS                         19622- 19"]
[null,"73624","300006","ROVIRA                        ","- 73",null,"ROVIRA                        73624- 73"]
[null,"68655","300002","SABANA DE TORRES              ","- 68",null,"SABANA DE TORRES              68655- 68"]
[null,"08634","300008","SABANAGRANDE           ","- 08",null,"SABANAGRANDE           08634- 08"]
[null,"05628","300005","SABANALARGA            ","- 05",null,"SABANALARGA            05628- 05"]
[null,"08638","300008","SABANALARGA            ","- 08",null,"SABANALARGA            08638- 08"]
[null,"85300","300051","SABANALARGA                   ","- 85",null,"SABANALARGA                   85300- 85"]
[null,"47660","300014","SABANAS DE SAN ÁNGEL          ","- 47",null,"SABANAS DE SAN ÁNGEL          47660- 47"]
[null,"05631","300005","SABANETA            ","- 05",null,"SABANETA            05631- 05"]
[null,"15632","300011","SABOYÁ                        ","- 15",null,"SABOYÁ                        15632- 15"]
[null,"85315","300051","SÁCAMA                        ","- 85",null,"SÁCAMA                        85315- 85"]
[null,"15638","300011","SACHICA                       ","- 15",null,"SACHICA                       15638- 15"]
[null,"23660","300021","SAHAGÚN                       ","- 23",null,"SAHAGÚN                       23660- 23"]
[null,"41660","300012","SALADOBLANCO                  ","- 41",null,"SALADOBLANCO                  41660- 41"]
[null,"17653","300007","SALAMINA                      ","- 17",null,"SALAMINA                      17653- 17"]
[null,"47675","300014","SALAMINA                      ","- 47",null,"SALAMINA                      47675- 47"]
[null,"54660","300004","SALAZAR                       ","- 54",null,"SALAZAR                       54660- 54"]
[null,"73671","300006","SALDAÑA                       ","- 73",null,"SALDAÑA                       73671- 73"]
[null,"63690","300015","SALENTO                       ","- 63",null,"SALENTO                       63690- 63"]
[null,"05642","300005","SALGAR           ","- 05",null,"SALGAR           05642- 05"]
[null,"15646","300011","SAMACÁ                        ","- 15",null,"SAMACÁ                        15646- 15"]
[null,"17662","300007","SAMANÁ                        ","- 17",null,"SAMANÁ                        17662- 17"]
[null,"52678","300050","SAMANIEGO                     ","- 52",null,"SAMANIEGO                     52678- 52"]
[null,"70670","300017","SAMPUÉS                       ","- 70",null,"SAMPUÉS                       70670- 70"]
[null,"41668","300012","SAN AGUSTÍN                   ","- 41",null,"SAN AGUSTÍN                   41668- 41"]
[null,"20710","300017","SAN ALBERTO                   ","- 20",null,"SAN ALBERTO                   20710- 20"]
[null,"05647","300005","SAN ANDRES           ","- 05",null,"SAN ANDRES           05647- 05"]
[null,"68669","300002","SAN ANDRÉS                    ","- 68",null,"SAN ANDRÉS                    68669- 68"]
[null,"88001","300053","SAN ANDRÉS                    ","- 88",null,"SAN ANDRÉS                    88001- 88"]
[null,"23670","300021","SAN ANDRÉS DE SOTAVET0        ","- 23",null,"SAN ANDRÉS DE SOTAVET0        23670- 23"]
[null,"23672","300021","SAN ANTERO                    ","- 23",null,"SAN ANTERO                    23672- 23"]
[null,"73675","300006","SAN ANTONIO                   ","- 73",null,"SAN ANTONIO                   73675- 73"]
[null,"25645","300001","SAN ANTONIO DE TEQUENDAMA     ","- 25",null,"SAN ANTONIO DE TEQUENDAMA     25645- 25"]
[null,"68673","300002","SAN BENITO                    ","- 68",null,"SAN BENITO                    68673- 68"]
[null,"70678","300017","SAN BENITO ABAD               ","- 70",null,"SAN BENITO ABAD               70678- 70"]
[null,"25649","300001","SAN BERNARDO                  ","- 25",null,"SAN BERNARDO                  25649- 25"]
[null,"52685","300050","SAN BERNARDO                  ","- 52",null,"SAN BERNARDO                  52685- 52"]
[null,"23675","300021","SAN BERNARDO DEL VIENTO       ","- 23",null,"SAN BERNARDO DEL VIENTO       23675- 23"]
[null,"54670","300004","SAN CALIXTO                   ","- 54",null,"SAN CALIXTO                   54670- 54"]
[null,"05649","300005","SAN CARLOS                    ","- 05",null,"SAN CARLOS                    05649- 05"]
[null,"23678","300021","SAN CARLOS                    ","- 23",null,"SAN CARLOS                    23678- 23"]
[null,"50680","300010","SAN CARLOS DE GUAROA          ","- 50",null,"SAN CARLOS DE GUAROA          50680- 50"]
[null,"25653","300001","SAN CAYETANO                  ","- 25",null,"SAN CAYETANO                  25653- 25"]
[null,"54673","300004","SAN CAYETANO                  ","- 54",null,"SAN CAYETANO                  54673- 54"]
[null,"13620","300014","SAN CRISTOBAL             ","- 13",null,"SAN CRISTOBAL             13620- 13"]
[null,"20750","300017","SAN DIEGO                     ","- 20",null,"SAN DIEGO                     20750- 20"]
[null,"15660","300011","SAN EDUARDO                   ","- 15",null,{"$f":"CONCATENATE(D838,B838,E838)","v":"SAN EDUARDO                   15660- 15"}]
[null,"13647","300014","SAN ESTANISLAO            ","- 13",null,"SAN ESTANISLAO            13647- 13"]
[null,"94883","300051","SAN FELIPE                    ","- 94",null,"SAN FELIPE                    94883- 94"]
[null,"13650","300014","SAN FERNANDO           ","- 13",null,"SAN FERNANDO           13650- 13"]
[null,"05652","300005","SAN FRANCISCO                 ","- 05",null,"SAN FRANCISCO                 05652- 05"]
[null,"25658","300001","SAN FRANCISCO                 ","- 25",null,"SAN FRANCISCO                 25658- 25"]
[null,"86755","300051","SAN FRANCISCO                 ","- 86",null,"SAN FRANCISCO                 86755- 86"]
[null,"68679","300002","SAN GIL                       ","- 68",null,"SAN GIL                       68679- 68"]
[null,"13654","300014","SAN JACINTO            ","- 13",null,"SAN JACINTO            13654- 13"]
[null,"13655","300014","SAN JACINTO DEL CAUCA           ","- 13",null,"SAN JACINTO DEL CAUCA           13655- 13"]
[null,"05656","300005","SAN JERONIMO         ","- 05",null,"SAN JERONIMO         05656- 05"]
[null,"68682","300002","SAN JOAQUÍN                   ","- 68",null,"SAN JOAQUÍN                   68682- 68"]
[null,"17665","300007","SAN JOSÉ                      ","- 17",null,"SAN JOSÉ                      17665- 17"]
[null,"18610","300018","SAN JOSÉ DE LA FRAGUA         ","- 18",null,"SAN JOSÉ DE LA FRAGUA         18610- 18"]
[null,"05658","300005","SAN JOSE DE LA MONTAÑA        ","- 05",null,"SAN JOSE DE LA MONTAÑA        05658- 05"]
[null,"68684","300002","SAN JOSÉ DE MIRANDA           ","- 68",null,"SAN JOSÉ DE MIRANDA           68684- 68"]
[null,"15664","300011","SAN JOSÉ DE PARE              ","- 15",null,"SAN JOSÉ DE PARE              15664- 15"]
[null,"95001","300051","SAN JOSÉ DEL GUAVIARE         ","- 95",null,"SAN JOSÉ DEL GUAVIARE         95001- 95"]
[null,"27660","300053","SAN JOSÉ DEL PALMAR           ","- 27",null,"SAN JOSÉ DEL PALMAR           27660- 27"]
[null,"70702","300017","SAN JUAN BETULIA              ","- 70",null,"SAN JUAN BETULIA              70702- 70"]
[null,"50683","300010","SAN JUAN DE ARAMA             ","- 50",null,"SAN JUAN DE ARAMA             50683- 50"]
[null,"25662","300001","SAN JUAN DE RIOSECO           ","- 25",null,"SAN JUAN DE RIOSECO           25662- 25"]
[null,"05659","300005","SAN JUAN DE URABA          ","- 05",null,"SAN JUAN DE URABA          05659- 05"]
[null,"44650","300021","SAN JUAN DEL CESAR            ","- 44",null,"SAN JUAN DEL CESAR            44650- 44"]
[null,"13657","300014","SAN JUAN NEPOMUCENO             ","- 13",null,"SAN JUAN NEPOMUCENO             13657- 13"]
[null,"50686","300010","SAN JUANITO                   ","- 50",null,"SAN JUANITO                   50686- 50"]
[null,"52687","300050","SAN LORENZO                   ","- 52",null,"SAN LORENZO                   52687- 52"]
[null,"05660","300005","SAN LUIS          ","- 05",null,"SAN LUIS          05660- 05"]
[null,"73678","300006","SAN LUIS                      ","- 73",null,"SAN LUIS                      73678- 73"]
[null,"15667","300011","SAN LUIS DE GACENO            ","- 15",null,"SAN LUIS DE GACENO            15667- 15"]
[null,"85325","300051","SAN LUIS DE PALENQUE          ","- 85",null,"SAN LUIS DE PALENQUE          85325- 85"]
[null,"70708","300017","SAN MARCOS                    ","- 70",null,"SAN MARCOS                    70708- 70"]
[null,"20770","300017","SAN MARTIN                    ","- 20",null,"SAN MARTIN                    20770- 20"]
[null,"50689","300010","SAN MARTIN                    ","- 50",null,"SAN MARTIN                    50689- 50"]
[null,"13667","300014","SAN MARTÍN DE LOBA           ","- 13",null,"SAN MARTÍN DE LOBA           13667- 13"]
[null,"15673","300011","SAN MATEO                     ","- 15",null,"SAN MATEO                     15673- 15"]
[null,"68686","300002","SAN MIGUEL                    ","- 68",null,"SAN MIGUEL                    68686- 68"]
[null,"86757","300051","SAN MIGUEL                    ","- 86",null,"SAN MIGUEL                    86757- 86"]
[null,"15676","300011","SAN MIGUEL DE SEMA            ","- 15",null,"SAN MIGUEL DE SEMA            15676- 15"]
[null,"70713","300017","SAN ONOFRE                    ","- 70",null,"SAN ONOFRE                    70713- 70"]
[null,"13670","300014","SAN PABLO           ","- 13",null,"SAN PABLO           13670- 13"]
[null,"52693","300050","SAN PABLO                     ","- 52",null,"SAN PABLO                     52693- 52"]
[null,"15681","300011","SAN PABLO BORBUR              ","- 15",null,"SAN PABLO BORBUR              15681- 15"]
[null,"05664","300005","SAN PEDRO           ","- 05",null,"SAN PEDRO           05664- 05"]
[null,"70717","300017","SAN PEDRO                     ","- 70",null,"SAN PEDRO                     70717- 70"]
[null,"76670","300003","SAN PEDRO                     ","- 76",null,"SAN PEDRO                     76670- 76"]
[null,"52694","300050","SAN PEDRO DE CARTAGO          ","- 52",null,"SAN PEDRO DE CARTAGO          52694- 52"]
[null,"05665","300005","SAN PEDRO DE URABA        ","- 05",null,"SAN PEDRO DE URABA        05665- 05"]
[null,"23686","300021","SAN PELAYO                    ","- 23",null,"SAN PELAYO                    23686- 23"]
[null,"05667","300005","SAN RAFAEL           ","- 05",null,"SAN RAFAEL           05667- 05"]
[null,"05670","300005","SAN ROQUE         ","- 05",null,"SAN ROQUE         05670- 05"]
[null,"19693","300013","SAN SEBASTIÁN                 ","- 19",null,"SAN SEBASTIÁN                 19693- 19"]
[null,"47692","300014","SAN SEBASTIÁN DE BUENAVIS     ","- 47",null,"SAN SEBASTIÁN DE BUENAVIS     47692- 47"]
[null,"05674","300005","SAN VICENTE          ","- 05",null,"SAN VICENTE          05674- 05"]
[null,"68689","300002","SAN VICENTE DE CHUCURÍ        ","- 68",null,"SAN VICENTE DE CHUCURÍ        68689- 68"]
[null,"18753","300018","SAN VICENTE DEL CAGUÁN        ","- 18",null,"SAN VICENTE DEL CAGUÁN        18753- 18"]
[null,"47703","300014","SAN ZENÓN                     ","- 47",null,"SAN ZENÓN                     47703- 47"]
[null,"52683","300050","SANDONÁ                       ","- 52",null,"SANDONÁ                       52683- 52"]
[null,"47707","300014","SANTA ANA                     ","- 47",null,"SANTA ANA                     47707- 47"]
[null,"05679","300005","SANTA BARBARA           ","- 05",null,"SANTA BARBARA           05679- 05"]
[null,"52696","300050","SANTA BÁRBARA                 ","- 52",null,"SANTA BÁRBARA                 52696- 52"]
[null,"68705","300002","SANTA BÁRBARA                 ","- 68",null,"SANTA BÁRBARA                 68705- 68"]
[null,"47720","300014","SANTA BARBARA DE PINTO        ","- 47",null,"SANTA BARBARA DE PINTO        47720- 47"]
[null,"13673","300014","SANTA CATALINA            ","- 13",null,"SANTA CATALINA            13673- 13"]
[null,"52699","300050","SANTA CRUZ                    ","- 52",null,{"$f":"CONCATENATE(D902,B902,E902)","v":"SANTA CRUZ                    52699- 52"}]
[null,"68720","300002","SANTA HELENA DEL OPÓN         ","- 68",null,"SANTA HELENA DEL OPÓN         68720- 68"]
[null,"73686","300006","SANTA ISABEL                  ","- 73",null,"SANTA ISABEL                  73686- 73"]
[null,"08675","300008","SANTA LUCÍA            ","- 08",null,"SANTA LUCÍA            08675- 08"]
[null,"15690","300011","SANTA MARÍA                   ","- 15",null,"SANTA MARÍA                   15690- 15"]
[null,"41676","300012","SANTA MARÍA                   ","- 41",null,"SANTA MARÍA                   41676- 41"]
[null,"47001","300014","SANTA MARTA                   ","- 47",null,"SANTA MARTA                   47001- 47"]
[null,"13683","300014","SANTA ROSA             ","- 13",null,"SANTA ROSA             13683- 13"]
[null,"19701","300013","SANTA ROSA                    ","- 19",null,"SANTA ROSA                    19701- 19"]
[null,"66682","300009","SANTA ROSA DE CABAL           ","- 66",null,"SANTA ROSA DE CABAL           66682- 66"]
[null,"05686","300005","SANTA ROSA DE OSOS        ","- 05",null,"SANTA ROSA DE OSOS        05686- 05"]
[null,"15693","300011","SANTA ROSA DE VITERBO         ","- 15",null,"SANTA ROSA DE VITERBO         15693- 15"]
[null,"13688","300014","SANTA ROSA DEL SUR           ","- 13",null,"SANTA ROSA DEL SUR           13688- 13"]
[null,"99624","300051","SANTA ROSALÍA                 ","- 99",null,"SANTA ROSALÍA                 99624- 99"]
[null,"15696","300011","SANTA SOFÍA                   ","- 15",null,"SANTA SOFÍA                   15696- 15"]
[null,"05042","300005","SANTAFE DE ANTIOQUIA          ","- 05",null,"SANTAFE DE ANTIOQUIA          05042- 05"]
[null,"15686","300011","SANTANA                       ","- 15",null,"SANTANA                       15686- 15"]
[null,"19698","300013","SANTANDER DE QUILICHAO        ","- 19",null,"SANTANDER DE QUILICHAO        19698- 19"]
[null,"54680","300004","SANTIAGO                      ","- 54",null,"SANTIAGO                      54680- 54"]
[null,"86760","300051","SANTIAGO                      ","- 86",null,"SANTIAGO                      86760- 86"]
[null,"70820","300017","SANTIAGO DE TOLÚ              ","- 70",null,"SANTIAGO DE TOLÚ              70820- 70"]
[null,"05690","300005","SANTO DOMINGO           ","- 05",null,"SANTO DOMINGO           05690- 05"]
[null,"08685","300008","SANTO TOMAS           ","- 08",null,"SANTO TOMAS           08685- 08"]
[null,"66687","300009","SANTUARIO                     ","- 66",null,"SANTUARIO                     66687- 66"]
[null,"52720","300050","SAPUYES                       ","- 52",null,"SAPUYES                       52720- 52"]
[null,"81736","300010","SARAVENA                      ","- 81",null,"SARAVENA                      81736- 81"]
[null,"54720","300004","SARDINATA                     ","- 54",null,"SARDINATA                     54720- 54"]
[null,"25718","300001","SASAIMA                       ","- 25",null,"SASAIMA                       25718- 25"]
[null,"15720","300011","SATIVANORTE                   ","- 15",null,"SATIVANORTE                   15720- 15"]
[null,"15723","300011","SATIVASUR                     ","- 15",null,"SATIVASUR                     15723- 15"]
[null,"05736","300005","SEGOVIA           ","- 05",null,"SEGOVIA           05736- 05"]
[null,"25736","300001","SESQUILÉ                      ","- 25",null,"SESQUILÉ                      25736- 25"]
[null,"76736","300003","SEVILLA                       ","- 76",null,"SEVILLA                       76736- 76"]
[null,"15740","300011","SIACHOQUE                     ","- 15",null,"SIACHOQUE                     15740- 15"]
[null,"25740","300001","SIBATE                        ","- 25",null,"SIBATE                        25740- 25"]
[null,"86749","300051","SIBUNDOY                      ","- 86",null,"SIBUNDOY                      86749- 86"]
[null,"54743","300004","SILOS                         ","- 54",null,"SILOS                         54743- 54"]
[null,"25743","300001","SILVANIA                      ","- 25",null,"SILVANIA                      25743- 25"]
[null,"19743","300013","SILVIA                        ","- 19",null,"SILVIA                        19743- 19"]
[null,"68745","300002","SIMACOTA                      ","- 68",null,"SIMACOTA                      68745- 68"]
[null,"25745","300001","SIMIJACA                      ","- 25",null,"SIMIJACA                      25745- 25"]
[null,"13744","300014","SIMITÍ           ","- 13",null,"SIMITÍ           13744- 13"]
[null,"70742","300017","SINCÉ                         ","- 70",null,"SINCÉ                         70742- 70"]
[null,"70001","300017","SINCELEJO                     ","- 70",null,"SINCELEJO                     70001- 70"]
[null,"27745","300053","SIPÍ                          ","- 27",null,"SIPÍ                          27745- 27"]
[null,"47745","300014","SITIONUEVO                    ","- 47",null,"SITIONUEVO                    47745- 47"]
[null,"25754","300001","SOACHA                        ","- 25",null,"SOACHA                        25754- 25"]
[null,"15753","300011","SOATÁ                         ","- 15",null,"SOATÁ                         15753- 15"]
[null,"15757","300011","SOCHA                         ","- 15",null,"SOCHA                         15757- 15"]
[null,"68755","300002","SOCORRO                       ","- 68",null,"SOCORRO                       68755- 68"]
[null,"15755","300011","SOCOTÁ                        ","- 15",null,"SOCOTÁ                        15755- 15"]
[null,"15759","300011","SOGAMOSO                      ","- 15",null,"SOGAMOSO                      15759- 15"]
[null,"18756","300018","SOLANO                        ","- 18",null,"SOLANO                        18756- 18"]
[null,"08758","300008","SOLEDAD            ","- 08",null,"SOLEDAD            08758- 08"]
[null,"18785","300018","SOLITA                        ","- 18",null,"SOLITA                        18785- 18"]
[null,"15761","300011","SOMONDOCO                     ","- 15",null,"SOMONDOCO                     15761- 15"]
[null,"05756","300005","SONSON          ","- 05",null,"SONSON          05756- 05"]
[null,"05761","300005","SOPETRAN          ","- 05",null,"SOPETRAN          05761- 05"]
[null,"13760","300014","SOPLAVIENTO            ","- 13",null,"SOPLAVIENTO            13760- 13"]
[null,"25758","300001","SOPÓ                          ","- 25",null,"SOPÓ                          25758- 25"]
[null,"15762","300011","SORA                          ","- 15",null,"SORA                          15762- 15"]
[null,"15764","300011","SORACÁ                        ","- 15",null,"SORACÁ                        15764- 15"]
[null,"15763","300011","SOTAQUIRÁ                     ","- 15",null,"SOTAQUIRÁ                     15763- 15"]
[null,"19760","300013","SOTARÁ                        ","- 19",null,"SOTARÁ                        19760- 19"]
[null,"68770","300002","SUAITA                        ","- 68",null,{"$f":"CONCATENATE(D966,B966,E966)","v":"SUAITA                        68770- 68"}]
[null,"08770","300008","SUAN            ","- 08",null,"SUAN            08770- 08"]
[null,"19780","300013","SUÁREZ                        ","- 19",null,"SUÁREZ                        19780- 19"]
[null,"73770","300006","SUÁREZ                        ","- 73",null,"SUÁREZ                        73770- 73"]
[null,"41770","300012","SUAZA                         ","- 41",null,"SUAZA                         41770- 41"]
[null,"25769","300001","SUBACHOQUE                    ","- 25",null,"SUBACHOQUE                    25769- 25"]
[null,"19785","300013","SUCRE                         ","- 19",null,"SUCRE                         19785- 19"]
[null,"68773","300002","SUCRE                         ","- 68",null,"SUCRE                         68773- 68"]
[null,"70771","300017","SUCRE                         ","- 70",null,"SUCRE                         70771- 70"]
[null,"25772","300001","SUESCA                        ","- 25",null,"SUESCA                        25772- 25"]
[null,"25777","300001","SUPATÁ                        ","- 25",null,"SUPATÁ                        25777- 25"]
[null,"17777","300007","SUPÍA                         ","- 17",null,"SUPÍA                         17777- 17"]
[null,"68780","300002","SURATÁ                        ","- 68",null,"SURATÁ                        68780- 68"]
[null,"25779","300001","SUSA                          ","- 25",null,"SUSA                          25779- 25"]
[null,"15774","300011","SUSACÓN                       ","- 15",null,"SUSACÓN                       15774- 15"]
[null,"15776","300011","SUTAMARCHÁN                   ","- 15",null,"SUTAMARCHÁN                   15776- 15"]
[null,"25781","300001","SUTATAUSA                     ","- 25",null,"SUTATAUSA                     25781- 25"]
[null,"15778","300011","SUTATENZA                     ","- 15",null,"SUTATENZA                     15778- 15"]
[null,"25785","300001","TABIO                         ","- 25",null,"TABIO                         25785- 25"]
[null,"27787","300053","TADÓ                          ","- 27",null,"TADÓ                          27787- 27"]
[null,"13780","300014","TALAIGUA NUEVO            ","- 13",null,"TALAIGUA NUEVO            13780- 13"]
[null,"20787","300017","TAMALAMEQUE                   ","- 20",null,"TAMALAMEQUE                   20787- 20"]
[null,"85400","300051","TÁMARA                        ","- 85",null,"TÁMARA                        85400- 85"]
[null,"81794","300010","TAME                          ","- 81",null,"TAME                          81794- 81"]
[null,"05789","300005","TAMESIS           ","- 05",null,"TAMESIS           05789- 05"]
[null,"52786","300050","TAMINANGO                     ","- 52",null,"TAMINANGO                     52786- 52"]
[null,"52788","300050","TANGUA                        ","- 52",null,"TANGUA                        52788- 52"]
[null,"97666","300051","TARAIRA                       ","- 97",null,"TARAIRA                       97666- 97"]
[null,"91798","300018","TARAPACÁ                      ","- 91",null,"TARAPACÁ                      91798- 91"]
[null,"05790","300005","TARAZA           ","- 05",null,"TARAZA           05790- 05"]
[null,"41791","300012","TARQUI                        ","- 41",null,"TARQUI                        41791- 41"]
[null,"05792","300005","TARSO         ","- 05",null,"TARSO         05792- 05"]
[null,"15790","300011","TASCO                         ","- 15",null,"TASCO                         15790- 15"]
[null,"85410","300051","TAURAMENA                     ","- 85",null,"TAURAMENA                     85410- 85"]
[null,"25793","300001","TAUSA                         ","- 25",null,"TAUSA                         25793- 25"]
[null,"41799","300012","TELLO                         ","- 41",null,"TELLO                         41799- 41"]
[null,"25797","300001","TENA                          ","- 25",null,"TENA                          25797- 25"]
[null,"47798","300014","TENERIFE                      ","- 47",null,"TENERIFE                      47798- 47"]
[null,"25799","300001","TENJO                         ","- 25",null,"TENJO                         25799- 25"]
[null,"15798","300011","TENZA                         ","- 15",null,"TENZA                         15798- 15"]
[null,"54800","300004","TEORAMA                       ","- 54",null,"TEORAMA                       54800- 54"]
[null,"41801","300012","TERUEL                        ","- 41",null,"TERUEL                        41801- 41"]
[null,"41797","300012","TESALIA                       ","- 41",null,"TESALIA                       41797- 41"]
[null,"25805","300001","TIBACUY                       ","- 25",null,"TIBACUY                       25805- 25"]
[null,"15804","300011","TIBANÁ                        ","- 15",null,"TIBANÁ                        15804- 15"]
[null,"15806","300011","TIBASOSA                      ","- 15",null,"TIBASOSA                      15806- 15"]
[null,"25807","300001","TIBIRITA                      ","- 25",null,"TIBIRITA                      25807- 25"]
[null,"54810","300004","TIBÚ                          ","- 54",null,"TIBÚ                          54810- 54"]
[null,"23807","300021","TIERRALTA                     ","- 23",null,"TIERRALTA                     23807- 23"]
[null,"41807","300012","TIMANÁ                        ","- 41",null,"TIMANÁ                        41807- 41"]
[null,"19807","300013","TIMBÍO                        ","- 19",null,"TIMBÍO                        19807- 19"]
[null,"19809","300013","TIMBIQUÍ                      ","- 19",null,"TIMBIQUÍ                      19809- 19"]
[null,"15808","300011","TINJACÁ                       ","- 15",null,"TINJACÁ                       15808- 15"]
[null,"15810","300011","TIPACOQUE                     ","- 15",null,"TIPACOQUE                     15810- 15"]
[null,"13810","300014","TIQUISIO            ","- 13",null,"TIQUISIO            13810- 13"]
[null,"05809","300005","TITIRIBI           ","- 05",null,"TITIRIBI           05809- 05"]
[null,"15814","300011","TOCA                          ","- 15",null,"TOCA                          15814- 15"]
[null,"25815","300001","TOCAIMA                       ","- 25",null,"TOCAIMA                       25815- 25"]
[null,"25817","300001","TOCANCIPA                     ","- 25",null,"TOCANCIPA                     25817- 25"]
[null,"15816","300011","TOGÜÍ                         ","- 15",null,"TOGÜÍ                         15816- 15"]
[null,"05819","300005","TOLEDO          ","- 05",null,"TOLEDO          05819- 05"]
[null,"54820","300004","TOLEDO                        ","- 54",null,"TOLEDO                        54820- 54"]
[null,"70823","300017","TOLUVIEJO                     ","- 70",null,"TOLUVIEJO                     70823- 70"]
[null,"68820","300002","TONA                          ","- 68",null,"TONA                          68820- 68"]
[null,"15820","300011","TOPAGA                        ","- 15",null,{"$f":"CONCATENATE(D1030,B1030,E1030)","v":"TOPAGA                        15820- 15"}]
[null,"25823","300001","TOPAIPÍ                       ","- 25",null,"TOPAIPÍ                       25823- 25"]
[null,"19821","300013","TORIBÍO                       ","- 19",null,"TORIBÍO                       19821- 19"]
[null,"76823","300003","TORO                          ","- 76",null,"TORO                          76823- 76"]
[null,"15822","300011","TOTA                          ","- 15",null,"TOTA                          15822- 15"]
[null,"19824","300013","TOTORÓ                        ","- 19",null,"TOTORÓ                        19824- 19"]
[null,"85430","300051","TRINIDAD                      ","- 85",null,"TRINIDAD                      85430- 85"]
[null,"76828","300003","TRUJILLO                      ","- 76",null,"TRUJILLO                      76828- 76"]
[null,"08832","300008","TUBARÁ           ","- 08",null,"TUBARÁ           08832- 08"]
[null,"76834","300003","TULUA                         ","- 76",null,"TULUA                         76834- 76"]
[null,"52835","300050","TUMACO                        ","- 52",null,"TUMACO                        52835- 52"]
[null,"15001","300011","TUNJA            ","- 15",null,"TUNJA            15001- 15"]
[null,"15832","300011","TUNUNGUÁ                      ","- 15",null,"TUNUNGUÁ                      15832- 15"]
[null,"52838","300050","TÚQUERRES                     ","- 52",null,"TÚQUERRES                     52838- 52"]
[null,"13836","300014","TURBACO             ","- 13",null,"TURBACO             13836- 13"]
[null,"13838","300014","TURBANÁ             ","- 13",null,"TURBANÁ             13838- 13"]
[null,"05837","300005","TURBO           ","- 05",null,"TURBO           05837- 05"]
[null,"15835","300011","TURMEQUÉ                      ","- 15",null,"TURMEQUÉ                      15835- 15"]
[null,"15837","300011","TUTA                          ","- 15",null,"TUTA                          15837- 15"]
[null,"15839","300011","TUTASÁ                        ","- 15",null,"TUTASÁ                        15839- 15"]
[null,"25839","300001","UBALÁ                         ","- 25",null,"UBALÁ                         25839- 25"]
[null,"25841","300001","UBAQUE                        ","- 25",null,"UBAQUE                        25841- 25"]
[null,"25843","300001","UBATE                         ","- 25",null,"UBATE                         25843- 25"]
[null,"76845","300003","ULLOA                         ","- 76",null,"ULLOA                         76845- 76"]
[null,"15842","300011","UMBITA                        ","- 15",null,"UMBITA                        15842- 15"]
[null,"25845","300001","UNE                           ","- 25",null,"UNE                           25845- 25"]
[null,"27800","300053","UNGUÍA                        ","- 27",null,"UNGUÍA                        27800- 27"]
[null,"27810","300053","UNIÓN PANAMERICANA            ","- 27",null,"UNIÓN PANAMERICANA            27810- 27"]
[null,"05842","300005","URAMITA          ","- 05",null,"URAMITA          05842- 05"]
[null,"50370","300010","URIBE                         ","- 50",null,"URIBE                         50370- 50"]
[null,"44847","300021","URIBIA                        ","- 44",null,"URIBIA                        44847- 44"]
[null,"05847","300005","URRAO           ","- 05",null,"URRAO           05847- 05"]
[null,"44855","300021","URUMITA                       ","- 44",null,"URUMITA                       44855- 44"]
[null,"08849","300008","USIACURÍ            ","- 08",null,"USIACURÍ            08849- 08"]
[null,"25851","300001","ÚTICA                         ","- 25",null,"ÚTICA                         25851- 25"]
[null,"05854","300005","VALDIVIA           ","- 05",null,"VALDIVIA           05854- 05"]
[null,"23855","300021","VALENCIA                      ","- 23",null,"VALENCIA                      23855- 23"]
[null,"68855","300002","VALLE DE SAN JOSÉ             ","- 68",null,"VALLE DE SAN JOSÉ             68855- 68"]
[null,"73854","300006","VALLE DE SAN JUAN             ","- 73",null,"VALLE DE SAN JUAN             73854- 73"]
[null,"86865","300051","VALLE DEL GUAMUEZ             ","- 86",null,"VALLE DEL GUAMUEZ             86865- 86"]
[null,"20001","300017","VALLEDUPAR                    ","- 20",null,"VALLEDUPAR                    20001- 20"]
[null,"05856","300005","VALPARAISO            ","- 05",null,"VALPARAISO            05856- 05"]
[null,"18860","300018","VALPARAÍSO                    ","- 18",null,"VALPARAÍSO                    18860- 18"]
[null,"05858","300005","VEGACHI           ","- 05",null,"VEGACHI           05858- 05"]
[null,"68861","300002","VÉLEZ                         ","- 68",null,"VÉLEZ                         68861- 68"]
[null,"73861","300006","VENADILLO                     ","- 73",null,"VENADILLO                     73861- 73"]
[null,"05861","300005","VENECIA           ","- 05",null,"VENECIA           05861- 05"]
[null,"25506","300001","VENECIA                       ","- 25",null,"VENECIA                       25506- 25"]
[null,"15861","300011","VENTAQUEMADA                  ","- 15",null,"VENTAQUEMADA                  15861- 15"]
[null,"25862","300001","VERGARA                       ","- 25",null,"VERGARA                       25862- 25"]
[null,"76863","300003","VERSALLES                     ","- 76",null,"VERSALLES                     76863- 76"]
[null,"68867","300002","VETAS                         ","- 68",null,"VETAS                         68867- 68"]
[null,"25867","300001","VIANÍ                         ","- 25",null,"VIANÍ                         25867- 25"]
[null,"17867","300007","VICTORIA                      ","- 17",null,"VICTORIA                      17867- 17"]
[null,"05873","300005","VIGIA DEL FUERTE           ","- 05",null,"VIGIA DEL FUERTE           05873- 05"]
[null,"76869","300003","VIJES                         ","- 76",null,"VIJES                         76869- 76"]
[null,"54871","300004","VILLA CARO                    ","- 54",null,"VILLA CARO                    54871- 54"]
[null,"15407","300011","VILLA DE LEYVA                ","- 15",null,"VILLA DE LEYVA                15407- 15"]
[null,"54874","300004","VILLA DEL ROSARIO             ","- 54",null,"VILLA DEL ROSARIO             54874- 54"]
[null,"19845","300013","VILLA RICA                    ","- 19",null,"VILLA RICA                    19845- 19"]
[null,"86885","300051","VILLAGARZÓN                   ","- 86",null,"VILLAGARZÓN                   86885- 86"]
[null,"25871","300001","VILLAGÓMEZ                    ","- 25",null,"VILLAGÓMEZ                    25871- 25"]
[null,"73870","300006","VILLAHERMOSA                  ","- 73",null,"VILLAHERMOSA                  73870- 73"]
[null,"17873","300007","VILLAMARÍA                    ","- 17",null,"VILLAMARÍA                    17873- 17"]
[null,"13873","300014","VILLANUEVA             ","- 13",null,{"$f":"CONCATENATE(D1094,B1094,E1094)","v":"VILLANUEVA             13873- 13"}]
[null,"44874","300021","VILLANUEVA                    ","- 44",null,"VILLANUEVA                    44874- 44"]
[null,"68872","300002","VILLANUEVA                    ","- 68",null,"VILLANUEVA                    68872- 68"]
[null,"85440","300051","VILLANUEVA                    ","- 85",null,"VILLANUEVA                    85440- 85"]
[null,"25873","300001","VILLAPINZON                   ","- 25",null,"VILLAPINZON                   25873- 25"]
[null,"73873","300006","VILLARRICA                    ","- 73",null,"VILLARRICA                    73873- 73"]
[null,"50001","300010","VILLAVICENCIO                 ","- 50",null,"VILLAVICENCIO                 50001- 50"]
[null,"41872","300012","VILLAVIEJA                    ","- 41",null,"VILLAVIEJA                    41872- 41"]
[null,"25875","300001","VILLETA                       ","- 25",null,"VILLETA                       25875- 25"]
[null,"25878","300001","VIOTÁ                         ","- 25",null,"VIOTÁ                         25878- 25"]
[null,"15879","300011","VIRACACHÁ                     ","- 15",null,"VIRACACHÁ                     15879- 15"]
[null,"50711","300010","VISTA HERMOSA                 ","- 50",null,"VISTA HERMOSA                 50711- 50"]
[null,"17877","300007","VITERBO                       ","- 17",null,"VITERBO                       17877- 17"]
[null,"25885","300001","YACOPÍ                        ","- 25",null,"YACOPÍ                        25885- 25"]
[null,"52885","300050","YACUANQUER                    ","- 52",null,"YACUANQUER                    52885- 52"]
[null,"41885","300012","YAGUARÁ                       ","- 41",null,"YAGUARÁ                       41885- 41"]
[null,"05885","300005","YALI           ","- 05",null,"YALI           05885- 05"]
[null,"05887","300005","YARUMAL           ","- 05",null,"YARUMAL           05887- 05"]
[null,"97889","300051","YAVARATÉ                      ","- 97",null,"YAVARATÉ                      97889- 97"]
[null,"05890","300005","YOLOMBO           ","- 05",null,"YOLOMBO           05890- 05"]
[null,"05893","300005","YONDO          ","- 05",null,"YONDO          05893- 05"]
[null,"85001","300051","YOPAL                         ","- 85",null,"YOPAL                         85001- 85"]
[null,"76890","300003","YOTOCO                        ","- 76",null,"YOTOCO                        76890- 76"]
[null,"76892","300003","YUMBO                         ","- 76",null,"YUMBO                         76892- 76"]
[null,"13894","300014","ZAMBRANO            ","- 13",null,"ZAMBRANO            13894- 13"]
[null,"68895","300002","ZAPATOCA                      ","- 68",null,"ZAPATOCA                      68895- 68"]
[null,"47960","300014","ZAPAYÁN                       ","- 47",null,"ZAPAYÁN                       47960- 47"]
[null,"05895","300005","ZARAGOZA          ","- 05",null,"ZARAGOZA          05895- 05"]
[null,"76895","300003","ZARZAL                        ","- 76",null,"ZARZAL                        76895- 76"]
[null,"15897","300011","ZETAQUIRA                     ","- 15",null,"ZETAQUIRA                     15897- 15"]
[null,"25898","300001","ZIPACÓN                       ","- 25",null,"ZIPACÓN                       25898- 25"]
[null,"25899","300001","ZIPAQUIRA                     ","- 25",null,"ZIPAQUIRA                     25899- 25"]
[null,"47980","300014","ZONA BANANERA                 ","- 47",null,"ZONA BANANERA                 47980- 47"]
[null,null,null,null,null,null,""]
[null,null,null,null,null,null,""]
[null,null,null,null,null,null,""]
[null,null,null,null,null,null,""]
[null,null,null,null,null,null,""]
[null,null,null,null,null,null,""]
[null,null,null,null,null,null,""]
[null,null,null,null,null,null,""]
[null,null,null,null,null,null,""]
[null,null,null,null,null,null,""]
[null,null,null,null,null,null,""]
[null,null,null,null,null,null,""]
[null,null,null,null,null,null,""]
[null,null,null,null,null,null,""]
[null,null,null,null,null,null,""]
[null,null,null,null,null,null,""]
[null,null,null,null,null,null,""]
[null,null,null,null,null,null,""]
[null,null,null,null,null,null,""]
[null,null,null,null,null,null,""]
[null,null,null,null,null,null,""]
[null,null,null,null,null,null,""]
[null,null,null,null,null,null,""]
[null,null,null,null,null,null,""]
[null,null,null,null,null,null,""]
[null,null,null,null,null,null,""]
[null,null,null,null,null,null,""]
[null,null,null,null,null,null,""]
[null,null,null,null,null,null,""]
[null,null,null,null,null,null,""]
[null,null,null,null,null,null,""]
[null,null,null,null,null,null,{"$f":"CONCATENATE(D1158,B1158,E1158)","v":""}]
[null,null,null,null,null,null,""]
[null,null,null,null,null,null,""]
[null,null,null,null,null,null,""]
[null,null,null,null,null,null,""]
[null,null,null,null,null,null,""]
[null,null,null,null,null,null,""]
[null,null,null,null,null,null,""]
[null,null,null,null,null,null,""]
[null,null,null,null,null,null,""]
[null,null,null,null,null,null,""]
[null,null,null,null,null,null,""]
[null,null,null,null,null,null,""]
[null,null,null,null,null,null,""]
[null,null,null,null,null,null,""]
[null,null,null,null,null,null,""]
[null,null,null,null,null,null,""]
[null,null,null,null,null,null,""]
[null,null,null,null,null,null,""]
[null,null,null,null,null,null,""]
[null,null,null,null,null,null,""]
[null,null,null,null,null,null,""]
[null,null,null,null,null,null,""]
[null,null,null,null,null,null,""]
[null,null,null,null,null,null,""]
[null,null,null,null,null,null,""]
[null,null,null,null,null,null,""]
[null,null,null,null,null,null,""]
[null,null,null,null,null,null,""]
[null,null,null,null,null,null,""]
[null,null,null,null,null,null,""]
[null,null,null,null,null,null,""]
[null,null,null,null,null,null,""]
[null,null,null,null,null,null,""]
[null,null,null,null,null,null,""]
[null,null,null,null,null,null,""]
[null,null,null,null,null,null,""]
[null,null,null,null,null,null,""]
[null,null,null,null,null,null,""]
[null,null,null,null,null,null,""]
[null,null,null,null,null,null,""]
[null,null,null,null,null,null,""]
[null,null,null,null,null,null,""]
[null,null,null,null,null,null,""]
[null,null,null,null,null,null,""]
[null,null,null,null,null,null,""]
[null,null,null,null,null,null,""]
[null,null,null,null,null,null,""]
[null,null,null,null,null,null,""]
[null,null,null,null,null,null,""]
[null,null,null,null,null,null,""]
[null,null,null,null,null,null,""]
[null,null,null,null,null,null,""]
[null,null,null,null,null,null,""]
[null,null,null,null,null,null,""]
[null,null,null,null,null,null,""]
[null,null,null,null,null,null,""]
[null,null,null,null,null,null,""]
[null,null,null,null,null,null,""]
[null,null,null,null,null,null,""]
[null,null,null,null,null,null,""]
[null,null,null,null,null,null,""]
[null,null,null,null,null,null,""]
[null,null,null,null,null,null,""]
[null,null,null,null,null,null,{"$f":"CONCATENATE(D1222,B1222,E1222)","v":""}]
[null,null,null,null,null,null,""]
[null,null,null,null,null,null,""]
[null,null,null,null,null,null,""]
[null,null,null,null,null,null,""]
[null,null,null,null,null,null,""]
[null,null,null,null,null,null,""]
[null,null,null,null,null,null,""]
[null,null,null,null,null,null,""]
[null,null,null,null,null,null,""]
[null,null,null,null,null,null,""]
[null,null,null,null,null,null,""]
[null,null,null,null,null,null,""]
[null,null,null,null,null,null,""]
[null,null,null,null,null,null,""]
[null,null,null,null,null,null,""]
[null,null,null,null,null,null,""]
[null,null,null,null,null,null,""]
[null,null,null,null,null,null,""]
[null,null,null,null,null,null,""]
[null,null,null,null,null,null,""]
[null,null,null,null,null,null,""]
[null,null,null,null,null,null,""]
[null,null,null,null,null,null,""]
[null,null,null,null,null,null,""]
[null,null,null,null,null,null,""]
[null,null,null,null,null,null,""]
[null,null,null,null,null,null,""]
[null,null,null,null,null,null,""]
[null,null,null,null,null,null,""]
[null,null,null,null,null,null,""]
[null,null,null,null,null,null,""]
[null,null,null,null,null,null,""]
[null,null,null,null,null,null,""]
[null,null,null,null,null,null,""]
[null,null,null,null,null,null,""]
[null,null,null,null,null,null,""]
[null,null,null,null,null,null,""]
[null,null,null,null,null,null,""]
[null,null,null,null,null,null,""]
[null,null,null,null,null,null,""]
[null,null,null,null,null,null,""]
[null,null,null,null,null,null,""]
[null,null,null,null,null,null,""]
[null,null,null,null,null,null,""]
[null,null,null,null,null,null,""]
[null,null,null,null,null,null,""]
[null,null,null,null,null,null,""]
[null,null,null,null,null,null,""]
[null,null,null,null,null,null,""]
[null,null,null,null,null,null,""]
[null,null,null,null,null,null,""]
[null,null,null,null,null,null,""]
[null,null,null,null,null,null,""]
[null,null,null,null,null,null,""]
[null,null,null,null,null,null,""]
[null,null,null,null,null,null,""]
[null,null,null,null,null,null,""]
[null,null,null,null,null,null,""]
[null,null,null,null,null,null,""]
[null,null,null,null,null,null,""]
[null,null,null,null,null,null,""]
[null,null,null,null,null,null,""]
[null,null,null,null,null,null,""]
[null,null,null,null,null,null,{"$f":"CONCATENATE(D1286,B1286,E1286)","v":""}]
[null,null,null,null,null,null,""]
[null,null,null,null,null,null,""]
[null,null,null,null,null,null,""]
[null,null,null,null,null,null,""]
[null,null,null,null,null,null,""]
[null,null,null,null,null,null,""]
[null,null,null,null,null,null,""]
[null,null,null,null,null,null,""]
[null,null,null,null,null,null,""]
[null,null,null,null,null,null,""]
[null,null,null,null,null,null,""]
[null,null,null,null,null,null,""]
[null,null,null,null,null,null,""]
[null,null,null,null,null,null,""]
[null,null,null,null,null,null,""]
[null,null,null,null,null,null,""]
[null,null,null,null,null,null,""]
[null,null,null,null,null,null,""]
[null,null,null,null,null,null,""]
[null,null,null,null,null,null,""]
[null,null,null,null,null,null,""]
[null,null,null,null,null,null,""]
[null,null,null,null,null,null,""]
[null,null,null,null,null,null,""]
[null,null,null,null,null,null,""]
[null,null,null,null,null,null,""]
[null,null,null,null,null,null,""]
[null,null,null,null,null,null,""]
[null,null,null,null,null,null,""]
[null,null,null,null,null,null,""]
[null,null,null,null,null,null,""]
[null,null,null,null,null,null,""]
[null,null,null,null,null,null,""]
[null,null,null,null,null,null,""]
[null,null,null,null,null,null,""]
[null,null,null,null,null,null,""]
[null,null,null,null,null,null,""]
[null,null,null,null,null,null,""]
[null,null,null,null,null,null,""]
[null,null,null,null,null,null,""]
[null,null,null,null,null,null,""]
[null,null,null,null,null,null,""]
[null,null,null,null,null,null,""]
[null,null,null,null,null,null,""]
[null,null,null,null,null,null,""]
[null,null,null,null,null,null,""]
[null,null,null,null,null,null,""]
[null,null,null,null,null,null,""]
[null,null,null,null,null,null,""]
[null,null,null,null,null,null,""]
[null,null,null,null,null,null,""]
[null,null,null,null,null,null,""]
[null,null,null,null,null,null,""]
[null,null,null,null,null,null,""]
[null,null,null,null,null,null,""]
[null,null,null,null,null,null,""]
[null,null,null,null,null,null,""]
[null,null,null,null,null,null,""]
[null,null,null,null,null,null,""]
[null,null,null,null,null,null,""]
[null,null,null,null,null,null,""]
[null,null,null,null,null,null,""]
[null,null,null,null,null,null,""]
[null,null,null,null,null,null,{"$f":"CONCATENATE(D1350,B1350,E1350)","v":""}]
[null,null,null,null,null,null,""]
[null,null,null,null,null,null,""]
[null,null,null,null,null,null,""]
[null,null,null,null,null,null,""]
[null,null,null,null,null,null,""]
[null,null,null,null,null,null,""]
[null,null,null,null,null,null,""]
[null,null,null,null,null,null,""]
[null,null,null,null,null,null,""]
[null,null,null,null,null,null,""]
[null,null,null,null,null,null,""]
[null,null,null,null,null,null,""]
[null,null,null,null,null,null,""]
[null,null,null,null,null,null,""]
[null,null,null,null,null,null,""]
[null,null,null,null,null,null,""]
[null,null,null,null,null,null,""]
[null,null,null,null,null,null,""]
[null,null,null,null,null,null,""]
[null,null,null,null,null,null,""]
[null,null,null,null,null,null,""]
[null,null,null,null,null,null,""]
[null,null,null,null,null,null,""]
[null,null,null,null,null,null,""]
[null,null,null,null,null,null,""]
[null,null,null,null,null,null,""]
[null,null,null,null,null,null,""]
[null,null,null,null,null,null,""]
[null,null,null,null,null,null,""]
[null,null,null,null,null,null,""]
[null,null,null,null,null,null,""]
[null,null,null,null,null,null,""]
[null,null,null,null,null,null,""]
[null,null,null,null,null,null,""]
[null,null,null,null,null,null,""]
[null,null,null,null,null,null,""]
[null,null,null,null,null,null,""]
[null,null,null,null,null,null,""]
[null,null,null,null,null,null,""]
[null,null,null,null,null,null,""]
[null,null,null,null,null,null,""]
[null,null,null,null,null,null,""]
[null,null,null,null,null,null,""]
[null,null,null,null,null,null,""]
[null,null,null,null,null,null,""]
[null,null,null,null,null,null,""]
[null,null,null,null,null,null,""]
[null,null,null,null,null,null,""]
[null,null,null,null,null,null,""]
[null,null,null,null,null,null,""]
[null,null,null,null,null,null,""]
[null,null,null,null,null,null,""]
[null,null,null,null,null,null,""]
[null,null,null,null,null,null,""]
[null,null,null,null,null,null,""]
[null,null,null,null,null,null,""]
[null,null,null,null,null,null,""]
[null,null,null,null,null,null,""]
[null,null,null,null,null,null,""]
[null,null,null,null,null,null,""]
[null,null,null,null,null,null,""]
[null,null,null,null,null,null,""]
[null,null,null,null,null,null,""]
[null,null,null,null,null,null,{"$f":"CONCATENATE(D1414,B1414,E1414)","v":""}]
[null,null,null,null,null,null,""]
[null,null,null,null,null,null,""]
[null,null,null,null,null,null,""]
[null,null,null,null,null,null,""]
[null,null,null,null,null,null,""]
[null,null,null,null,null,null,""]
[null,null,null,null,null,null,""]
[null,null,null,null,null,null,""]
[null,null,null,null,null,null,""]
[null,null,null,null,null,null,""]
[null,null,null,null,null,null,""]
[null,null,null,null,null,null,""]
[null,null,null,null,null,null,""]
[null,null,null,null,null,null,""]
[null,null,null,null,null,null,""]
[null,null,null,null,null,null,""]
[null,null,null,null,null,null,""]
[null,null,null,null,null,null,""]
[null,null,null,null,null,null,""]
[null,null,null,null,null,null,""]
[null,null,null,null,null,null,""]
[null,null,null,null,null,null,""]
[null,null,null,null,null,null,""]
[null,null,null,null,null,null,""]
[null,null,null,null,null,null,""]
[null,null,null,null,null,null,""]
[null,null,null,null,null,null,""]
[null,null,null,null,null,null,""]
[null,null,null,null,null,null,""]
[null,null,null,null,null,null,""]
[null,null,null,null,null,null,""]
[null,null,null,null,null,null,""]
[null,null,null,null,null,null,""]
[null,null,null,null,null,null,""]
[null,null,null,null,null,null,""]
[null,null,null,null,null,null,""]
[null,null,null,null,null,null,""]
[null,null,null,null,null,null,""]
[null,null,null,null,null,null,""]
[null,null,null,null,null,null,""]
[null,null,null,null,null,null,""]
[null,null,null,null,null,null,""]
[null,null,null,null,null,null,""]
[null,null,null,null,null,null,""]
[null,null,null,null,null,null,""]
[null,null,null,null,null,null,""]
[null,null,null,null,null,null,""]
[null,null,null,null,null,null,""]
[null,null,null,null,null,null,""]
[null,null,null,null,null,null,""]
[null,null,null,null,null,null,""]
[null,null,null,null,null,null,""]
[null,null,null,null,null,null,""]
[null,null,null,null,null,null,""]
[null,null,null,null,null,null,""]
[null,null,null,null,null,null,""]
[null,null,null,null,null,null,""]
[null,null,null,null,null,null,""]
[null,null,null,null,null,null,""]
[null,null,null,null,null,null,""]
[null,null,null,null,null,null,""]
[null,null,null,null,null,null,""]
[null,null,null,null,null,null,""]
[null,null,null,null,null,null,{"$f":"CONCATENATE(D1478,B1478,E1478)","v":""}]
[null,null,null,null,null,null,""]
[null,null,null,null,null,null,""]
[null,null,null,null,null,null,""]
[null,null,null,null,null,null,""]
[null,null,null,null,null,null,""]
[null,null,null,null,null,null,""]
[null,null,null,null,null,null,""]
[null,null,null,null,null,null,""]
[null,null,null,null,null,null,""]
[null,null,null,null,null,null,""]
[null,null,null,null,null,null,""]
[null,null,null,null,null,null,""]
[null,null,null,null,null,null,""]
[null,null,null,null,null,null,""]
[null,null,null,null,null,null,""]
[null,null,null,null,null,null,""]
[null,null,null,null,null,null,""]
[null,null,null,null,null,null,""]
[null,null,null,null,null,null,""]
[null,null,null,null,null,null,""]
[null,null,null,null,null,null,""]
[null,null,null,null,null,null,""]
[null,null,null,null,null,null,""]
[null,null,null,null,null,null,""]
[null,null,null,null,null,null,""]
[null,null,null,null,null,null,""]
[null,null,null,null,null,null,""]
[null,null,null,null,null,null,""]
[null,null,null,null,null,null,""]
[null,null,null,null,null,null,""]
[null,null,null,null,null,null,""]
[null,null,null,null,null,null,""]
[null,null,null,null,null,null,""]
[null,null,null,null,null,null,""]
[null,null,null,null,null,null,""]
[null,null,null,null,null,null,""]
[null,null,null,null,null,null,""]
[null,null,null,null,null,null,""]
[null,null,null,null,null,null,""]
[null,null,null,null,null,null,""]
[null,null,null,null,null,null,""]
[null,null,null,null,null,null,""]
[null,null,null,null,null,null,""]
[null,null,null,null,null,null,""]
[null,null,null,null,null,null,""]
[null,null,null,null,null,null,""]
[null,null,null,null,null,null,""]
[null,null,null,null,null,null,""]
[null,null,null,null,null,null,""]
[null,null,null,null,null,null,""]
[null,null,null,null,null,null,""]
[null,null,null,null,null,null,""]
[null,null,null,null,null,null,""]
[null,null,null,null,null,null,""]
[null,null,null,null,null,null,""]
[null,null,null,null,null,null,""]
[null,null,null,null,null,null,""]
[null,null,null,null,null,null,""]
[null,null,null,null,null,null,""]
[null,null,null,null,null,null,""]
[null,null,null,null,null,null,""]
[null,null,null,null,null,null,""]
[null,null,null,null,null,null,""]
[null,null,null,null,null,null,{"$f":"CONCATENATE(D1542,B1542,E1542)","v":""}]
[null,null,null,null,null,null,""]
[null,null,null,null,null,null,""]
[null,null,null,null,null,null,""]
[null,null,null,null,null,null,""]
[null,null,null,null,null,null,""]
[null,null,null,null,null,null,""]
[null,null,null,null,null,null,""]
[null,null,null,null,null,null,""]
[null,null,null,null,null,null,""]
[null,null,null,null,null,null,""]
[null,null,null,null,null,null,""]
[null,null,null,null,null,null,""]
[null,null,null,null,null,null,""]
[null,null,null,null,null,null,""]
[null,null,null,null,null,null,""]
[null,null,null,null,null,null,""]
[null,null,null,null,null,null,""]
[null,null,null,null,null,null,""]
[null,null,null,null,null,null,""]
[null,null,null,null,null,null,""]
[null,null,null,null,null,null,""]
[null,null,null,null,null,null,""]
[null,null,null,null,null,null,""]
[null,null,null,null,null,null,""]
[null,null,null,null,null,null,""]
[null,null,null,null,null,null,""]
[null,null,null,null,null,null,""]
[null,null,null,null,null,null,""]
[null,null,null,null,null,null,""]
[null,null,null,null,null,null,""]
[null,null,null,null,null,null,""]
[null,null,null,null,null,null,""]
[null,null,null,null,null,null,""]
[null,null,null,null,null,null,""]
[null,null,null,null,null,null,""]
[null,null,null,null,null,null,""]
[null,null,null,null,null,null,""]
[null,null,null,null,null,null,""]
[null,null,null,null,null,null,""]
[null,null,null,null,null,null,""]
[null,null,null,null,null,null,""]
[null,null,null,null,null,null,""]
[null,null,null,null,null,null,""]
[null,null,null,null,null,null,""]
[null,null,null,null,null,null,""]
[null,null,null,null,null,null,""]
[null,null,null,null,null,null,""]
[null,null,null,null,null,null,""]
[null,null,null,null,null,null,""]
[null,null,null,null,null,null,""]
[null,null,null,null,null,null,""]
[null,null,null,null,null,null,""]
[null,null,null,null,null,null,""]
[null,null,null,null,null,null,""]
[null,null,null,null,null,null,""]
[null,null,null,null,null,null,""]
[null,null,null,null,null,null,""]
[null,null,null,null,null,null,""]
[null,null,null,null,null,null,""]
[null,null,null,null,null,null,""]
[null,null,null,null,null,null,""]
[null,null,null,null,null,null,""]
[null,null,null,null,null,null,""]
[null,null,null,null,null,null,{"$f":"CONCATENATE(D1606,B1606,E1606)","v":""}]
[null,null,null,null,null,null,""]
[null,null,null,null,null,null,""]
[null,null,null,null,null,null,""]
[null,null,null,null,null,null,""]
[null,null,null,null,null,null,""]
[null,null,null,null,null,null,""]
[null,null,null,null,null,null,""]
[null,null,null,null,null,null,""]
[null,null,null,null,null,null,""]
[null,null,null,null,null,null,""]
[null,null,null,null,null,null,""]
[null,null,null,null,null,null,""]
[null,null,null,null,null,null,""]
[null,null,null,null,null,null,""]
[null,null,null,null,null,null,""]
[null,null,null,null,null,null,""]
[null,null,null,null,null,null,""]
[null,null,null,null,null,null,""]
[null,null,null,null,null,null,""]
[null,null,null,null,null,null,""]
[null,null,null,null,null,null,""]
[null,null,null,null,null,null,""]
[null,null,null,null,null,null,""]
[null,null,null,null,null,null,""]
[null,null,null,null,null,null,""]
[null,null,null,null,null,null,""]
[null,null,null,null,null,null,""]
[null,null,null,null,null,null,""]
[null,null,null,null,null,null,""]
[null,null,null,null,null,null,""]
[null,null,null,null,null,null,""]
[null,null,null,null,null,null,""]
[null,null,null,null,null,null,""]
[null,null,null,null,null,null,""]
[null,null,null,null,null,null,""]
[null,null,null,null,null,null,""]
[null,null,null,null,null,null,""]
[null,null,null,null,null,null,""]
[null,null,null,null,null,null,""]
[null,null,null,null,null,null,""]
[null,null,null,null,null,null,""]
[null,null,null,null,null,null,""]
[null,null,null,null,null,null,""]
[null,null,null,null,null,null,""]
[null,null,null,null,null,null,""]
[null,null,null,null,null,null,""]
[null,null,null,null,null,null,""]
[null,null,null,null,null,null,""]
[null,null,null,null,null,null,""]
[null,null,null,null,null,null,""]
[null,null,null,null,null,null,""]
[null,null,null,null,null,null,""]
[null,null,null,null,null,null,""]
[null,null,null,null,null,null,""]
[null,null,null,null,null,null,""]
[null,null,null,null,null,null,""]
[null,null,null,null,null,null,""]
[null,null,null,null,null,null,""]
[null,null,null,null,null,null,""]
[null,null,null,null,null,null,""]
[null,null,null,null,null,null,""]
[null,null,null,null,null,null,""]
[null,null,null,null,null,null,""]
[null,null,null,null,null,null,{"$f":"CONCATENATE(D1670,B1670,E1670)","v":""}]
[null,null,null,null,null,null,""]
[null,null,null,null,null,null,""]
[null,null,null,null,null,null,""]
[null,null,null,null,null,null,""]
[null,null,null,null,null,null,""]
[null,null,null,null,null,null,""]
[null,null,null,null,null,null,""]
[null,null,null,null,null,null,""]
[null,null,null,null,null,null,""]
[null,null,null,null,null,null,""]
[null,null,null,null,null,null,""]
[null,null,null,null,null,null,""]
[null,null,null,null,null,null,""]
[null,null,null,null,null,null,""]
[null,null,null,null,null,null,""]
[null,null,null,null,null,null,""]
[null,null,null,null,null,null,""]
[null,null,null,null,null,null,""]
[null,null,null,null,null,null,""]
[null,null,null,null,null,null,""]
[null,null,null,null,null,null,""]
[null,null,null,null,null,null,""]
[null,null,null,null,null,null,""]
[null,null,null,null,null,null,""]
[null,null,null,null,null,null,""]
[null,null,null,null,null,null,""]
[null,null,null,null,null,null,""]
[null,null,null,null,null,null,""]
[null,null,null,null,null,null,""]
[null,null,null,null,null,null,""]
[null,null,null,null,null,null,""]
[null,null,null,null,null,null,""]
[null,null,null,null,null,null,""]
[null,null,null,null,null,null,""]
[null,null,null,null,null,null,""]
[null,null,null,null,null,null,""]
[null,null,null,null,null,null,""]
[null,null,null,null,null,null,""]
[null,null,null,null,null,null,""]
[null,null,null,null,null,null,""]
[null,null,null,null,null,null,""]
[null,null,null,null,null,null,""]
[null,null,null,null,null,null,""]
[null,null,null,null,null,null,""]
[null,null,null,null,null,null,""]
[null,null,null,null,null,null,""]
[null,null,null,null,null,null,""]
[null,null,null,null,null,null,""]
[null,null,null,null,null,null,""]
[null,null,null,null,null,null,""]
[null,null,null,null,null,null,""]
[null,null,null,null,null,null,""]
[null,null,null,null,null,null,""]
[null,null,null,null,null,null,""]
[null,null,null,null,null,null,""]
[null,null,null,null,null,null,""]
[null,null,null,null,null,null,""]
[null,null,null,null,null,null,""]
[null,null,null,null,null,null,""]
[null,null,null,null,null,null,""]
[null,null,null,null,null,null,""]
[null,null,null,null,null,null,""]
[null,null,null,null,null,null,""]
[null,null,null,null,null,null,{"$f":"CONCATENATE(D1734,B1734,E1734)","v":""}]
[null,null,null,null,null,null,""]
[null,null,null,null,null,null,""]
[null,null,null,null,null,null,""]
[null,null,null,null,null,null,""]
[null,null,null,null,null,null,""]
[null,null,null,null,null,null,""]
[null,null,null,null,null,null,""]
[null,null,null,null,null,null,""]
[null,null,null,null,null,null,""]
[null,null,null,null,null,null,""]
[null,null,null,null,null,null,""]
[null,null,null,null,null,null,""]
[null,null,null,null,null,null,""]
[null,null,null,null,null,null,""]
[null,null,null,null,null,null,""]
[null,null,null,null,null,null,""]
[null,null,null,null,null,null,""]
[null,null,null,null,null,null,""]
[null,null,null,null,null,null,""]
[null,null,null,null,null,null,""]
[null,null,null,null,null,null,""]
[null,null,null,null,null,null,""]
[null,null,null,null,null,null,""]
[null,null,null,null,null,null,""]
[null,null,null,null,null,null,""]
[null,null,null,null,null,null,""]
[null,null,null,null,null,null,""]
[null,null,null,null,null,null,""]
[null,null,null,null,null,null,""]
[null,null,null,null,null,null,""]
[null,null,null,null,null,null,""]
[null,null,null,null,null,null,""]
[null,null,null,null,null,null,""]
[null,null,null,null,null,null,""]
[null,null,null,null,null,null,""]
[null,null,null,null,null,null,""]
[null,null,null,null,null,null,""]
[null,null,null,null,null,null,""]
[null,null,null,null,null,null,""]
[null,null,null,null,null,null,""]
[null,null,null,null,null,null,""]
[null,null,null,null,null,null,""]
[null,null,null,null,null,null,""]
[null,null,null,null,null,null,""]
[null,null,null,null,null,null,""]
[null,null,null,null,null,null,""]
[null,null,null,null,null,null,""]
[null,null,null,null,null,null,""]
[null,null,null,null,null,null,""]
[null,null,null,null,null,null,""]
[null,null,null,null,null,null,""]
[null,null,null,null,null,null,""]
[null,null,null,null,null,null,""]
[null,null,null,null,null,null,""]
[null,null,null,null,null,null,""]
[null,null,null,null,null,null,""]
[null,null,null,null,null,null,""]
[null,null,null,null,null,null,""]
[null,null,null,null,null,null,""]
[null,null,null,null,null,null,""]
[null,null,null,null,null,null,""]
[null,null,null,null,null,null,""]
[null,null,null,null,null,null,""]
[null,null,null,null,null,null,{"$f":"CONCATENATE(D1798,B1798,E1798)","v":""}]
[null,null,null,null,null,null,""]
[null,null,null,null,null,null,""]
[null,null,null,null,null,null,""]
[null,null,null,null,null,null,""]
[null,null,null,null,null,null,""]
[null,null,null,null,null,null,""]
[null,null,null,null,null,null,""]
[null,null,null,null,null,null,""]
[null,null,null,null,null,null,""]
[null,null,null,null,null,null,""]
[null,null,null,null,null,null,""]
[null,null,null,null,null,null,""]
[null,null,null,null,null,null,""]
[null,null,null,null,null,null,""]
[null,null,null,null,null,null,""]
[null,null,null,null,null,null,""]
[null,null,null,null,null,null,""]
[null,null,null,null,null,null,""]
[null,null,null,null,null,null,""]
[null,null,null,null,null,null,""]
[null,null,null,null,null,null,""]
[null,null,null,null,null,null,""]
[null,null,null,null,null,null,""]
[null,null,null,null,null,null,""]
[null,null,null,null,null,null,""]
[null,null,null,null,null,null,""]
[null,null,null,null,null,null,""]
[null,null,null,null,null,null,""]
[null,null,null,null,null,null,""]
[null,null,null,null,null,null,""]
[null,null,null,null,null,null,""]
[null,null,null,null,null,null,""]
[null,null,null,null,null,null,""]
[null,null,null,null,null,null,""]
[null,null,null,null,null,null,""]
[null,null,null,null,null,null,""]
[null,null,null,null,null,null,""]
[null,null,null,null,null,null,""]
[null,null,null,null,null,null,""]
[null,null,null,null,null,null,""]
[null,null,null,null,null,null,""]
[null,null,null,null,null,null,""]
[null,null,null,null,null,null,""]
[null,null,null,null,null,null,""]
[null,null,null,null,null,null,""]
[null,null,null,null,null,null,""]
[null,null,null,null,null,null,""]
[null,null,null,null,null,null,""]
[null,null,null,null,null,null,""]
[null,null,null,null,null,null,""]
[null,null,null,null,null,null,""]
[null,null,null,null,null,null,""]
[null,null,null,null,null,null,""]
[null,null,null,null,null,null,""]
[null,null,null,null,null,null,""]
[null,null,null,null,null,null,""]
[null,null,null,null,null,null,""]
[null,null,null,null,null,null,""]
[null,null,null,null,null,null,""]
[null,null,null,null,null,null,""]
[null,null,null,null,null,null,""]
[null,null,null,null,null,null,""]
[null,null,null,null,null,null,""]
[null,null,null,null,null,null,{"$f":"CONCATENATE(D1862,B1862,E1862)","v":""}]
[null,null,null,null,null,null,""]
[null,null,null,null,null,null,""]
[null,null,null,null,null,null,""]
[null,null,null,null,null,null,""]
[null,null,null,null,null,null,""]
[null,null,null,null,null,null,""]
[null,null,null,null,null,null,""]
[null,null,null,null,null,null,""]
[null,null,null,null,null,null,""]
[null,null,null,null,null,null,""]
[null,null,null,null,null,null,""]
[null,null,null,null,null,null,""]
[null,null,null,null,null,null,""]
[null,null,null,null,null,null,""]
[null,null,null,null,null,null,""]
[null,null,null,null,null,null,""]
[null,null,null,null,null,null,""]
[null,null,null,null,null,null,""]
[null,null,null,null,null,null,""]
[null,null,null,null,null,null,""]
[null,null,null,null,null,null,""]
[null,null,null,null,null,null,""]
[null,null,null,null,null,null,""]
[null,null,null,null,null,null,""]
[null,null,null,null,null,null,""]
[null,null,null,null,null,null,""]
[null,null,null,null,null,null,""]
[null,null,null,null,null,null,""]
[null,null,null,null,null,null,""]
[null,null,null,null,null,null,""]
[null,null,null,null,null,null,""]
[null,null,null,null,null,null,""]
[null,null,null,null,null,null,""]
[null,null,null,null,null,null,""]
[null,null,null,null,null,null,""]
[null,null,null,null,null,null,""]
[null,null,null,null,null,null,""]
[null,null,null,null,null,null,""]
[null,null,null,null,null,null,""]
[null,null,null,null,null,null,""]
[null,null,null,null,null,null,""]
[null,null,null,null,null,null,""]
[null,null,null,null,null,null,""]
[null,null,null,null,null,null,""]
[null,null,null,null,null,null,""]
[null,null,null,null,null,null,""]
[null,null,null,null,null,null,""]
[null,null,null,null,null,null,""]
[null,null,null,null,null,null,""]
[null,null,null,null,null,null,""]
[null,null,null,null,null,null,""]
[null,null,null,null,null,null,""]
[null,null,null,null,null,null,""]

{"sheet":"PartCuerp","index":2,"n_rows":62,"n_cols":5,"rows_kept":62,"cut":false,"hidden":true,"merged":[]}
[null,null,null,null,{"$f":"CONCATENATE(A1,B1)","v":""}]
[null,null,null,null,"PARTE DEL CUERPO AFECTADA"]
[null,"COD","   DESCRIPCIÓN",null,{"$f":"CONCATENATE(B3,C3)","v":"COD   DESCRIPCIÓN"}]
[]
[null,100,"   Cabeza",null,{"$f":"CONCATENATE(B5,C5)","v":"100   Cabeza"}]
[null,110,"   Cerebro",null,"110   Cerebro"]
[null,120,"   Oído(s)",null,"120   Oído(s)"]
[null,121,"   Oído(s) externos",null,"121   Oído(s) externos"]
[null,124,"   Oído(s) internos (incluyendo la audición)",null,"124   Oído(s) internos (incluyendo la audición)"]
[null,130,"   Ojo(s),incluye nervio óptico y visión",null,"130   Ojo(s),incluye nervio óptico y visión"]
[null,140,"   Cara",null,"140   Cara"]
[null,141,"   Mandíbula, incluyendo barbilla",null,"141   Mandíbula, incluyendo barbilla"]
[null,144,"   Boca, incluyendo labios, dientes, lengua, sentido del gusto y garganta",null,"144   Boca, incluyendo labios, dientes, lengua, sentido del gusto y garganta"]
[null,146,"   Nariz, incluyendo fosas nasales, senos y sentido del olfato",null,"146   Nariz, incluyendo fosas nasales, senos y sentido del olfato"]
[null,148,"   Cara, partes múltiples (cualquier combinación de las partes antes citadas)",null,"148   Cara, partes múltiples (cualquier combinación de las partes antes citadas)"]
[null,149,"   Cara, no identificada en otra parte",null,"149   Cara, no identificada en otra parte"]
[null,150,"   Cuero cabelludo",null,"150   Cuero cabelludo"]
[null,160,"   Cráneo",null,"160   Cráneo"]
[null,198,"   Cabeza no identificada en otra parte",null,"198   Cabeza no identificada en otra parte"]
[null,200,"   Cuello",null,"200   Cuello"]
[null,300,"   Extremidades superiores",null,"300   Extremidades superiores"]
[null,311,"   Parte superior del brazo",null,"311   Parte superior del brazo"]
[null,313,"   Codo(s)",null,"313   Codo(s)"]
[null,315,"   Antebrazo(s)",null,"315   Antebrazo(s)"]
[null,318,"   Brazo múltiple (combinación de las partes antes citadas)",null,"318   Brazo múltiple (combinación de las partes antes citadas)"]
[null,319,"   Brazo no identificado en otra parte",null,"319   Brazo no identificado en otra parte"]
[null,320,"   Muñeca(s)",null,"320   Muñeca(s)"]
[null,330,"   Mano(s) (excluyendo muñeca y dedos)",null,"330   Mano(s) (excluyendo muñeca y dedos)"]
[null,340,"   Dedos mano",null,"340   Dedos mano"]
[null,398,"   Extremidades superiores múltiples",null,"398   Extremidades superiores múltiples"]
[null,399,"   Extremidades superiores, no identificadas en otra parte",null,"399   Extremidades superiores, no identificadas en otra parte"]
[null,400,"   Tronco",null,"400   Tronco"]
[null,410,"   Abdomen, incluye órganos internos",null,"410   Abdomen, incluye órganos internos"]
[null,420,"   Espalda, incluye músculos de columna y médula",null,"420   Espalda, incluye músculos de columna y médula"]
[null,430,"   Tórax (incluye costilla, esternón, órganos internos)",null,"430   Tórax (incluye costilla, esternón, órganos internos)"]
[null,440,"   Caderas (incluye pelvis, org. Pélvicos, nalgas)",null,"440   Caderas (incluye pelvis, org. Pélvicos, nalgas)"]
[null,450,"   Hombro(s)",null,{"$f":"CONCATENATE(B37,C37)","v":"450   Hombro(s)"}]
[null,498,"   Tronco múltiple (cualquier combinación de las partes anteriores)",null,"498   Tronco múltiple (cualquier combinación de las partes anteriores)"]
[null,499,"   Tronco no identificado en otra parte",null,"499   Tronco no identificado en otra parte"]
[null,500,"   Extremidades inferiores",null,"500   Extremidades inferiores"]
[null,510,"   Pierna (arriba del tobillo)",null,"510   Pierna (arriba del tobillo)"]
[null,511,"   Muslo(s)",null,"511   Muslo(s)"]
[null,513,"   Rodilla(s)",null,"513   Rodilla(s)"]
[null,515,"   Parte inferior de la pierna",null,"515   Parte inferior de la pierna"]
[null,518,"   Pierna múltiple (cualquier combinación de las partes anteriores)",null,"518   Pierna múltiple (cualquier combinación de las partes anteriores)"]
[null,519,"   Piernas no identificadas en otras partes",null,"519   Piernas no identificadas en otras partes"]
[null,520,"   Tobillo(s)",null,"520   Tobillo(s)"]
[null,530,"   Pie (excluyendo tobillos y dedos)",null,"530   Pie (excluyendo tobillos y dedos)"]
[null,540,"   Dedos del pie",null,"540   Dedos del pie"]
[null,598,"   Extremidades inferiores múltiple (cualquier combinación de las partes anteriores)",null,"598   Extremidades inferiores múltiple (cualquier combinación de las partes anteriores)"]
[null,599,"   Extremidades inferiores no identificadas",null,"599   Extremidades inferiores no identificadas"]
[null,700,"   Múltiples partes (cuando se ha afectado más de una de las partes del cuerpo)",null,"700   Múltiples partes (cuando se ha afectado más de una de las partes del cuerpo)"]
[null,800,"   Sistemas orgánicos",null,"800   Sistemas orgánicos"]
[null,801,"   Sistema circulatorio",null,"801   Sistema circulatorio"]
[null,810,"   Sistema digestivo",null,"810   Sistema digestivo"]
[null,820,"   Sistema excretorio",null,"820   Sistema excretorio"]
[null,830,"   Sistema músculo esquelético",null,"830   Sistema músculo esquelético"]
[null,840,"   Sistema nervioso",null,"840   Sistema nervioso"]
[null,850,"   Sistema respiratorio",null,"850   Sistema respiratorio"]
[null,880,"   Otros sistemas orgánicos",null,"880   Otros sistemas orgánicos"]
[null,900,"   Partes del cuerpo no identificadas en otra parte",null,"900   Partes del cuerpo no identificadas en otra parte"]
[null,999,"   Sin clasificar (insuficiente información para identificar la parte afectada)",null,"999   Sin clasificar (insuficiente información para identificar la parte afectada)"]

{"sheet":"TipLesion","index":3,"n_rows":32,"n_cols":5,"rows_kept":32,"cut":false,"hidden":true,"merged":[]}
[null,null,null,null,{"$f":"CONCATENATE(A1,B1)","v":""}]
[null,null,null,null,"TIPO DE LESION"]
[null,"COD","         DESCRIPCIÓN",null,{"$f":"CONCATENATE(B3,C3)","v":"COD         DESCRIPCIÓN"}]
[]
[null,10,"   Sin lesión aparente",null,{"$f":"CONCATENATE(B5,C5)","v":"10   Sin lesión aparente"}]
[null,100,"   Amputaciones, anucleaciones",null,{"$f":"CONCATENATE(B6,C6)","v":"100   Amputaciones, anucleaciones"}]
[null,110,"   Asfixia, estrangulación, ahogamiento",null,"110   Asfixia, estrangulación, ahogamiento"]
[null,120,"   Quemadura calórica",null,"120   Quemadura calórica"]
[null,130,"   Quemadura química",null,"130   Quemadura química"]
[null,140,"   Contusión cerebral",null,"140   Contusión cerebral"]
[null,150,"   Enf. Infecciosa o contagiosa",null,"150   Enf. Infecciosa o contagiosa"]
[null,160,"   Contusión, machucón, magullamiento",null,"160   Contusión, machucón, magullamiento"]
[null,170,"   Cortada, laceración, pinchazo",null,"170   Cortada, laceración, pinchazo"]
[null,180,"   Dermatitis, erupción, inflamación piel o tejido subcutáneo",null,"180   Dermatitis, erupción, inflamación piel o tejido subcutáneo"]
[null,190,"   Luxacion, esguince",null,"190   Luxacion, esguince"]
[null,200,"   Choque eléctrico, electrocución",null,"200   Choque eléctrico, electrocución"]
[null,210,"   Fractura",null,"210   Fractura"]
[null,220,"   Congelación, lesión cutánea por frío y otros efectos por la exposición a bajas temperaturas",null,"220   Congelación, lesión cutánea por frío y otros efectos por la exposición a bajas temperaturas"]
[null,230,"   Perdida de la audición o su deterioro",null,"230   Perdida de la audición o su deterioro"]
[null,240,"   Insolación, calambres calóricos, agotamiento o postración por calor y otros efectos del calor ambiental (no incluye quemaduras)",null,"240   Insolación, calambres calóricos, agotamiento o postración por calor y otros efectos del calor ambiental (no incluye quemaduras)"]
[null,250,"   Hernias, ruptura",null,"250   Hernias, ruptura"]
[null,260,"   Inflamación o irritación de músculos, articulaciones o tendones",null,"260   Inflamación o irritación de músculos, articulaciones o tendones"]
[null,270,"   Envenenamiento",null,"270   Envenenamiento"]
[null,280,"   Neumoconiosis",null,"280   Neumoconiosis"]
[null,290,"   Efectos de las radiaciones.  Quemaduras solares y toda forma de lesión de tejidos",null,"290   Efectos de las radiaciones.  Quemaduras solares y toda forma de lesión de tejidos"]
[null,300,"   Raspaduras, abrasiones",null,"300   Raspaduras, abrasiones"]
[null,310,"   Distensiones, desgarros",null,"310   Distensiones, desgarros"]
[null,400,"   Lesiones múltiples",null,"400   Lesiones múltiples"]
[null,990,"   Enfermedad ocupacional (no identificada en otra parte)",null,"990   Enfermedad ocupacional (no identificada en otra parte)"]
[null,995,"   Otras lesiones, no identificadas en otra parte",null,"995   Otras lesiones, no identificadas en otra parte"]
[null,998,"   Muerte",null,"998   Muerte"]
[null,999,"   Sin clasificar, no determinada",null,"999   Sin clasificar, no determinada"]

{"sheet":"AgentAccd","index":4,"n_rows":57,"n_cols":5,"rows_kept":57,"cut":false,"hidden":true,"merged":[]}
[null,null,null,"   ",{"$f":"CONCATENATE(A1,B1)","v":""}]
[null,null,"AGENTE DEL ACCIDENTE","   ","AGENTE DEL ACCIDENTE"]
[null,null,null,"   "]
[null,"COD","   DESCRIPCIÓN","   ",{"$f":"CONCATENATE(B4,C4)","v":"COD   DESCRIPCIÓN"}]
[null,null,null,null,{"$f":"CONCATENATE(B5,C5)","v":""}]
[null,100,"   Presión atmosférica (ambiental anormal)","   ","100   Presión atmosférica (ambiental anormal)"]
[null,200,"   Animales (pájaros, insectos, reptiles (vivos))","   ","200   Animales (pájaros, insectos, reptiles (vivos))"]
[null,300,"   Productos animales (excluyendo alimentos)","   ","300   Productos animales (excluyendo alimentos)"]
[null,400,"   Movimiento del cuerpo (excluyendo levantar, halar, empujar, etc.)","   ","400   Movimiento del cuerpo (excluyendo levantar, halar, empujar, etc.)"]
[null,500,"   Calderas, recipientes a presión","   ","500   Calderas, recipientes a presión"]
[null,600,"   Cajas, barriles, envases, paquetes (vacíos o llenos)","   ","600   Cajas, barriles, envases, paquetes (vacíos o llenos)"]
[null,700,"   Edificaciones y estructuras (excluyendo pisos y superficies de trabajo)","   ","700   Edificaciones y estructuras (excluyendo pisos y superficies de trabajo)"]
[null,800,"   Objetos de cerámica","   ","800   Objetos de cerámica"]
[null,900,"   Sustancias o compuestos químicos","   ","900   Sustancias o compuestos químicos"]
[null,1000,"   Vestuario, trajes, zapatos","   ","1000   Vestuario, trajes, zapatos"]
[null,1100,"   Carbón y derivados del petróleo","   ","1100   Carbón y derivados del petróleo"]
[null,1200,"   Frío (atmosférico, ambiental)","   ","1200   Frío (atmosférico, ambiental)"]
[null,1300,"   Transportadores","   ","1300   Transportadores"]
[null,1400,"   Drogas y medicinas","   ","1400   Drogas y medicinas"]
[null,1500,"   Aparatos eléctricos","   ","1500   Aparatos eléctricos"]
[null,1600,"   Excavaciones","   ","1600   Excavaciones"]
[null,1700,"   Llama, fuego, humo","   ","1700   Llama, fuego, humo"]
[null,1800,"   Productos alimenticios (incluyendo animales y sus productos)","   ","1800   Productos alimenticios (incluyendo animales y sus productos)"]
[null,1900,"   Mobiliarios, muebles o adornos fijos, accesorios (excluyendo partes fijas de los edificios)","   ","1900   Mobiliarios, muebles o adornos fijos, accesorios (excluyendo partes fijas de los edificios)"]
[null,2000,"   Artículos de vidrio (excluyendo botellas, jarros, frascos)","   ","2000   Artículos de vidrio (excluyendo botellas, jarros, frascos)"]
[null,2200,"   Herramienta manual, no accionadas a motor","   ","2200   Herramienta manual, no accionadas a motor"]
[null,2300,"   Herramienta manual, accionada a motor","   ","2300   Herramienta manual, accionada a motor"]
[null,2400,"   Calor atmosférico, ambiental (excluyendo objetos o sustancias calientes)","   ","2400   Calor atmosférico, ambiental (excluyendo objetos o sustancias calientes)"]
[null,2500,"   Equipos de calefacción, no identificados en otra parte","   ","2500   Equipos de calefacción, no identificados en otra parte"]
[null,2600,"   Aparatos de izar","   ","2600   Aparatos de izar"]
[null,2700,"   Agentes infecciosos o parasitosos no identificados en otra parte","   ","2700   Agentes infecciosos o parasitosos no identificados en otra parte"]
[null,2800,"   Escaleras (fijas o portátiles)","   ","2800   Escaleras (fijas o portátiles)"]
[null,2900,"   Líquidos (no identificados en otra parte)","   ","2900   Líquidos (no identificados en otra parte)"]
[null,3000,"   Maquinas","   ","3000   Maquinas"]
[null,4000,"   Aparatos de transmisión de fuerza mecánica","   ","4000   Aparatos de transmisión de fuerza mecánica"]
[null,4100,"   Artículos de metal, no identificados en otra parte (platinas, varillas, alambres, etc.)","   ","4100   Artículos de metal, no identificados en otra parte (platinas, varillas, alambres, etc.)"]
[null,4200,"   Productos minerales, metálicos, no identificados en otra parte (productos de la minería en bruto o semi procesados)","   ","4200   Productos minerales, metálicos, no identificados en otra parte (productos de la minería en bruto o semi procesados)"]
[null,4300,"   Productos minerales no metálicos, no especificados en otra parte (lodo, arcilla, piedras, etc.)","   ","4300   Productos minerales no metálicos, no especificados en otra parte (lodo, arcilla, piedras, etc.)"]
[null,4500,"   Papel y artículos de pulpa no especificados en otra parte","   ","4500   Papel y artículos de pulpa no especificados en otra parte"]
[null,4600,"   Partículas (no identificables)","   ","4600   Partículas (no identificables)"]
[null,4700,"   Plantas, arboles, vegetación (en su estado natural, no incluye granos trillados, fruta recolectada, etc.)","   ","4700   Plantas, arboles, vegetación (en su estado natural, no incluye granos trillados, fruta recolectada, etc.)"]
[null,4800,"   Artículos de plástico no especificadas en otra parte (polvos, láminas, varillas, moldeados, etc.)","   ","4800   Artículos de plástico no especificadas en otra parte (polvos, láminas, varillas, moldeados, etc.)"]
[null,4900,"   Bombas y generadores de energía","   ","4900   Bombas y generadores de energía"]
[null,5000,"   Sustancias y equipo radioactivo","   ","5000   Sustancias y equipo radioactivo"]
[null,5100,"   Jabones, detergentes, compuestos para limpieza","   ","5100   Jabones, detergentes, compuestos para limpieza"]
[null,5200,"   Sílice","   ","5200   Sílice"]
[null,5300,"   Desecho industrial, escombros, materiales de desperdicio","   ","5300   Desecho industrial, escombros, materiales de desperdicio"]
[null,5400,"   Vapor","   ","5400   Vapor"]
[null,5500,"   Producto textil no especificado en otra parte (incluye fibras animales y vegetales y sintéticas)","   ","5500   Producto textil no especificado en otra parte (incluye fibras animales y vegetales y sintéticas)"]
[null,5600,"   Vehículos","   ","5600   Vehículos"]
[null,5700,"   Productos de madera, no especificados en otra parte (troncos, madera aserrada, tablas, etc.)","   ","5700   Productos de madera, no especificados en otra parte (troncos, madera aserrada, tablas, etc.)"]
[null,5800,"   Superficies de trabajo (superficie usada como apoyo para las personas)","   ","5800   Superficies de trabajo (superficie usada como apoyo para las personas)"]
[null,5900,"   Medio ambiente","   ","5900   Medio ambiente"]
[null,8800,"   Misceláneos, no especificado en otra parte","   ","8800   Misceláneos, no especificado en otra parte"]
[null,9800,"   Desconocido, sin identificar diferente a partículas","   ","9800   Desconocido, sin identificar diferente a partículas"]
[null,9900,"   Ninguno","   ","9900   Ninguno"]
[null,null,null,"   "]

{"sheet":"MecanAcc","index":5,"n_rows":20,"n_cols":5,"rows_kept":20,"cut":false,"hidden":true,"merged":[]}
[null,null,null,null,{"$f":"CONCATENATE(A1,B1)","v":""}]
[null,null,null,null,"MECANISMO O FUENTE DEL ACCIDENTE "]
[]
[null,"COD","   DESCRIPCIÓN",null,{"$f":"CONCATENATE(B4,C4)","v":"COD   DESCRIPCIÓN"}]
[]
[null,10,"   Golpeado contra",null,{"$f":"CONCATENATE(B6,C6)","v":"10   Golpeado contra"}]
[null,20,"   Golpeado por",null,"20   Golpeado por"]
[null,30,"   Caída de un nivel superior",null,"30   Caída de un nivel superior"]
[null,39,"   Caída a un nivel mas bajo no especificado en otra parte",null,"39   Caída a un nivel mas bajo no especificado en otra parte"]
[null,50,"   Caída de un mismo nivel",null,"50   Caída de un mismo nivel"]
[null,60,"   Cogido en debajo entre",null,"60   Cogido en debajo entre"]
[null,80,"   Fricción y raspadura",null,"80   Fricción y raspadura"]
[null,100,"   Reacción corporal",null,"100   Reacción corporal"]
[null,120,"   Sobre esfuerzo",null,"120   Sobre esfuerzo"]
[null,130,"   Contacto con corriente eléctrica",null,"130   Contacto con corriente eléctrica"]
[null,150,"   Contacto con temperaturas extremas",null,"150   Contacto con temperaturas extremas"]
[null,180,"   Contacto con radiaciones, sustancias cáusticas, tóxicas o nocivas",null,"180   Contacto con radiaciones, sustancias cáusticas, tóxicas o nocivas"]
[null,200,"   Accidente de transporte público",null,"200   Accidente de transporte público"]
[null,300,"   Accidente de vehículos motorizados",null,"300   Accidente de vehículos motorizados"]
[null,330,"   Accidentes sin choques",null,"330   Accidentes sin choques"]

{"sheet":"CAUSAS","index":6,"n_rows":62,"n_cols":5,"rows_kept":62,"cut":false,"hidden":true,"merged":[]}
[null,null,null,null,{"$f":"CONCATENATE(A1,B1)","v":""}]
[null,null,"CONDICIÓN INSEGURO O SUBESTANDAR (Causa inmediata)",null,"CONDICIÓN INSEGURO O SUBESTANDAR (Causa inmediata)"]
[null,"CÓDIGO","   DESCRIPCIÓN",null,{"$f":"CONCATENATE(B3,C3)","v":"CÓDIGO   DESCRIPCIÓN"}]
[null,null,null,null,{"$f":"CONCATENATE(B4,C4)","v":""}]
[null,"000","   Defecto de los agentes",null,"000   Defecto de los agentes"]
[null,100,"   Riesgo de la ropa o vestuario",null,"100   Riesgo de la ropa o vestuario"]
[null,200,"   Riesgos ambientales no especificados en otra parte",null,"200   Riesgos ambientales no especificados en otra parte"]
[null,300,"   Métodos o procedimientos peligrosos",null,"300   Métodos o procedimientos peligrosos"]
[null,400,"   Riesgos de colocación o emplazamiento",null,"400   Riesgos de colocación o emplazamiento"]
[null,500,"   Inadecuadamente protegido",null,"500   Inadecuadamente protegido"]
[null,600,"   Riesgos ambientales en trabajo exteriores, distintos a los riesgos públicos",null,"600   Riesgos ambientales en trabajo exteriores, distintos a los riesgos públicos"]
[null,700,"   Riesgos públicos",null,"700   Riesgos públicos"]
[null,980,"   Condiciones ambientales peligrosas, no especificadas en otra parte",null,"980   Condiciones ambientales peligrosas, no especificadas en otra parte"]
[null,990,"   Indeterminada, información insuficiente",null,"990   Indeterminada, información insuficiente"]
[null,999,"   No hay condición ambiental peligrosa",null,"999   No hay condición ambiental peligrosa"]
[]
[]
[null,"ACTO INSEGURO  (Causa inmediata)",null,null,"ACTO INSEGURO  (Causa inmediata)"]
[null,"CÓDIGO","   DESCRIPCIÓN",null,{"$f":"CONCATENATE(B19,C19)","v":"CÓDIGO   DESCRIPCIÓN"}]
[null,null,null,null,{"$f":"CONCATENATE(B20,C20)","v":""}]
[null,50,"     Limpieza, lubricación ajuste o reparación de equipo móvil eléctrico o de presión",null,"50     Limpieza, lubricación ajuste o reparación de equipo móvil eléctrico o de presión"]
[null,100,"   Omitir de uso de EPP disponible",null,"100   Omitir de uso de EPP disponible"]
[null,150,"   Omitir el uso de atuendo personal seguro",null,"150   Omitir el uso de atuendo personal seguro"]
[null,200,"   No asegurar, advertir",null,"200   No asegurar, advertir"]
[null,250,"   Bromas o juegos pesados, distraer, fastidiar, molestar, asustar, reñir, etc.",null,"250   Bromas o juegos pesados, distraer, fastidiar, molestar, asustar, reñir, etc."]
[null,300,"   Uso impropio del equipo",null,"300   Uso impropio del equipo"]
[null,350,"   Uso impropio de las manos o partes del cuerpo",null,"350   Uso impropio de las manos o partes del cuerpo"]
[null,400,"   Falta de atención a las condiciones del piso a las vecindades",null,"400   Falta de atención a las condiciones del piso a las vecindades"]
[null,450,"   Hacer inoperantes los dispositivos de seguridad",null,"450   Hacer inoperantes los dispositivos de seguridad"]
[null,500,"   Operar o trabajar a velocidad insegura",null,"500   Operar o trabajar a velocidad insegura"]
[null,550,"   Adoptar una posición o postura insegura",null,"550   Adoptar una posición o postura insegura"]
[null,600,"   Errores de conducción",null,"600   Errores de conducción"]
[null,650,"   Colocar, mezclar, combinar, etc. Inseguramente",null,"650   Colocar, mezclar, combinar, etc. Inseguramente"]
[null,750,"   Usar equipo inseguro",null,"750   Usar equipo inseguro"]
[null,900,"   Acto inseguro, no especificado en otra parte",null,"900   Acto inseguro, no especificado en otra parte"]
[null,998,"   Ningún acto inseguro",null,"998   Ningún acto inseguro"]
[null,999,"   Sin clasificación, datos inadecuados",null,"999   Sin clasificación, datos inadecuados"]
[null,null,null,null,""]
[null,null,null,null,""]
[null,"FACTORES DEL TRABAJO (Causa básica)",null,null,"FACTORES DEL TRABAJO (Causa básica)"]
[null,"CÓDIGO","   DESCRIPCIÓN",null,"CÓDIGO   DESCRIPCIÓN"]
[null,null,null,null,""]
[null,"000","   Supervisión y liderazgo deficientes",null,"000   Supervisión y liderazgo deficientes"]
[null,100,"   Ingeniería inadecuada",null,"100   Ingeniería inadecuada"]
[null,200,"   Deficiencia de las adquisiciones",null,"200   Deficiencia de las adquisiciones"]
[null,300,"   Manutención deficiente",null,"300   Manutención deficiente"]
[null,400,"   Herramientas y equipos inadecuados",null,"400   Herramientas y equipos inadecuados"]
[null,500,"   Estándares deficientes de trabajo",null,"500   Estándares deficientes de trabajo"]
[null,600,"   Uso y desgaste",null,"600   Uso y desgaste"]
[null,700,"   Abuso o maltrato",null,"700   Abuso o maltrato"]
[null,null,null,null,""]
[null,null,null,null,""]
[null,"FACTORES PERSONALES (Causa básica)",null,null,"FACTORES PERSONALES (Causa básica)"]
[null,"CÓDIGO","   DESCRIPCIÓN",null,"CÓDIGO   DESCRIPCIÓN"]
[null,null,null,null,""]
[null,"000","   Capacidad física / fisiológica inadecuada",null,"000   Capacidad física / fisiológica inadecuada"]
[null,100,"   Capacidad mental/ psicológica inadecuada",null,"100   Capacidad mental/ psicológica inadecuada"]
[null,200,"   Tensión física o fisiológica",null,"200   Tensión física o fisiológica"]
[null,300,"   Tensión mental o psicológica",null,"300   Tensión mental o psicológica"]
[null,400,"   Falta de conocimiento",null,"400   Falta de conocimiento"]
[null,500,"   Falta de habilidad",null,"500   Falta de habilidad"]
[null,600,"   Motivación deficiente",null,"600   Motivación deficiente"]

{"sheet":"factores personales","index":7,"n_rows":87,"n_cols":3,"rows_kept":87,"cut":false,"hidden":true,"merged":[]}
[]
[null,null,"Ninguno"]
[null,null,"000 Capacidad fisica/fisiológica inadecuada"]
[null,null,"001 Altura, peso, talla, fuerza, alcance, etc, inadecuados"]
[null,null,"002 Capacidad de movimiento corporal limitada"]
[null,null,"003 Capacidad limitada para mantenerse en determinadas posiciones corporales"]
[null,null,"004 Sensibilidad a ciertas sustancias o alergias"]
[null,null,"005 Sensibilidad a determinados extremos sensoriales (temperatura, sonido, etc.)"]
[null,null,"006 Visión defectuosa"]
[null,null,"007 Audición defectuosa"]
[null,null,"008 Otras deficiencias sensoriales (tacto, gusto, olfato, equilibrio)"]
[null,null,"009 Incapacidad respiratoria"]
[null,null,"010 Otras incapacidades físicas permanentes"]
[null,null,"011 Incapacidades temporales"]
[]
[null,null,"Ninguno"]
[null,null,"100 CAPACIDAD MENTAL/PSICOLÓGICA INADECUADA"]
[null,null,"101 Temores y fobias"]
[null,null,"102 Problemas emocionales"]
[null,null,"103 Enfermedad mental"]
[null,null,"104 Nivel de inteligencia"]
[null,null,"105 Incapacidad de comprensión"]
[null,null,"106 Falta de juicio"]
[null,null,"107 Escasa coordinación"]
[null,null,"108 Bajo tiempo de reacción"]
[null,null,"109 Aptitud mecánica deficiente"]
[null,null,"110 Baja aptitud de aprendizaje"]
[null,null,"111 Problemas de memoria"]
[]
[null,null,"Ninguno"]
[null,null,"200TENSIÓN FÍSICA O FISIOLÓGICA"]
[null,null,"201 Lesión o enfermedad"]
[null,null,"202 Fatiga debido a la carga o duración de las tareas"]
[null,null,"203 Fatiga debido a la falta de descanso"]
[null,null,"204 Fatiga debido a la sobrecarga sensorial"]
[null,null,"205 Exposición a riesgos contra la salud"]
[null,null,"206 Exposición a temperaturas extremas"]
[null,null,"207 Insuficiencia de oxígeno"]
[null,null,"208 Variaciones en la presión atmosférica"]
[null,null,"209 Restricción de movimiento"]
[null,null,"210 Insuficiencia de azúcar en la sangre"]
[null,null,"211 Ingestión de drogas"]
[]
[null,null,"Ninguno"]
[null,null,"300 TENSIÓN MENTAL O PSICOLÓGICA"]
[null,null,"301 Sobrecarga emocional"]
[null,null,"302 Fatiga debida a la carga o las limitaciones de tiempo de la tarea mental"]
[null,null,"303 Obligaciones que exigen un juicio o toma de decisiones extremas"]
[null,null,"304 Rutina, monotonía, exigencias para un cargo sin trascendencia"]
[null,null,"305 Exigencia de una concentración/percepción profunda"]
[null,null,"306 Actividades \"insignificantes\" o \"degradantes\""]
[null,null,"307 Órdenes confusas"]
[null,null,"308 Solicitudes conflictivas"]
[null,null,"309 Preocupación debido a problemas"]
[null,null,"310 Frustraciones"]
[null,null,"311 Enfermedad mental"]
[]
[null,null,"Ninguno"]
[null,null,"400 FALTA DE CONOCIMIENTO"]
[null,null,"401 Falta de experiencia"]
[null,null,"402 Orientación deficiente"]
[null,null,"403 Entrenamiento inicial inadecuado"]
[null,null,"404 Reentrenamiento insuficiente"]
[null,null,"405 Ordenes mal interpretadas"]
[]
[null,null,"Ninguno"]
[null,null,"500 FALTA DE HABILIDAD"]
[null,null,"501 Instrucción inicial insuficiente"]
[null,null,"502 Práctica insuficiente"]
[null,null,"503 Operación esporádica"]
[null,null,"504 Falta de preparación"]
[]
[null,null,"Ninguno"]
[null,null,"600 MOTIVACIÓN DEFICIENTE"]
[null,null,"601 El desempeño subestándar es más gratificante"]
[null,null,"602 El desempeño estándar causa desagrado"]
[null,null,"603 Falta de incentivos"]
[null,null,"604 Demasiadas frustraciones"]
[null,null,"605 Falta de desafíos"]
[null,null,"606 No existe intención de ahorro de tiempo y esfuerzo"]
[null,null,"607 No existe interés para evitar la incomodidad"]
[null,null,"608 Sin interés por sobresalir"]
[null,null,"609 Presión indebida de los compañeros"]
[null,null,"610 Ejemplo deficiente por parte de la supervisión"]
[null,null,"611 Retroalimentación deficiente en relación con el desempeño"]
[null,null,"612 Falta de refuerzo positivo para el comportamiento correcto"]
[null,null,"613 Falta de incentivos de producción"]

{"sheet":"factores del trabajo","index":8,"n_rows":94,"n_cols":3,"rows_kept":94,"cut":false,"hidden":true,"merged":[[4,3,10,3]]}
[null,null,"FACTORES DEL TRABAJO"]
[]
[null,null,"Ninguno"]
[null,null,"000 SUPERVISIÓN Y LIDERAZGO DEFICIENTES"]
[null,null,"001 Relaciones jerárquicas poco claras o conflictivas"]
[null,null,"002 Asignación de responsabilidades poco claras o conflictivas"]
[null,null,"003 Delegación insuficiente o inadecuada"]
[null,null,"004 Definir políticas, procedimientos, prácticas o líneas de acción inadecuadas"]
[null,null,"005 Formulación de objetivos, metas o estándares que ocasionan conflictos"]
[null,null,"006 Programación o planificación insuficiente del trabajo"]
[null,null,"007 Instrucción, orientación y/o entrenamiento insuficientes"]
[null,null,"008 Entrega   insuficiente   de   documentos   de   consulta,   de   instrucciones y de publicaciones guías"]
[null,null,"009 Identificación y evaluación deficiente de las exposiciones a pérdida"]
[null,null,"010 Falta de conocimiento en el trabajo de supervisión/ administración"]
[null,null,"011 Ubicación inadecuada del trabajador, de acuerdo con sus cualidades y con las exigencias que demanda la tarea"]
[null,null,"012 Medición y evaluación deficientes del desempeño"]
[null,null,"013 Retroalimentación deficiente o incorrecta en relación con el desempeño"]
[]
[null,null,"Ninguno"]
[null,null,"100 INGENIERÍA INADECUADA"]
[null,null,"101 Evaluación insuficiente de las exposiciones a pérdidas"]
[null,null,"102 Preocupación deficiente en cuanto a los factores humanos/ergonómicos"]
[null,null,"103 Estándares, especificaciones y/o criterios de diseño inadecuados"]
[null,null,"104 Control e inspecciones inadecuados de las construcciones"]
[null,null,"105 Evaluación deficiente de la condición conveniente para operar"]
[null,null,"106 Evaluación deficiente para el comienzo de una operación"]
[null,null,"107 Evaluación insuficiente respecto a los cambios que se produzcan"]
[]
[null,null,"Ninguno"]
[null,null,"200 DEFICIENCIA EN LAS ADQUISICIONES"]
[null,null,"201 Especificaciones deficientes en cuanto a los requerimientos"]
[null,null,"202 Investigación insuficiente respecto a las materias y a los equipos"]
[null,null,"203 Especificaciones deficientes para los vendedores"]
[null,null,"204 Modalidad o ruta de embarque inadecuada"]
[null,null,"205 Inspecciones de recepción y aceptación deficientes"]
[null,null,"206 Comunicación inadecuada de las informaciones sobre aspectos de seguridad y salud"]
[null,null,"207 Manejo inadecuado de los materiales"]
[null,null,"208 Almacenamiento inadecuado de los materiales"]
[null,null,"209 Transporte inadecuado de los materiales"]
[null,null,"210 Identificación deficiente de los ítems que implican riesgos"]
[null,null,"211 Sistemas deficientes de recuperación o de eliminación de desechos"]
[]
[null,null,"Ninguno"]
[null,null,"300 MANTENCIÓN DEFICIENTE"]
[null,null,"301 Aspectos preventivos inadecuados para evaluación de necesidades"]
[null,null,"302 Aspectos preventivos inadecuados para lubricación y servicio"]
[null,null,"303 Aspectos preventivos inadecuados para ajuste/ ensamble"]
[null,null,"304 Aspectos preventivos inadecuados para limpieza o pulimento"]
[null,null,"305 Aspectos correctivos inapropiados para comunicación de necesidades"]
[null,null,"306 Aspectos correctivos inapropiados para programación del trabajo"]
[null,null,"307 Aspectos correctivos inapropiados para revisión de las piezas"]
[null,null,"308 Aspectos correctivos inapropiados para reemplazo de partes defectuosas"]
[]
[null,null,"Ninguno"]
[null,null,"400 HERRAMIENTAS Y EQUIPOS INADECUADOS"]
[null,null,"401 Evaluación deficiente de las necesidades y los riesgos"]
[null,null,"402 Preocupación deficiente en cuanto a los factores humanos/ergonómicos"]
[null,null,"403 Estándares o especificaciones inadecuadas"]
[null,null,"404 Disponibilidad inadecuada"]
[null,null,"405 Ajustes/reparación/mantención deficiente"]
[null,null,"406 Sistema deficiente de reparación y recuperación de materiales"]
[null,null,"407 Eliminación y reemplazo inapropiados de piezas defectuosas"]
[]
[null,null,"Ninguno"]
[null,null,"500 ESTÁNDARES DEFICIENTES DE TRABAJO"]
[null,null,"501 Desarrollo inadecuado de normas para inventario y evaluación de las exposiciones y necesidades"]
[null,null,"502 Desarrollo  inadecuado  de  normas  para  coordinación  con  quienes  diseñan  el proceso"]
[null,null,"503 Desarrollo inadecuado de normas para compromiso con el trabajador"]
[null,null,"504 Desarrollo  inadecuado  de  normas  para  estándares/  procedimientos/  reglas inconsistentes"]
[null,null,"505 Comunicación inadecuada de las normas de publicación"]
[null,null,"506 Comunicación inadecuada de las normas de distribución"]
[null,null,"507 Comunicación inadecuada de las normas de adaptación a las lenguas respectivas"]
[null,null,"508 Comunicación inadecuada de las normas de entrenamiento"]
[null,null,"509 Comunicación  inadecuada  de  las  normas  de  reforzamiento  mediante  afiche, código de colores y ayudas para el trabajo"]
[null,null,"510 Manutención inadecuada de las normas de seguimiento del flujo de trabajo"]
[null,null,"511 Manutención inadecuada de las normas de actualización"]
[null,null,"512 Manutención  inadecuada  de  las  normas  de  control   de   uso   de   normas, procedimientos o reglamentos"]
[]
[null,null,"Ninguno"]
[null,null,"600 USO Y DESGASTE"]
[null,null,"601 Planificación inadecuada del uso"]
[null,null,"602 Prolongación excesiva de la vida útil del elemento"]
[null,null,"603 Inspección o control deficientes"]
[null,null,"604 Sobrecarga o proporción de uso excesivo"]
[null,null,"605 Manutención deficiente"]
[null,null,"606 Empleo del elemento por personas no calificadas o sin preparación"]
[null,null,"607 Empleo inadecuado para otros propósitos"]
[]
[null,null,"Ninguno"]
[null,null,"700 ABUSO O MALTRATO"]
[null,null,"701 Permitidos por la supervisión intencionalmente"]
[null,null,"702 Permitidos por la supervisión no intencionalmente"]
[null,null,"703 No permitidos por la supervisión intencionalmente"]
[null,null,"704 No permitidos por la supervisión no intencionalmente"]

{"sheet":"cond ambient subest","index":9,"n_rows":78,"n_cols":3,"rows_kept":78,"cut":false,"hidden":true,"merged":[]}
[]
[]
[]
[]
[null,null,"Ninguno"]
[null,null,"000 DEFECTO DE LOS AGENTES"]
[null,null,"001 Elaborado con materiales inadecuados"]
[null,null,"005 Romo, embotado, obtuso"]
[null,null,"010 Elaborado, construido, ensamblado inapropiadamente"]
[null,null,"015 Diseñado inapropiadamente"]
[null,null,"020 Áspero, tosco"]
[null,null,"025 Agudo, cortante"]
[null,null,"030 Resbaloso"]
[null,null,"035 Desgastado, cuarteado, raído, roto, etc."]
[null,null,"099 Otros defectos no especificados en otra parte"]
[]
[null,null,"Ninguno"]
[null,null,"100 RIESGO DE LA ROPA O VESTUARIO"]
[null,null,"110 Carencia del equipo de protección personal necesario"]
[null,null,"113 Ropa inadecuada o inapropiada"]
[null,null,"199 Riesgos de la ropa o vestuario no especificados en otra parte"]
[]
[null,null,"Ninguno"]
[null,null,"200 RIESGOS AMBIENTALES NO ESPECIFICADOS EN OTRA PARTE"]
[null,null,"205 Ruido excesivo"]
[null,null,"210 Espacio inadecuado de los pasillos, salidas, etc."]
[null,null,"220 Espacio libre inadecuado para movimientos de personas u objetos"]
[null,null,"230 Control inadecuado del tráfico"]
[null,null,"240 Ventilación general inadecuada, no debida a equipo defectuoso"]
[null,null,"250 Insuficiente espacio de trabajo"]
[null,null,"260 Iluminación inadecuada (insuficiente luz para la operación, brillo, etc.)"]
[null,null,"299 Riesgos ambientales no especificados en otra parte"]
[]
[null,null,"Ninguno"]
[null,null,"300 MÉTODOS O PROCEDIMIENTOS PELIGROSOS"]
[null,null,"310 Uso de material o equipo de por sí peligroso (no defectuoso)"]
[null,null,"320 Uso de métodos o procedimientos de por sí peligrosos"]
[null,null,"330 Uso de herramientas o equipo inadecuado o inapropiado (no defectuoso)"]
[null,null,"339 Métodos o procedimientos peligrosos, no especificados en otra parte"]
[null,null,"340 Ayuda inadecuada para levantar cosas pesadas"]
[null,null,"350 Ubicación del personal inapropiada (sin tener en cuenta las limitaciones físicas, habilidades, etc.)"]
[]
[null,null,"Ninguno"]
[null,null,"400 RIESGO DE COLOCACIÓN O EMPLAZAMIENTO (MATERIALES, EQUIPOS, ETC., EXCEPTUANDO LAS PERSONAS)"]
[null,null,"410 Inapropiadamente apilado"]
[null,null,"420 Colocados o emplazados inadecuadamente"]
[null,null,"430 Inadecuadamente asegurados contra movimientos inconvenientes (exceptuando apilamiento inestable)"]
[]
[null,null,"Ninguno"]
[null,null,"500 INADECUADAMENTE PROTEGIDO"]
[null,null,"510 Sin  protección  (riesgos  mecánicos  o  físicos  exceptuando  riesgos  eléctricos  y radiaciones)"]
[null,null,"520 Inadecuadamente protegido (riesgos mecánicos o físicos exceptuando riesgos eléctricos y radiaciones)"]
[null,null,"530 Carencia de o inadecuado apuntalamiento o entibación de minería, excavaciones, construcciones, etc."]
[null,null,"540 Sin conexión a tierra (eléctrico)"]
[null,null,"550 Sin aislamiento (eléctrico)"]
[null,null,"560 Conexiones, interruptores, etc., descubiertos (eléctrico)"]
[null,null,"570 Sin protección (radiación)"]
[null,null,"580 Inadecuadamente protegido (radiación)"]
[null,null,"590 Materiales sin rótulo o inadecuadamente rotulados"]
[null,null,"599 Inadecuadamente protegido, no especificado en otra parte"]
[]
[null,null,"Ninguno"]
[null,null,"600 RIESGOS AMBIENTALES EN TRABAJOS EXTERIORES, DISTINTOS A LOS OTROS RIESGOS PÚBLICOS"]
[null,null,"610 Predios o cosas defectuosas de extraños"]
[null,null,"620 Materiales o equipo defectuoso de extraños"]
[null,null,"630 Otros riesgos asociados con la propiedad u operaciones de extraños"]
[null,null,"640 Riesgos  naturales  (riesgos  de  terrenos  irregulares  e  inestables,  exposición  a elementos, animales salvajes, etc., encontradas en operaciones a campo abierto)"]
[]
[null,null,"Ninguno"]
[null,null,"700 RIESGOS PÚBLICOS"]
[null,null,"710 Riesgos del transporte público"]
[null,null,"720 Riesgo del tráfico"]
[null,null,"780 Otros riesgos públicos (riesgos de lugares públicos a los cuales también está expuesto el público en general)"]
[]
[null,null,"Ninguno"]
[null,null,"980 CONDICIONES AMBIENTALES PELIGROSAS NO ESPECIFICADAS EN OTRA PARTE"]
[null,null,"990 Indeterminada información insuficiente"]
[null,null,"999 No hay condición ambiental peligrosa"]

{"sheet":"actos subest","index":10,"n_rows":99,"n_cols":3,"rows_kept":99,"cut":false,"hidden":true,"merged":[]}
[]
[null,null,"ACTOS SUBESTÁNDARES"]
[]
[null,null,"Ninguno"]
[null,null,"050 LIMPIEZA, LUBRICACIÓN, AJUSTE O REPARACIÓN DE EQUIPO MÓVIL ELÉCTRICO O DE PRESIÓN"]
[null,null,"051 Apretar con martillo, empacar, etc., equipo bajo presión (recipientes a presión, válvulas, uniones, tubos, conexiones, etc.)"]
[null,null,"052 Limpiar, lubricar, ajustar, etc., equipo en movimiento"]
[null,null,"056 Soldar, reparar, etc., tanques, recipientes o equipo sin permiso del supervisor con respecto a la presencia de vapores, sustancias químicas peligrosas, etc."]
[null,null,"057 Trabajar en equipo cargado eléctricamente (motores, generadores, líneas, etc.)"]
[null,null,"059 No especificada en otra parte"]
[]
[null,null,"Ninguno"]
[null,null,"100 OMITIR EL USO DE EQUIPO DE PROTECCIÓN PERSONAL DISPONIBLE"]
[]
[null,null,"Ninguno"]
[null,null,"150 OMITIR EL USO DE ATUENDO PERSONAL SEGURO (Uso de zapatos de tacón alto, pelo suelto, mangas largas, ropa suelta, anillos, relojes, etc.)"]
[]
[null,null,"Ninguno"]
[null,null,"200 NO ASEGURAR O ADVERTIR"]
[null,null,"201 Omitir, cerrar, bloquear o asegurar los vehículos, interruptores, válvulas, prensas, otras herramientas, materiales y equipo, contra movimientos inesperados, flujo de corriente eléctrica, vapor, etc."]
[null,null,"202 Omitir el cierre del equipo que no está en uso"]
[null,null,"203 Omitir la colocación de avisos, señales, tarjetas, etc."]
[null,null,"205 Soltar o mover pesos, etc., sin dar aviso o advertencia adecuada"]
[null,null,"207 Iniciar o parar vehículos o equipos sin dar el aviso adecuado"]
[null,null,"209 No especificados en otra parte"]
[]
[null,null,"Ninguno"]
[null,null,"250 BROMAS O JUEGOS PESADOS (Distraer, fastidiar, molestar, asustar, reñir, chansearse pesadamente, lanzar materiales, exhibirse burlonamente, etc.)"]
[]
[null,null,"Ninguno"]
[null,null,"300 USO INADECUADO DEL EQUIPO"]
[null,null,"301 Uso del material o equipo de una manera para la cual no está indicado"]
[null,null,"305 Recargar de pesos (vehículos, andamios, etc.)"]
[null,null,"309 No especificados en otra parte"]
[]
[null,null,"Ninguno"]
[null,null,"350 USO INAPROPIADO DE LAS MANOS O PARTES DEL CUERPO"]
[null,null,"353 Agarrar los objetos inseguramente"]
[null,null,"355 Agarrar los objetos en forma errada"]
[null,null,"356 Usar las manos en lugar de las herramientas manuales (para alimentar, limpiar, reparar, ajustar, etc.)"]
[null,null,"359 No especificadas en otra parte"]
[]
[null,null,"Ninguno"]
[null,null,"400 FALTA DE ATENCIÓN A LAS CONDICIONES DEL PISO O LAS VECINDADES"]
[]
[null,null,"Ninguno"]
[null,null,"450 HACER INOPERANTES LOS DISPOSITIVOS DE SEGURIDAD"]
[null,null,"452 Bloquear, tapar, atar, etc., los dispositivos de seguridad"]
[null,null,"453 Desconectar o quitar los dispositivos de seguridad"]
[null,null,"454 Colocar mal los dispositivos de seguridad"]
[null,null,"456 Reemplazar los dispositivos de seguridad por otros de capacidad inapropiada (fusibles con mayor amperaje eléctrico, válvulas de seguridad de baja capacidad, etc.)"]
[null,null,"459 No especificados en otra parte"]
[]
[null,null,"Ninguno"]
[null,null,"500 OPERAR O TRABAJAR A VELOCIDAD INSEGURA"]
[null,null,"502 Alimentar o suministrar muy rápidamente"]
[null,null,"503 Saltar desde partes elevadas (vehículos, plataformas, etc.)"]
[null,null,"505 Operar los vehículos de la planta a velocidad insegura"]
[null,null,"506 Correr"]
[null,null,"508 Lanzar material en lugar de cargarlo o pasarlo"]
[null,null,"509 No especificados en otra parte"]
[]
[null,null,"Ninguno"]
[null,null,"550ADOPTAR UNA POSICIÓN INSEGURA"]
[null,null,"552 Entrar en tanques, cajones u otros espacios encerrados sin el debido permiso del supervisor"]
[null,null,"555 Viajar en posición insegura (en plataformas, horquillas o levantadores, elevadores, en el gancho de una grúa, etc.)"]
[null,null,"556 Exponerse innecesariamente bajo cargas suspendidas"]
[null,null,"557 Exponerse innecesariamente a cargas oscilantes"]
[null,null,"558 Exponerse innecesariamente a materiales o equipos que se mueven"]
[null,null,"559 Adoptar posición o postura  insegura no especificada en otra parte"]
[]
[null,null,"Ninguno"]
[null,null,"600 ERRORES DE CONDUCCIÓN"]
[]
[null,null,"Ninguno"]
[null,null,"601 Conducir demasiado rápido o demasiado despacio"]
[null,null,"602 Entrar o salir del vehículo por el lado del tráfico"]
[null,null,"603 No hacer la señal cuando se para, se voltea o se retrocede"]
[null,null,"604 Omitir el otorgamiento del derecho de vía"]
[null,null,"605 No obedecer las señales o signos del control del tráfico"]
[null,null,"606 No guardar la distancia"]
[null,null,"607 Pasar inapropiadamente"]
[null,null,"608 Voltear inapropiadamente"]
[null,null,"609 No especificados en otra parte"]
[]
[null,null,"Ninguno"]
[null,null,"650 COLOCAR, MEZCLAR, COMBINAR, ETC., INSEGURAMENTE"]
[null,null,"653 Inyectar, mezclar o combinar una sustancia con otra, de manera que se cree un riesgo de explosión, fuego u otro"]
[null,null,"655 Colocación  insegura  de  vehículos  o  equipo  de  movimiento  de  materiales (estacionar, situar, parar, o dejar vehículos elevadores o aparatos de transporte en posición insegura para cargar o descargar)"]
[null,null,"657 Colocación insegura de materiales, herramientas, desechos, etc. (como para crear riesgos de derrumbe, tropezón, choque o resbalón, etc.)"]
[null,null,"659 No especificados en otra parte"]
[]
[null,null,"Ninguno"]
[null,null,"750 USAR EQUIPO INSEGURO (Equipo rotulado o conocido como defectuoso)"]
[]
[null,null,"Ninguno"]
[null,null,"900 ACTO SUBESTÁNDAR NO ESPECIFICADO EN OTRA PARTE"]
[null,null,"998 Ningún acto subestándar"]
[null,null,"999 Sin clasificación (Datos insuficientes)."]

{"sheet":"FORMATO","index":11,"n_rows":80,"n_cols":175,"rows_kept":80,"cut":false,"hidden":false,"merged":[[49,19,49,20],[49,21,49,22],[50,6,50,18],[50,19,50,20],[50,21,50,22],[55,1,55,22],[59,1,59,22],[60,1,64,22],[56,1,56,22],[8,1,8,22],[9,1,9,22],[10,1,10,22],[33,1,33,22],[34,1,34,22],[35,1,35,22],[36,1,36,22],[37,1,37,22],[38,1,38,22],[53,1,53,22],[54,1,54,22],[52,1,52,22],[32,1,32,22],[47,1,50,5],[47,6,47,18],[47,19,47,20],[47,21,47,22],[48,6,48,18],[48,19,48,20],[48,21,48,22],[49,6,49,18],[67,6,67,14],[68,6,68,14],[69,6,69,14],[67,19,67,22],[68,19,68,22],[7,1,7,22],[12,1,12,22],[13,1,13,22],[14,1,14,22],[23,1,23,22],[25,1,25,22],[26,1,26,22],[27,1,27,22],[28,1,31,22],[22,1,22,22],[24,1,24,22],[21,1,21,22],[19,1,20,22],[18,1,18,22],[11,1,11,22],[15,1,15,22],[16,1,17,22],[58,1,58,22],[57,1,57,22],[75,19,75,22],[74,19,74,22],[75,1,75,5],[75,15,75,18],[68,15,68,18],[66,1,66,5],[66,6,66,14],[66,15,66,18],[66,19,66,22],[72,1,72,5],[72,6,72,14],[72,15,72,18],[72,19,72,22],[71,1,71,5],[71,6,71,14],[71,15,71,18],[71,19,71,22],[70,1,70,5],[70,6,70,14],[70,19,70,22],[70,15,70,18],[69,1,69,5],[68,1,68,5],[67,1,67,5],[6,1,6,22],[76,1,76,5],[77,1,77,5],[76,6,76,14],[77,6,77,14],[78,1,78,5],[78,6,78,14],[78,15,78,18],[78,19,78,22],[74,1,74,5],[67,15,67,18],[75,6,75,14],[73,1,73,5],[73,15,73,18],[73,6,73,14],[73,19,73,22],[76,15,76,18],[77,15,77,18],[76,19,76,22],[77,19,77,22],[69,19,69,22],[69,15,69,18],[74,6,74,14],[74,15,74,18],[4,6,4,18],[4,19,4,20],[4,21,4,22],[1,1,4,5],[1,6,1,18],[1,19,1,20],[1,21,1,22],[2,6,2,18],[2,19,2,20],[2,21,2,22],[3,6,3,18],[3,19,3,20],[3,21,3,22]]}
[]
[null,null,null,null,null,null,"Nombre del Procedimiento",null,null,null,null,null,null,null,null,null,null,null,null,"Código:",null,"GT-PR09-FT01"]
[null,null,null,null,null,null,"REPORTE E INVESTIGACIÓN DE ACCIDENTES E\nINCIDENTES ",null,null,null,null,null,null,null,null,null,null,null,null,"Versión:",null,4]
[null,null,null,null,null,null,"Nombre del Formato",null,null,null,null,null,null,null,null,null,null,null,null,"Vigencia:",null,"2025-10-15"]
[null,null,null,null,null,null,"INVESTIGACIÓN DE ACCIDENTES NIVEL 1",null,null,null,null,null,null,null,null,null,null,null,null,"Página:",null,"1 de 2"]
[]
[null,"1. DATOS GENERALES DEL TRABAJADOR ACCIDENTADO ",null,null,null,null,null,null,null,null,null,null,null,null,null,null,null,null,null,null,null,null,null,null,null,null,null,null,null,null,null,null,null,null,null,null,null,null,null,null,null,null,null,null,null,null,null,null,null,null,null,null,null,null,null,null,null,null,null,null,null,null,null,null,null,null,null,null,null,null,null,null,null,null,null,null,null,null,null,null,null,null,null,null,null,null,null,null,null,null,null,null,null,null,null,null,null,null,null,null,null,null,null,null,null,null,null,null,null,null,null,null,null,null,null,null,null,null,null,null,null,null,null,null,null,null,null,null,null,null,null,null,null,null,null,null,null,null,null,null,null,null,null,null,null,null,null,null,null,null,null,null,null,null,null,null,null,null,null,null,null,null,null,null,null,null,null,null,null,null,null,null,"Vigencia:",null,"xx/06/2021"]
[null,"NOMBRE (S)",null,null,null,null,null,null,null,null,null,null,null,null,null,null,null,null,null,null,null,null,null,null,null,null,null,null,null,null,null,null,null,null,null,null,null,null,null,null,null,null,null,null,null,null,null,null,null,null,null,null,null,null,null,null,null,null,null,null,null,null,null,null,null,null,null,null,null,null,null,null,null,null,null,null,null,null,null,null,null,null,null,null,null,null,null,null,null,null,null,null,null,null,null,null,null,null,null,null,null,null,null,null,null,null,null,null,null,null,null,null,null,null,null,null,null,null,null,null,null,null,null,null,null,null,null,null,null,null,null,null,null,null,null,null,null,null,null,null,null,null,null,null,null,null,null,null,null,null,null,null,null,null,null,null,null,null,null,null,null,null,null,null,null,null,null,null,null,null,null,null,"Página:",null,"1 de 1"]
[null,"IDENTIFICACIÓN"]
[null,"CELULAR"]
[null,"SEDE Y TURNO"]
[null,"2. INFORMACION SOBRE EL ACCIDENTE O INCIDENTE",null,null,null,null,null,null,null,null,null,null,null,null,null,null,null,null,null,null,null,null,null,7,"JUL",null,"DOMINGO",null,"APRENDIZAJE",null,null,null,null,null,null,null,"SELECCIONAR",null,null,null,null,null,null,null,null,null,null,null,null,null,null,null,null,null,null,null,null,null,null,null,null,null,null,null,null,null,null,null,null,null,null,null,null,null,null,null,null,null,null,null,null,null,null,null,null,null,null,null,null,null,null,null,null,null,null,null,null,null,null,null,null,null,null,null,null,null,null,null,null,null,null,null,null,null,null,null,null,"(20) Luxación","(1.12) Ojo","(2) MEDIOS DE TRANSPORTE","(2) CAÍDA DE OBJETOS",null,null,null,null,null,null,null,null,null,null,null,null,null,"13",13,"DIC",1962]
[null,"FECHA Y HORA DEL EVENTO:"]
[null,"JORNADA EN QUE SUCEDE:"]
[null,"TIPO DE EVENTO (ACCIDENTE O INCIDENTE):"]
[null,"3.DESCRIPCIÓN DEL EVENTO (VERSION FURAT)",null,null,null,null,null,null,null,null,null,null,null,null,null,null,null,null,null,null,null,null,null,17,null,null,null,null,null,"08",null,null,null,null,null,null,null,null,null,null,null,null,null,null,null,null,null,null,null,null,null,null,null,null,null,null,null,null,null,null,null,null,null,null,null,null,null,null,null,null,null,null,null,null,null,null,null,null,null,null,null,null,null,null,null,null,null,null,null,null,null,null,null,null,null,null,null,null,null,null,null,null,null,null,null,null,null,null,null,null,null,null,null,null,null,null,null,"(81) Asfixia","(7) Lesiones generales u otras",null,null,null,null,null,null,null,null,null,null,null,null,null,null,null,"23",23,null,1972]
[null,null,null,null,null,null,null,null,null,null,null,null,null,null,null,null,null,null,null,null,null,null,null,18,null,null,null,null,null,"09",null,null,null,null,null,null,null,null,null,null,null,null,null,null,null,null,null,null,null,null,null,null,null,null,null,null,null,null,null,null,null,null,null,null,null,null,null,null,null,null,null,null,null,null,null,null,null,null,null,null,null,null,null,null,null,null,null,null,null,null,null,null,null,null,null,null,null,null,null,null,null,null,null,null,null,null,null,null,null,null,null,null,null,null,null,null,null,"(82) Efectos de Electricidad","SELECCIONAR",null,null,null,null,null,null,null,null,null,null,null,null,null,null,null,"24",24,null,1973]
[null,null,null,null,null,null,null,null,null,null,null,null,null,null,null,null,null,null,null,null,null,null,null,19,null,null,null,null,null,"10",null,null,null,null,null,null,null,null,null,null,null,null,null,null,null,null,null,null,null,null,null,null,null,null,null,null,null,null,null,null,null,null,null,null,null,null,null,null,null,null,null,null,null,null,null,null,null,null,null,null,null,null,null,null,null,null,null,null,null,null,null,null,null,null,null,null,null,null,null,null,null,null,null,null,null,null,null,null,null,null,null,null,null,null,null,null,null,"(83) Efectos nocivos de la Radiación",null,null,null,null,null,null,null,null,null,null,null,null,null,null,null,null,"25",24,null,1974]
[null,"4. DECLARACIÓN DEL TRABAJADOR ACCIDENTADO",null,null,null,null,null,null,null,null,null,null,null,null,null,null,null,null,null,null,null,null,null,20,null,null,null,null,null,"11",null,null,null,null,null,null,null,null,null,null,null,null,null,null,null,null,null,null,null,null,null,null,null,null,null,null,null,null,null,null,null,null,null,null,null,null,null,null,null,null,null,null,null,null,null,null,null,null,null,null,null,null,null,null,null,null,null,null,null,null,null,null,null,null,null,null,null,null,null,null,null,null,null,null,null,null,null,null,null,null,null,null,null,null,null,null,null,"(90) Lesiones Múltiples",null,null,null,null,null,null,null,null,null,null,null,null,null,null,null,null,"26",25,null,1975]
[null,null,null,null,null,null,null,null,null,null,null,null,null,null,null,null,null,null,null,null,null,null,null,21,null,null,null,null,null,"12",null,null,null,null,null,null,null,null,null,null,null,null,null,null,null,null,null,null,null,null,null,null,null,null,null,null,null,null,null,null,null,null,null,null,null,null,null,null,null,null,null,null,null,null,null,null,null,null,null,null,null,null,null,null,null,null,null,null,null,null,null,null,null,null,null,null,null,null,null,null,null,null,null,null,null,null,null,null,null,null,null,null,null,null,null,null,null,"(99) Otro",null,null,null,null,null,null,null,null,null,null,null,null,null,null,null,null,"27",26,null,1976]
[null,null,null,null,null,null,null,null,null,null,null,null,null,null,null,null,null,null,null,null,null,null,null,22,null,null,null,null,null,"13",null,null,null,null,null,null,null,null,null,null,null,null,null,null,null,null,null,null,null,null,null,null,null,null,null,null,null,null,null,null,null,null,null,null,null,null,null,null,null,null,null,null,null,null,null,null,null,null,null,null,null,null,null,null,null,null,null,null,null,null,null,null,null,null,null,null,null,null,null,null,null,null,null,null,null,null,null,null,null,null,null,null,null,null,null,null,null,"SELECCIONAR",null,null,null,null,null,null,null,null,null,null,null,null,null,null,null,null,"28",27,null,1977]
[null,"5.TESTIGOS DEL ACCIDENTE O INCIDENTE",null,null,null,null,null,null,null,null,null,null,null,null,null,null,null,null,null,null,null,null,null,25,null,null,null,null,null,"16",null,null,null,null,null,null,null,null,null,null,null,null,null,null,null,null,null,null,null,null,null,null,null,null,null,null,null,null,null,null,null,null,null,null,null,null,null,null,null,null,null,null,null,null,null,null,null,null,null,null,null,null,null,null,null,null,null,null,null,null,null,null,null,null,null,null,null,null,null,null,null,null,null,null,null,null,null,null,null,null,null,null,null,null,null,null,null,null,null,null,null,null,null,null,null,null,null,null,null,null,null,null,null,null,"31",30,null,1980]
[null,null,null,null,null,null,null,null,null,null,null,null,null,null,null,null,null,null,null,null,null,null,null,26,null,null,null,null,null,"17",null,null,null,null,null,null,null,null,null,null,null,null,null,null,null,null,null,null,null,null,null,null,null,null,null,null,null,null,null,null,null,null,null,null,null,null,null,null,null,null,null,null,null,null,null,null,null,null,null,null,null,null,null,null,null,null,null,null,null,null,null,null,null,null,null,null,null,null,null,null,null,null,null,null,null,null,null,null,null,null,null,null,null,null,null,null,null,null,null,null,null,null,null,null,null,null,null,null,null,null,null,null,null,null,"32",31,null,1981]
[null,"NOMBRES Y APELLIDOS:"]
[null,"IDENTIFICACIÓN:"]
[null,"CARGO:",null,null,null,null,null,null,null,null,null,null,null,null,null,null,null,null,null,null,null,null,null,27,null,null,null,null,null,"18",null,null,null,null,null,null,null,null,null,null,null,null,null,null,null,null,null,null,null,null,null,null,null,null,null,null,null,null,null,null,null,null,null,null,null,null,null,null,null,null,null,null,null,null,null,null,null,null,null,null,null,null,null,null,null,null,null,null,null,null,null,null,null,null,null,null,null,null,null,null,null,null,null,null,null,null,null,null,null,null,null,null,null,null,null,null,null,null,null,null,null,null,null,null,null,null,null,null,null,null,null,null,null,null,"33",null,null,1982]
[null,"TELEFONO:",null,null,null,null,null,null,null,null,null,null,null,null,null,null,null,null,null,null,null,null,null,28,null,null,null,null,null,"19",null,null,null,null,null,null,null,null,null,null,null,null,null,null,null,null,null,null,null,null,null,null,null,null,null,null,null,null,null,null,null,null,null,null,null,null,null,null,null,null,null,null,null,null,null,null,null,null,null,null,null,null,null,null,null,null,null,null,null,null,null,null,null,null,null,null,null,null,null,null,null,null,null,null,null,null,null,null,null,null,null,null,null,null,null,null,null,null,null,null,null,null,null,null,null,null,null,null,null,null,null,null,null,null,"34",null,null,1983]
[null,"5,1. DECLARACIÓN DEL TESTIGO",null,null,null,null,null,null,null,null,null,null,null,null,null,null,null,null,null,null,null,null,null,29,null,null,null,null,null,"20",null,null,null,null,null,null,null,null,null,null,null,null,null,null,null,null,null,null,null,null,null,null,null,null,null,null,null,null,null,null,null,null,null,null,null,null,null,null,null,null,null,null,null,null,null,null,null,null,null,null,null,null,null,null,null,null,null,null,null,null,null,null,null,null,null,null,null,null,null,null,null,null,null,null,null,null,null,null,null,null,null,null,null,null,null,null,null,null,null,null,null,null,null,null,null,null,null,null,null,null,null,null,null,null,"35",null,null,1984]
[null,null,null,null,null,null,null,null,null,null,null,null,null,null,null,null,null,null,null,null,null,null,null,30,null,null,null,null,null,"21",null,null,null,null,null,null,null,null,null,null,null,null,null,null,null,null,null,null,null,null,null,null,null,null,null,null,null,null,null,null,null,null,null,null,null,null,null,null,null,null,null,null,null,null,null,null,null,null,null,null,null,null,null,null,null,null,null,null,null,null,null,null,null,null,null,null,null,null,null,null,null,null,null,null,null,null,null,null,null,null,null,null,null,null,null,null,null,null,null,null,null,null,null,null,null,null,null,null,null,null,null,null,null,null,"36",null,null,1985]
[null,null,null,null,null,null,null,null,null,null,null,null,null,null,null,null,null,null,null,null,null,null,null,31,null,null,null,null,null,"22",null,null,null,null,null,null,null,null,null,null,null,null,null,null,null,null,null,null,null,null,null,null,null,null,null,null,null,null,null,null,null,null,null,null,null,null,null,null,null,null,null,null,null,null,null,null,null,null,null,null,null,null,null,null,null,null,null,null,null,null,null,null,null,null,null,null,null,null,null,null,null,null,null,null,null,null,null,null,null,null,null,null,null,null,null,null,null,null,null,null,null,null,null,null,null,null,null,null,null,null,null,null,null,null,"37",null,null,1986]
[null,null,null,null,null,null,null,null,null,null,null,null,null,null,null,null,null,null,null,null,null,null,null,null,null,null,null,null,null,"23",null,null,null,null,null,null,null,null,null,null,null,null,null,null,null,null,null,null,null,null,null,null,null,null,null,null,null,null,null,null,null,null,null,null,null,null,null,null,null,null,null,null,null,null,null,null,null,null,null,null,null,null,null,null,null,null,null,null,null,null,null,null,null,null,null,null,null,null,null,null,null,null,null,null,null,null,null,null,null,null,null,null,null,null,null,null,null,null,null,null,null,null,null,null,null,null,null,null,null,null,null,null,null,null,"38",null,null,1987]
[null,null,null,null,null,null,null,null,null,null,null,null,null,null,null,null,null,null,null,null,null,null,null,null,null,null,null,null,null,"24",null,null,null,null,null,null,null,null,null,null,null,null,null,null,null,null,null,null,null,null,null,null,null,null,null,null,null,null,null,null,null,null,null,null,null,null,null,null,null,null,null,null,null,null,null,null,null,null,null,null,null,null,null,null,null,null,null,null,null,null,null,null,null,null,null,null,null,null,null,null,null,null,null,null,null,null,null,null,null,null,null,null,null,null,null,null,null,null,null,null,null,null,null,null,null,null,null,null,null,null,null,null,null,null,"39",null,null,1988]
[null,"6. METODOLOGIA: 5 PORQUES ¿? "]
[null,"PROBLEMA A EVALUAR:"]
[null,"POR QUÉ 1:"]
[null,"POR QUÉ 2:"]
[null,"POR QUÉ 3:"]
[null,"POR QUÉ 4:"]
[null,"POR QUÉ 5:"]
[]
[]
[]
[]
[]
[]
[]
[]
[null,null,null,null,null,null,"Nombre del Procedimiento",null,null,null,null,null,null,null,null,null,null,null,null,"Código:",null,"GT-PR09-FT01"]
[null,null,null,null,null,null,"REPORTE E INVESTIGACIÓN DE ACCIDENTES E\nINCIDENTES ",null,null,null,null,null,null,null,null,null,null,null,null,"Versión:",null,4]
[null,null,null,null,null,null,"Nombre del Formato",null,null,null,null,null,null,null,null,null,null,null,null,"Vigencia:"]
[null,null,null,null,null,null,"INVESTIGACIÓN DE ACCIDENTES NIVEL 1",null,null,null,null,null,null,null,null,null,null,null,null,"Página:",null,"2 de 2"]
[]
[null,"7. IDENTIFICACIÓN DE CAUSAS DEL ACCIDENTE (Ver Norma NTC 3701)",null,null,null,null,null,null,null,null,null,null,null,null,null,null,null,null,null,null,null,null,null,null,null,null,null,null,null,"55",null,null,null,null,null,null,null,null,null,null,null,null,null,null,null,null,null,null,null,null,null,null,null,null,null,null,null,null,null,null,null,null,null,null,null,null,null,null,null,null,null,null,null,null,null,null,null,null,null,null,null,null,null,null,null,null,null,null,null,null,null,null,null,null,null,null,null,null,null,null,null,null,null,null,null,null,null,null,null,null,null,null,null,null,null,null,null,null,null,null,null,null,null,null,null,null,null,null,null,null,null,null,null,null,null,null,null,2016]
[null,"CAUSAS BÁSICAS\nCorresponden a las causas reales que se manifiestan después de los síntomas, son las razones por las cuales ocurren las causas inmediatas.\n",null,null,null,null,null,null,null,null,null,null,null,null,null,null,null,null,null,null,null,null,null,null,null,null,null,null,null,"56",null,null,null,null,null,null,null,null,null,null,null,null,null,null,null,null,null,null,null,null,null,null,null,null,null,null,null,null,null,null,null,null,null,null,null,null,null,null,null,null,null,null,null,null,null,null,null,null,null,null,null,null,null,null,null,null,null,null,null,null,null,null,null,null,null,null,null,null,null,null,null,null,null,null,null,null,null,null,null,null,null,null,null,null,null,null,null,null,null,null,null,null,null,null,null,null,null,null,null,null,null,null,null,null,null,null,null,2017]
[null,"FACTORES PERSONALES\nAquellas causas que originan los actos inseguros como la Capacidad física / fisiológica Inadecuada, capacidad Mental / Psicológica Inadecuada, Tensión Física o mental Falta de Conocimiento:\n"]
[null,"FACTORES DE TRABAJO\nAquellas causas propias de la organización que originan las condiciones inseguras como Supervisión y liderazgo deficientes, Herramientas y equipos inadecuados Estándares Deficientes de trabajo\n\n"]
[null,"CAUSAS INMEDIATAS\nCircunstancias que se presentan antes del contacto que produce la pérdida (accidente):\n\n\n"]
[null,"CONDICIONES AMBIENTALES INSEGURAS O SUBESTÁNDAR\nAquellas originadas por el ambiente de trabajo, máquinas, equipos, herramientas, instalaciones procesos, o procedimientos, independiente del comportamiento de las personas:"]
[null,"ACTOS INSEGUROS O SUBESTÁNDAR\nAquellos originados por las acciones u omisión de las personas.  Acto que realiza el trabajador de manera insegura o inapropiada:\n\n"]
[null,"CONCLUSIONES CAUSA RAIZ"]
[]
[null,null,null,null,null,null,null,null,null,null,null,null,null,null,null,null,null,null,null,null,null,null,null,null,null,null,null,null,null,null,null,null,null,null,null,null,null,null,null,null,null,null,null,null,null,null,null,null,null,null,null,null,null,null,null,null,null,null,null,null,null,null,null,null,null,null,null,null,null,null,null,null,null,null,null,null,null,null,null,null,null,null,null,null,null,null,null,null,null,null,null,null,null,null,null,null,null,null,null,null,null,null,null,null,null,null,null,null,null,null,null,null,null,null,null,null,null,null,null,null,null,null,null,null,null,null,null,null,null,null,null,null,null,null,null,null,null,null,null,null,null,null,null,null,null,null,null,null,null,null,null,null,null,null,null,null,null,null,null,null,null,null,null,null,"|"]
[]
[]
[]
[]
[null,null,null,null,null,null,"9. MEDIDAS DE INTERVENCIÓN"]
[null,"TIPO DE CONTROL (F,M,T)",null,null,null,null,"MEDIDAS DE CONTROL",null,null,null,null,null,null,null,null,"PRIORIDAD",null,null,null,"RESPONSABLE Y FECHA EJECUCIÓN"]
[]
[]
[]
[null,"F: Fuente – M: Medio – T: Trabajador"]
[null,null,null,null,null,null,"EQUIPO INVESTIGADOR"]
[null,"CARGO",null,null,null,null,"NOMBRES Y APELLIDOS",null,null,null,null,null,null,null,null,"IDENTIFICACION",null,null,null,"FIRMA"]
[null,"JEFE INMEDIATO"]
[null,"RESPONSABLE SST"]
[null,"REPRESENTANTE COPASST  O VIGIA"]
[null,"TRABAJADOR"]
[null,"TESTIGO"]
[null,"Nota: Si usted imprime este documento se considera “Copia No Controlada” por lo tanto debe consultar la versión vigente en el sitio oficial de los documentos"]

{"sheet":"NTC3701","index":12,"n_rows":20,"n_cols":2,"rows_kept":20,"cut":false,"hidden":false,"merged":[[5,1,5,2],[0,1,0,2],[1,1,1,2],[2,1,2,2],[3,1,3,2],[4,1,4,2]]}
[null,"El análisis de causalidad se realiza mediante la Norma Técnica Colombiana NTC 3701"]
[null,"NTC 3701"]
[null,"HIGIENE Y SEGURIDAD. \nGUÍA PARA LA CLASIFICACIÓN, REGISTRO Y ESTADÍSTICA DE ACCIDENTES DEL TRABAJO Y ENFERMEDADES PROFESIONALES."]
[null,"Objeto: Esta guía da las definiciones y pautas para mantener los registros básicos de accidentes de trabajo y enfermedades profesionales, en concordancia con las exigencias legales. "]
[null,"Analisis de causalidad según la NTC 3701"]
[null,"En el Anexo C de la Norma se encuentran los códigos de las Causas Básicas e Inmediatas según los factores personales, factores del trabajo, condiciones ambientales subestándares y actos subestándares respectivamente. Teniendo en cuenta cada uno de los factores y condiciones mencionadas anteriormente se determinan las causas del accidente de trabajo con los códigos respectivos. "]
[]
[]
[]
[]
[]
[null,"TIPO  DE LESIÓN"]
[null," Fractura"]
[null," Luxación"]
[null,"Torcedura, esguince, desgarro muscular, hernia o laceración de músculo o tendón sin herida"]
[null,"Conmoción o trauma interno"]
[null,"Amputación (exclusión o pérdida del ojo)"]
[null,"Herida"]
[null,"Trauma superficial (Incluye rasguño, punción o pinchazo y lesión en ojo por cuerpo extraño)"]
[null,"Golpe, contusión, aplastamiento"]